Workbook

Sheet Introduction
A2: Distributor Name | B2: Wine Glass Pours per Bottle | D2: Utilize this spreadsheet to easily calculate your pour cost, margin and markup for each item and categories of products. There is a separate worksheet (tab) in this file for wines, beers and spirits. Fill in basic information about your products, including the unit cost and the price you charge. Pour cost, margin and markups will be calculated automatically in each row. There is also a worksheet to view the summary and categorized data. Instructions: 1. Start on this page by listing all of your distributors under Distributor Name if you want to be able to remember and sort products by distributor. 2. Underneath "Wine Glass Pours per Bottle" enter in how many glasses of wine you get from each bottle when serving to customers. 3. On each of the worksheets, enter data into the white cells. a) Some of the fields will require you to select from a drop-down list b) For beer and liquor, you will need to enter in your standard serving size in ounces so that the correct calculations can be made © 2017 Uncorkd Inc. - http://www.uncorkd.biz - click this box for more information about Uncorkd
A3: Distributor A | B3: 5
A4: Distributor B
A5: Distributor C
A6: Distributor D
D25: Utilize this spreadsheet to easily calculate important metrics for your bar such as your pour cost, margin and markup for each item. There is a separate worksheet (tab) in this file for wines, beers and spirits. Fill in basic information about your products, including the unit cost and the price you charge. Pour cost, margin and markups will be calculated automatically in each row. There is also a worksheet to view the summary and categorized data. Instructions: 1. Start on this page by listing all of your distributors under Distributor Name if you want to be able to remember and sort products by distributor. 2. To the right of "Wine Glasses per Bottle" enter in how many glasses of wine you get from each bottle when serving to customers. 3. On each of the worksheets, enter data into the white cells. a) Some of the fields will require you to select from a drop-down list b) For beer and liquor, you will need to enter in your standard serving size in ounces so that the correct calculations can be made

Sheet Wines
A1: Wine Name | B1: Size | C1: Cost | D1: Distributor | E1: Type | F1: Menu Price -Glass- | G1: Menu Price -Bottle- | H1: $ cost/oz | I1: % Margin -Glass- | J1: Markup -Glass- | K1: % Margin -Bottle- | L1: Markup -Bottle-
A2: Sample Wine 1 | B2: 750ml | C2: 20.55 | D2: Distributor A | E2: Sparkling | F2: 13 | G2: 49 | H2: =IFERROR(C2/VLOOKUP(B2,'Hidden Fields'!$A$2:$B$10,2,FALSE),"") -> 0.8122529644 | I2: =IFERROR((F2-(C2/Introduction!$B$3))/F2,"") -> 0.6838461538 | J2: =IFERROR(F2/(C2/Introduction!$B$3),"") -> 3.163017032 | K2: =IFERROR((G2-C2)/G2,"") -> 0.5806122449 | L2: =IFERROR(G2/C2,"") -> 2.384428224
A3: Sample Wine 2 | B3: 750ml | C3: 42.6 | D3: Distributor D | E3: White | F3: 18 | G3: 72 | H3: =IFERROR(C3/VLOOKUP(B3,'Hidden Fields'!$A$2:$B$10,2,FALSE),"") -> 1.683794466 | I3: =IFERROR((F3-(C3/Introduction!$B$3))/F3,"") -> 0.5266666667 | J3: =IFERROR(F3/(C3/Introduction!$B$3),"") -> 2.112676056 | K3: =IFERROR((G3-C3)/G3,"") -> 0.4083333333 | L3: =IFERROR(G3/C3,"") -> 1.690140845
A4: Sample Wine 3 | B4: 750ml | C4: 120.5 | D4: Distributor D | E4: Red | G4: 210 | H4: =IFERROR(C4/VLOOKUP(B4,'Hidden Fields'!$A$2:$B$10,2,FALSE),"") -> 4.76284585 | I4: =IFERROR((F4-(C4/Introduction!$B$3))/F4,"") ->  | J4: =IFERROR(F4/(C4/Introduction!$B$3),"") -> 0 | K4: 0.4261904762 | L4: 1.742738589
A5: Sample Wine 4 | B5: 750ml | C5: 11.1 | D5: Distributor A | E5: Rose | F5: 10 | G5: 42 | H5: =IFERROR(C5/VLOOKUP(B5,'Hidden Fields'!$A$2:$B$10,2,FALSE),"") -> 0.4387351779 | I5: =IFERROR((F5-(C5/Introduction!$B$3))/F5,"") -> 0.778 | J5: =IFERROR(F5/(C5/Introduction!$B$3),"") -> 4.504504505 | K5: 0.7357142857 | L5: 3.783783784
A6: Sample Wine 5 | B6: 750ml | C6: 12.1 | D6: Distributor B | E6: Sparkling | F6: 9 | G6: 35 | H6: =IFERROR(C6/VLOOKUP(B6,'Hidden Fields'!$A$2:$B$10,2,FALSE),"") -> 0.4782608696 | I6: =IFERROR((F6-(C6/Introduction!$B$3))/F6,"") -> 0.7311111111 | J6: =IFERROR(F6/(C6/Introduction!$B$3),"") -> 3.719008264 | K6: 0.6542857143 | L6: 2.892561983
H7: =IFERROR(C7/VLOOKUP(B7,'Hidden Fields'!$A$2:$B$10,2,FALSE),"") ->  | I7: =IFERROR((F7-(C7/Introduction!$B$3))/F7,"") ->  | J7: =IFERROR(F7/(C7/Introduction!$B$3),"") -> 
H8: =IFERROR(C8/VLOOKUP(B8,'Hidden Fields'!$A$2:$B$10,2,FALSE),"") ->  | I8: =IFERROR((F8-(C8/Introduction!$B$3))/F8,"") ->  | J8: =IFERROR(F8/(C8/Introduction!$B$3),"") -> 
H9: =IFERROR(C9/VLOOKUP(B9,'Hidden Fields'!$A$2:$B$10,2,FALSE),"") ->  | I9: =IFERROR((F9-(C9/Introduction!$B$3))/F9,"") ->  | J9: =IFERROR(F9/(C9/Introduction!$B$3),"") -> 
H10: =IFERROR(C10/VLOOKUP(B10,'Hidden Fields'!$A$2:$B$10,2,FALSE),"") ->  | I10: =IFERROR((F10-(C10/Introduction!$B$3))/F10,"") ->  | J10: =IFERROR(F10/(C10/Introduction!$B$3),"") -> 
H11: =IFERROR(C11/VLOOKUP(B11,'Hidden Fields'!$A$2:$B$10,2,FALSE),"") ->  | I11: =IFERROR((F11-(C11/Introduction!$B$3))/F11,"") ->  | J11: =IFERROR(F11/(C11/Introduction!$B$3),"") -> 
H12: =IFERROR(C12/VLOOKUP(B12,'Hidden Fields'!$A$2:$B$10,2,FALSE),"") ->  | I12: =IFERROR((F12-(C12/Introduction!$B$3))/F12,"") ->  | J12: =IFERROR(F12/(C12/Introduction!$B$3),"") -> 
H13: =IFERROR(C13/VLOOKUP(B13,'Hidden Fields'!$A$2:$B$10,2,FALSE),"") ->  | I13: =IFERROR((F13-(C13/Introduction!$B$3))/F13,"") ->  | J13: =IFERROR(F13/(C13/Introduction!$B$3),"") -> 
H14: =IFERROR(C14/VLOOKUP(B14,'Hidden Fields'!$A$2:$B$10,2,FALSE),"") ->  | I14: =IFERROR((F14-(C14/Introduction!$B$3))/F14,"") ->  | J14: =IFERROR(F14/(C14/Introduction!$B$3),"") -> 
H15: =IFERROR(C15/VLOOKUP(B15,'Hidden Fields'!$A$2:$B$10,2,FALSE),"") ->  | I15: =IFERROR((F15-(C15/Introduction!$B$3))/F15,"") ->  | J15: =IFERROR(F15/(C15/Introduction!$B$3),"") -> 
H16: =IFERROR(C16/VLOOKUP(B16,'Hidden Fields'!$A$2:$B$10,2,FALSE),"") ->  | I16: =IFERROR((F16-(C16/Introduction!$B$3))/F16,"") ->  | J16: =IFERROR(F16/(C16/Introduction!$B$3),"") -> 
H17: =IFERROR(C17/VLOOKUP(B17,'Hidden Fields'!$A$2:$B$10,2,FALSE),"") ->  | I17: =IFERROR((F17-(C17/Introduction!$B$3))/F17,"") ->  | J17: =IFERROR(F17/(C17/Introduction!$B$3),"") -> 
H18: =IFERROR(C18/VLOOKUP(B18,'Hidden Fields'!$A$2:$B$10,2,FALSE),"") ->  | I18: =IFERROR((F18-(C18/Introduction!$B$3))/F18,"") ->  | J18: =IFERROR(F18/(C18/Introduction!$B$3),"") -> 
H19: =IFERROR(C19/VLOOKUP(B19,'Hidden Fields'!$A$2:$B$10,2,FALSE),"") ->  | I19: =IFERROR((F19-(C19/Introduction!$B$3))/F19,"") ->  | J19: =IFERROR(F19/(C19/Introduction!$B$3),"") -> 
H20: =IFERROR(C20/VLOOKUP(B20,'Hidden Fields'!$A$2:$B$10,2,FALSE),"") ->  | I20: =IFERROR((F20-(C20/Introduction!$B$3))/F20,"") ->  | J20: =IFERROR(F20/(C20/Introduction!$B$3),"") -> 
H21: =IFERROR(C21/VLOOKUP(B21,'Hidden Fields'!$A$2:$B$10,2,FALSE),"") ->  | I21: =IFERROR((F21-(C21/Introduction!$B$3))/F21,"") ->  | J21: =IFERROR(F21/(C21/Introduction!$B$3),"") -> 
H22: =IFERROR(C22/VLOOKUP(B22,'Hidden Fields'!$A$2:$B$10,2,FALSE),"") ->  | I22: =IFERROR((F22-(C22/Introduction!$B$3))/F22,"") ->  | J22: =IFERROR(F22/(C22/Introduction!$B$3),"") -> 
H23: =IFERROR(C23/VLOOKUP(B23,'Hidden Fields'!$A$2:$B$10,2,FALSE),"") ->  | I23: =IFERROR((F23-(C23/Introduction!$B$3))/F23,"") ->  | J23: =IFERROR(F23/(C23/Introduction!$B$3),"") -> 
H24: =IFERROR(C24/VLOOKUP(B24,'Hidden Fields'!$A$2:$B$10,2,FALSE),"") ->  | I24: =IFERROR((F24-(C24/Introduction!$B$3))/F24,"") ->  | J24: =IFERROR(F24/(C24/Introduction!$B$3),"") -> 
H25: =IFERROR(C25/VLOOKUP(B25,'Hidden Fields'!$A$2:$B$10,2,FALSE),"") ->  | I25: =IFERROR((F25-(C25/Introduction!$B$3))/F25,"") ->  | J25: =IFERROR(F25/(C25/Introduction!$B$3),"") -> 
H26: =IFERROR(C26/VLOOKUP(B26,'Hidden Fields'!$A$2:$B$10,2,FALSE),"") ->  | I26: =IFERROR((F26-(C26/Introduction!$B$3))/F26,"") ->  | J26: =IFERROR(F26/(C26/Introduction!$B$3),"") -> 
H27: =IFERROR(C27/VLOOKUP(B27,'Hidden Fields'!$A$2:$B$10,2,FALSE),"") ->  | I27: =IFERROR((F27-(C27/Introduction!$B$3))/F27,"") ->  | J27: =IFERROR(F27/(C27/Introduction!$B$3),"") -> 
H28: =IFERROR(C28/VLOOKUP(B28,'Hidden Fields'!$A$2:$B$10,2,FALSE),"") ->  | I28: =IFERROR((F28-(C28/Introduction!$B$3))/F28,"") ->  | J28: =IFERROR(F28/(C28/Introduction!$B$3),"") -> 
H29: =IFERROR(C29/VLOOKUP(B29,'Hidden Fields'!$A$2:$B$10,2,FALSE),"") ->  | I29: =IFERROR((F29-(C29/Introduction!$B$3))/F29,"") ->  | J29: =IFERROR(F29/(C29/Introduction!$B$3),"") -> 
H30: =IFERROR(C30/VLOOKUP(B30,'Hidden Fields'!$A$2:$B$10,2,FALSE),"") ->  | I30: =IFERROR((F30-(C30/Introduction!$B$3))/F30,"") ->  | J30: =IFERROR(F30/(C30/Introduction!$B$3),"") -> 
H31: =IFERROR(C31/VLOOKUP(B31,'Hidden Fields'!$A$2:$B$10,2,FALSE),"") ->  | I31: =IFERROR((F31-(C31/Introduction!$B$3))/F31,"") ->  | J31: =IFERROR(F31/(C31/Introduction!$B$3),"") -> 
H32: =IFERROR(C32/VLOOKUP(B32,'Hidden Fields'!$A$2:$B$10,2,FALSE),"") ->  | I32: =IFERROR((F32-(C32/Introduction!$B$3))/F32,"") ->  | J32: =IFERROR(F32/(C32/Introduction!$B$3),"") -> 
H33: =IFERROR(C33/VLOOKUP(B33,'Hidden Fields'!$A$2:$B$10,2,FALSE),"") ->  | I33: =IFERROR((F33-(C33/Introduction!$B$3))/F33,"") ->  | J33: =IFERROR(F33/(C33/Introduction!$B$3),"") -> 
H34: =IFERROR(C34/VLOOKUP(B34,'Hidden Fields'!$A$2:$B$10,2,FALSE),"") ->  | I34: =IFERROR((F34-(C34/Introduction!$B$3))/F34,"") ->  | J34: =IFERROR(F34/(C34/Introduction!$B$3),"") -> 
H35: =IFERROR(C35/VLOOKUP(B35,'Hidden Fields'!$A$2:$B$10,2,FALSE),"") ->  | I35: =IFERROR((F35-(C35/Introduction!$B$3))/F35,"") ->  | J35: =IFERROR(F35/(C35/Introduction!$B$3),"") -> 
H36: =IFERROR(C36/VLOOKUP(B36,'Hidden Fields'!$A$2:$B$10,2,FALSE),"") ->  | I36: =IFERROR((F36-(C36/Introduction!$B$3))/F36,"") ->  | J36: =IFERROR(F36/(C36/Introduction!$B$3),"") -> 
H37: =IFERROR(C37/VLOOKUP(B37,'Hidden Fields'!$A$2:$B$10,2,FALSE),"") ->  | I37: =IFERROR((F37-(C37/Introduction!$B$3))/F37,"") ->  | J37: =IFERROR(F37/(C37/Introduction!$B$3),"") -> 
H38: =IFERROR(C38/VLOOKUP(B38,'Hidden Fields'!$A$2:$B$10,2,FALSE),"") ->  | I38: =IFERROR((F38-(C38/Introduction!$B$3))/F38,"") ->  | J38: =IFERROR(F38/(C38/Introduction!$B$3),"") -> 
H39: =IFERROR(C39/VLOOKUP(B39,'Hidden Fields'!$A$2:$B$10,2,FALSE),"") ->  | I39: =IFERROR((F39-(C39/Introduction!$B$3))/F39,"") ->  | J39: =IFERROR(F39/(C39/Introduction!$B$3),"") -> 
H40: =IFERROR(C40/VLOOKUP(B40,'Hidden Fields'!$A$2:$B$10,2,FALSE),"") ->  | I40: =IFERROR((F40-(C40/Introduction!$B$3))/F40,"") ->  | J40: =IFERROR(F40/(C40/Introduction!$B$3),"") -> 
H41: =IFERROR(C41/VLOOKUP(B41,'Hidden Fields'!$A$2:$B$10,2,FALSE),"") ->  | I41: =IFERROR((F41-(C41/Introduction!$B$3))/F41,"") ->  | J41: =IFERROR(F41/(C41/Introduction!$B$3),"") -> 
H42: =IFERROR(C42/VLOOKUP(B42,'Hidden Fields'!$A$2:$B$10,2,FALSE),"") ->  | I42: =IFERROR((F42-(C42/Introduction!$B$3))/F42,"") ->  | J42: =IFERROR(F42/(C42/Introduction!$B$3),"") -> 
H43: =IFERROR(C43/VLOOKUP(B43,'Hidden Fields'!$A$2:$B$10,2,FALSE),"") ->  | I43: =IFERROR((F43-(C43/Introduction!$B$3))/F43,"") ->  | J43: =IFERROR(F43/(C43/Introduction!$B$3),"") -> 
H44: =IFERROR(C44/VLOOKUP(B44,'Hidden Fields'!$A$2:$B$10,2,FALSE),"") ->  | I44: =IFERROR((F44-(C44/Introduction!$B$3))/F44,"") ->  | J44: =IFERROR(F44/(C44/Introduction!$B$3),"") -> 
H45: =IFERROR(C45/VLOOKUP(B45,'Hidden Fields'!$A$2:$B$10,2,FALSE),"") ->  | I45: =IFERROR((F45-(C45/Introduction!$B$3))/F45,"") ->  | J45: =IFERROR(F45/(C45/Introduction!$B$3),"") -> 
H46: =IFERROR(C46/VLOOKUP(B46,'Hidden Fields'!$A$2:$B$10,2,FALSE),"") ->  | I46: =IFERROR((F46-(C46/Introduction!$B$3))/F46,"") ->  | J46: =IFERROR(F46/(C46/Introduction!$B$3),"") -> 
H47: =IFERROR(C47/VLOOKUP(B47,'Hidden Fields'!$A$2:$B$10,2,FALSE),"") ->  | I47: =IFERROR((F47-(C47/Introduction!$B$3))/F47,"") ->  | J47: =IFERROR(F47/(C47/Introduction!$B$3),"") -> 
H48: =IFERROR(C48/VLOOKUP(B48,'Hidden Fields'!$A$2:$B$10,2,FALSE),"") ->  | I48: =IFERROR((F48-(C48/Introduction!$B$3))/F48,"") ->  | J48: =IFERROR(F48/(C48/Introduction!$B$3),"") -> 
H49: =IFERROR(C49/VLOOKUP(B49,'Hidden Fields'!$A$2:$B$10,2,FALSE),"") ->  | I49: =IFERROR((F49-(C49/Introduction!$B$3))/F49,"") ->  | J49: =IFERROR(F49/(C49/Introduction!$B$3),"") -> 
H50: =IFERROR(C50/VLOOKUP(B50,'Hidden Fields'!$A$2:$B$10,2,FALSE),"") ->  | I50: =IFERROR((F50-(C50/Introduction!$B$3))/F50,"") ->  | J50: =IFERROR(F50/(C50/Introduction!$B$3),"") -> 
H51: =IFERROR(C51/VLOOKUP(B51,'Hidden Fields'!$A$2:$B$10,2,FALSE),"") ->  | I51: =IFERROR((F51-(C51/Introduction!$B$3))/F51,"") ->  | J51: =IFERROR(F51/(C51/Introduction!$B$3),"") -> 
H52: =IFERROR(C52/VLOOKUP(B52,'Hidden Fields'!$A$2:$B$10,2,FALSE),"") ->  | I52: =IFERROR((F52-(C52/Introduction!$B$3))/F52,"") ->  | J52: =IFERROR(F52/(C52/Introduction!$B$3),"") -> 
H53: =IFERROR(C53/VLOOKUP(B53,'Hidden Fields'!$A$2:$B$10,2,FALSE),"") ->  | I53: =IFERROR((F53-(C53/Introduction!$B$3))/F53,"") ->  | J53: =IFERROR(F53/(C53/Introduction!$B$3),"") -> 
H54: =IFERROR(C54/VLOOKUP(B54,'Hidden Fields'!$A$2:$B$10,2,FALSE),"") ->  | I54: =IFERROR((F54-(C54/Introduction!$B$3))/F54,"") ->  | J54: =IFERROR(F54/(C54/Introduction!$B$3),"") -> 
H55: =IFERROR(C55/VLOOKUP(B55,'Hidden Fields'!$A$2:$B$10,2,FALSE),"") ->  | I55: =IFERROR((F55-(C55/Introduction!$B$3))/F55,"") ->  | J55: =IFERROR(F55/(C55/Introduction!$B$3),"") -> 
H56: =IFERROR(C56/VLOOKUP(B56,'Hidden Fields'!$A$2:$B$10,2,FALSE),"") ->  | I56: =IFERROR((F56-(C56/Introduction!$B$3))/F56,"") ->  | J56: =IFERROR(F56/(C56/Introduction!$B$3),"") -> 
H57: =IFERROR(C57/VLOOKUP(B57,'Hidden Fields'!$A$2:$B$10,2,FALSE),"") ->  | I57: =IFERROR((F57-(C57/Introduction!$B$3))/F57,"") ->  | J57: =IFERROR(F57/(C57/Introduction!$B$3),"") -> 
H58: =IFERROR(C58/VLOOKUP(B58,'Hidden Fields'!$A$2:$B$10,2,FALSE),"") ->  | I58: =IFERROR((F58-(C58/Introduction!$B$3))/F58,"") ->  | J58: =IFERROR(F58/(C58/Introduction!$B$3),"") -> 
H59: =IFERROR(C59/VLOOKUP(B59,'Hidden Fields'!$A$2:$B$10,2,FALSE),"") ->  | I59: =IFERROR((F59-(C59/Introduction!$B$3))/F59,"") ->  | J59: =IFERROR(F59/(C59/Introduction!$B$3),"") -> 
H60: =IFERROR(C60/VLOOKUP(B60,'Hidden Fields'!$A$2:$B$10,2,FALSE),"") ->  | I60: =IFERROR((F60-(C60/Introduction!$B$3))/F60,"") ->  | J60: =IFERROR(F60/(C60/Introduction!$B$3),"") -> 
H61: =IFERROR(C61/VLOOKUP(B61,'Hidden Fields'!$A$2:$B$10,2,FALSE),"") ->  | I61: =IFERROR((F61-(C61/Introduction!$B$3))/F61,"") ->  | J61: =IFERROR(F61/(C61/Introduction!$B$3),"") -> 
H62: =IFERROR(C62/VLOOKUP(B62,'Hidden Fields'!$A$2:$B$10,2,FALSE),"") ->  | I62: =IFERROR((F62-(C62/Introduction!$B$3))/F62,"") ->  | J62: =IFERROR(F62/(C62/Introduction!$B$3),"") -> 
H63: =IFERROR(C63/VLOOKUP(B63,'Hidden Fields'!$A$2:$B$10,2,FALSE),"") ->  | I63: =IFERROR((F63-(C63/Introduction!$B$3))/F63,"") ->  | J63: =IFERROR(F63/(C63/Introduction!$B$3),"") -> 
H64: =IFERROR(C64/VLOOKUP(B64,'Hidden Fields'!$A$2:$B$10,2,FALSE),"") ->  | I64: =IFERROR((F64-(C64/Introduction!$B$3))/F64,"") ->  | J64: =IFERROR(F64/(C64/Introduction!$B$3),"") -> 
H65: =IFERROR(C65/VLOOKUP(B65,'Hidden Fields'!$A$2:$B$10,2,FALSE),"") ->  | I65: =IFERROR((F65-(C65/Introduction!$B$3))/F65,"") ->  | J65: =IFERROR(F65/(C65/Introduction!$B$3),"") -> 
H66: =IFERROR(C66/VLOOKUP(B66,'Hidden Fields'!$A$2:$B$10,2,FALSE),"") ->  | I66: =IFERROR((F66-(C66/Introduction!$B$3))/F66,"") ->  | J66: =IFERROR(F66/(C66/Introduction!$B$3),"") -> 
H67: =IFERROR(C67/VLOOKUP(B67,'Hidden Fields'!$A$2:$B$10,2,FALSE),"") ->  | I67: =IFERROR((F67-(C67/Introduction!$B$3))/F67,"") ->  | J67: =IFERROR(F67/(C67/Introduction!$B$3),"") ->  | K67: =IFERROR((G67-C67)/G67,"") ->  | L67: =IFERROR(G67/C67,"") -> 
H68: =IFERROR(C68/VLOOKUP(B68,'Hidden Fields'!$A$2:$B$10,2,FALSE),"") ->  | I68: =IFERROR((F68-(C68/Introduction!$B$3))/F68,"") ->  | J68: =IFERROR(F68/(C68/Introduction!$B$3),"") -> 
H69: =IFERROR(C69/VLOOKUP(B69,'Hidden Fields'!$A$2:$B$10,2,FALSE),"") ->  | I69: =IFERROR((F69-(C69/Introduction!$B$3))/F69,"") ->  | J69: =IFERROR(F69/(C69/Introduction!$B$3),"") -> 
H70: =IFERROR(C70/VLOOKUP(B70,'Hidden Fields'!$A$2:$B$10,2,FALSE),"") ->  | I70: =IFERROR((F70-(C70/Introduction!$B$3))/F70,"") ->  | J70: =IFERROR(F70/(C70/Introduction!$B$3),"") -> 
H71: =IFERROR(C71/VLOOKUP(B71,'Hidden Fields'!$A$2:$B$10,2,FALSE),"") ->  | I71: =IFERROR((F71-(C71/Introduction!$B$3))/F71,"") ->  | J71: =IFERROR(F71/(C71/Introduction!$B$3),"") -> 
H72: =IFERROR(C72/VLOOKUP(B72,'Hidden Fields'!$A$2:$B$10,2,FALSE),"") ->  | I72: =IFERROR((F72-(C72/Introduction!$B$3))/F72,"") ->  | J72: =IFERROR(F72/(C72/Introduction!$B$3),"") -> 
H73: =IFERROR(C73/VLOOKUP(B73,'Hidden Fields'!$A$2:$B$10,2,FALSE),"") ->  | I73: =IFERROR((F73-(C73/Introduction!$B$3))/F73,"") ->  | J73: =IFERROR(F73/(C73/Introduction!$B$3),"") -> 
H74: =IFERROR(C74/VLOOKUP(B74,'Hidden Fields'!$A$2:$B$10,2,FALSE),"") ->  | I74: =IFERROR((F74-(C74/Introduction!$B$3))/F74,"") ->  | J74: =IFERROR(F74/(C74/Introduction!$B$3),"") -> 
H75: =IFERROR(C75/VLOOKUP(B75,'Hidden Fields'!$A$2:$B$10,2,FALSE),"") ->  | I75: =IFERROR((F75-(C75/Introduction!$B$3))/F75,"") ->  | J75: =IFERROR(F75/(C75/Introduction!$B$3),"") -> 
H76: =IFERROR(C76/VLOOKUP(B76,'Hidden Fields'!$A$2:$B$10,2,FALSE),"") ->  | I76: =IFERROR((F76-(C76/Introduction!$B$3))/F76,"") ->  | J76: =IFERROR(F76/(C76/Introduction!$B$3),"") -> 
H77: =IFERROR(C77/VLOOKUP(B77,'Hidden Fields'!$A$2:$B$10,2,FALSE),"") ->  | I77: =IFERROR((F77-(C77/Introduction!$B$3))/F77,"") ->  | J77: =IFERROR(F77/(C77/Introduction!$B$3),"") -> 
H78: =IFERROR(C78/VLOOKUP(B78,'Hidden Fields'!$A$2:$B$10,2,FALSE),"") ->  | I78: =IFERROR((F78-(C78/Introduction!$B$3))/F78,"") ->  | J78: =IFERROR(F78/(C78/Introduction!$B$3),"") -> 
H79: =IFERROR(C79/VLOOKUP(B79,'Hidden Fields'!$A$2:$B$10,2,FALSE),"") ->  | I79: =IFERROR((F79-(C79/Introduction!$B$3))/F79,"") ->  | J79: =IFERROR(F79/(C79/Introduction!$B$3),"") -> 
H80: =IFERROR(C80/VLOOKUP(B80,'Hidden Fields'!$A$2:$B$10,2,FALSE),"") ->  | I80: =IFERROR((F80-(C80/Introduction!$B$3))/F80,"") ->  | J80: =IFERROR(F80/(C80/Introduction!$B$3),"") -> 
H81: =IFERROR(C81/VLOOKUP(B81,'Hidden Fields'!$A$2:$B$10,2,FALSE),"") ->  | I81: =IFERROR((F81-(C81/Introduction!$B$3))/F81,"") ->  | J81: =IFERROR(F81/(C81/Introduction!$B$3),"") -> 
H82: =IFERROR(C82/VLOOKUP(B82,'Hidden Fields'!$A$2:$B$10,2,FALSE),"") ->  | I82: =IFERROR((F82-(C82/Introduction!$B$3))/F82,"") ->  | J82: =IFERROR(F82/(C82/Introduction!$B$3),"") -> 
H83: =IFERROR(C83/VLOOKUP(B83,'Hidden Fields'!$A$2:$B$10,2,FALSE),"") ->  | I83: =IFERROR((F83-(C83/Introduction!$B$3))/F83,"") ->  | J83: =IFERROR(F83/(C83/Introduction!$B$3),"") -> 
H84: =IFERROR(C84/VLOOKUP(B84,'Hidden Fields'!$A$2:$B$10,2,FALSE),"") ->  | I84: =IFERROR((F84-(C84/Introduction!$B$3))/F84,"") ->  | J84: =IFERROR(F84/(C84/Introduction!$B$3),"") -> 
H85: =IFERROR(C85/VLOOKUP(B85,'Hidden Fields'!$A$2:$B$10,2,FALSE),"") ->  | I85: =IFERROR((F85-(C85/Introduction!$B$3))/F85,"") ->  | J85: =IFERROR(F85/(C85/Introduction!$B$3),"") -> 
H86: =IFERROR(C86/VLOOKUP(B86,'Hidden Fields'!$A$2:$B$10,2,FALSE),"") ->  | I86: =IFERROR((F86-(C86/Introduction!$B$3))/F86,"") ->  | J86: =IFERROR(F86/(C86/Introduction!$B$3),"") -> 
H87: =IFERROR(C87/VLOOKUP(B87,'Hidden Fields'!$A$2:$B$10,2,FALSE),"") ->  | I87: =IFERROR((F87-(C87/Introduction!$B$3))/F87,"") ->  | J87: =IFERROR(F87/(C87/Introduction!$B$3),"") -> 
H88: =IFERROR(C88/VLOOKUP(B88,'Hidden Fields'!$A$2:$B$10,2,FALSE),"") ->  | I88: =IFERROR((F88-(C88/Introduction!$B$3))/F88,"") ->  | J88: =IFERROR(F88/(C88/Introduction!$B$3),"") -> 
H89: =IFERROR(C89/VLOOKUP(B89,'Hidden Fields'!$A$2:$B$10,2,FALSE),"") ->  | I89: =IFERROR((F89-(C89/Introduction!$B$3))/F89,"") ->  | J89: =IFERROR(F89/(C89/Introduction!$B$3),"") -> 
H90: =IFERROR(C90/VLOOKUP(B90,'Hidden Fields'!$A$2:$B$10,2,FALSE),"") ->  | I90: =IFERROR((F90-(C90/Introduction!$B$3))/F90,"") ->  | J90: =IFERROR(F90/(C90/Introduction!$B$3),"") -> 
H91: =IFERROR(C91/VLOOKUP(B91,'Hidden Fields'!$A$2:$B$10,2,FALSE),"") ->  | I91: =IFERROR((F91-(C91/Introduction!$B$3))/F91,"") ->  | J91: =IFERROR(F91/(C91/Introduction!$B$3),"") -> 
H92: =IFERROR(C92/VLOOKUP(B92,'Hidden Fields'!$A$2:$B$10,2,FALSE),"") ->  | I92: =IFERROR((F92-(C92/Introduction!$B$3))/F92,"") ->  | J92: =IFERROR(F92/(C92/Introduction!$B$3),"") -> 
H93: =IFERROR(C93/VLOOKUP(B93,'Hidden Fields'!$A$2:$B$10,2,FALSE),"") ->  | I93: =IFERROR((F93-(C93/Introduction!$B$3))/F93,"") ->  | J93: =IFERROR(F93/(C93/Introduction!$B$3),"") -> 
H94: =IFERROR(C94/VLOOKUP(B94,'Hidden Fields'!$A$2:$B$10,2,FALSE),"") ->  | I94: =IFERROR((F94-(C94/Introduction!$B$3))/F94,"") ->  | J94: =IFERROR(F94/(C94/Introduction!$B$3),"") -> 
H95: =IFERROR(C95/VLOOKUP(B95,'Hidden Fields'!$A$2:$B$10,2,FALSE),"") ->  | I95: =IFERROR((F95-(C95/Introduction!$B$3))/F95,"") ->  | J95: =IFERROR(F95/(C95/Introduction!$B$3),"") -> 
H96: =IFERROR(C96/VLOOKUP(B96,'Hidden Fields'!$A$2:$B$10,2,FALSE),"") ->  | I96: =IFERROR((F96-(C96/Introduction!$B$3))/F96,"") ->  | J96: =IFERROR(F96/(C96/Introduction!$B$3),"") -> 
H97: =IFERROR(C97/VLOOKUP(B97,'Hidden Fields'!$A$2:$B$10,2,FALSE),"") ->  | I97: =IFERROR((F97-(C97/Introduction!$B$3))/F97,"") ->  | J97: =IFERROR(F97/(C97/Introduction!$B$3),"") -> 
H98: =IFERROR(C98/VLOOKUP(B98,'Hidden Fields'!$A$2:$B$10,2,FALSE),"") ->  | I98: =IFERROR((F98-(C98/Introduction!$B$3))/F98,"") ->  | J98: =IFERROR(F98/(C98/Introduction!$B$3),"") -> 
H99: =IFERROR(C99/VLOOKUP(B99,'Hidden Fields'!$A$2:$B$10,2,FALSE),"") ->  | I99: =IFERROR((F99-(C99/Introduction!$B$3))/F99,"") ->  | J99: =IFERROR(F99/(C99/Introduction!$B$3),"") -> 
H100: =IFERROR(C100/VLOOKUP(B100,'Hidden Fields'!$A$2:$B$10,2,FALSE),"") ->  | I100: =IFERROR((F100-(C100/Introduction!$B$3))/F100,"") ->  | J100: =IFERROR(F100/(C100/Introduction!$B$3),"") -> 
H101: =IFERROR(C101/VLOOKUP(B101,'Hidden Fields'!$A$2:$B$10,2,FALSE),"") ->  | I101: =IFERROR((F101-(C101/Introduction!$B$3))/F101,"") ->  | J101: =IFERROR(F101/(C101/Introduction!$B$3),"") -> 
H102: =IFERROR(C102/VLOOKUP(B102,'Hidden Fields'!$A$2:$B$10,2,FALSE),"") ->  | I102: =IFERROR((F102-(C102/Introduction!$B$3))/F102,"") ->  | J102: =IFERROR(F102/(C102/Introduction!$B$3),"") -> 
H103: =IFERROR(C103/VLOOKUP(B103,'Hidden Fields'!$A$2:$B$10,2,FALSE),"") ->  | I103: =IFERROR((F103-(C103/Introduction!$B$3))/F103,"") ->  | J103: =IFERROR(F103/(C103/Introduction!$B$3),"") -> 
H104: =IFERROR(C104/VLOOKUP(B104,'Hidden Fields'!$A$2:$B$10,2,FALSE),"") ->  | I104: =IFERROR((F104-(C104/Introduction!$B$3))/F104,"") ->  | J104: =IFERROR(F104/(C104/Introduction!$B$3),"") -> 
H105: =IFERROR(C105/VLOOKUP(B105,'Hidden Fields'!$A$2:$B$10,2,FALSE),"") ->  | I105: =IFERROR((F105-(C105/Introduction!$B$3))/F105,"") ->  | J105: =IFERROR(F105/(C105/Introduction!$B$3),"") -> 
H106: =IFERROR(C106/VLOOKUP(B106,'Hidden Fields'!$A$2:$B$10,2,FALSE),"") ->  | I106: =IFERROR((F106-(C106/Introduction!$B$3))/F106,"") ->  | J106: =IFERROR(F106/(C106/Introduction!$B$3),"") -> 
H107: =IFERROR(C107/VLOOKUP(B107,'Hidden Fields'!$A$2:$B$10,2,FALSE),"") ->  | I107: =IFERROR((F107-(C107/Introduction!$B$3))/F107,"") ->  | J107: =IFERROR(F107/(C107/Introduction!$B$3),"") -> 
H108: =IFERROR(C108/VLOOKUP(B108,'Hidden Fields'!$A$2:$B$10,2,FALSE),"") ->  | I108: =IFERROR((F108-(C108/Introduction!$B$3))/F108,"") ->  | J108: =IFERROR(F108/(C108/Introduction!$B$3),"") -> 
H109: =IFERROR(C109/VLOOKUP(B109,'Hidden Fields'!$A$2:$B$10,2,FALSE),"") ->  | I109: =IFERROR((F109-(C109/Introduction!$B$3))/F109,"") ->  | J109: =IFERROR(F109/(C109/Introduction!$B$3),"") -> 
H110: =IFERROR(C110/VLOOKUP(B110,'Hidden Fields'!$A$2:$B$10,2,FALSE),"") ->  | I110: =IFERROR((F110-(C110/Introduction!$B$3))/F110,"") ->  | J110: =IFERROR(F110/(C110/Introduction!$B$3),"") -> 
H111: =IFERROR(C111/VLOOKUP(B111,'Hidden Fields'!$A$2:$B$10,2,FALSE),"") ->  | I111: =IFERROR((F111-(C111/Introduction!$B$3))/F111,"") ->  | J111: =IFERROR(F111/(C111/Introduction!$B$3),"") -> 
H112: =IFERROR(C112/VLOOKUP(B112,'Hidden Fields'!$A$2:$B$10,2,FALSE),"") ->  | I112: =IFERROR((F112-(C112/Introduction!$B$3))/F112,"") ->  | J112: =IFERROR(F112/(C112/Introduction!$B$3),"") -> 
H113: =IFERROR(C113/VLOOKUP(B113,'Hidden Fields'!$A$2:$B$10,2,FALSE),"") ->  | I113: =IFERROR((F113-(C113/Introduction!$B$3))/F113,"") ->  | J113: =IFERROR(F113/(C113/Introduction!$B$3),"") -> 
H114: =IFERROR(C114/VLOOKUP(B114,'Hidden Fields'!$A$2:$B$10,2,FALSE),"") ->  | I114: =IFERROR((F114-(C114/Introduction!$B$3))/F114,"") ->  | J114: =IFERROR(F114/(C114/Introduction!$B$3),"") -> 
H115: =IFERROR(C115/VLOOKUP(B115,'Hidden Fields'!$A$2:$B$10,2,FALSE),"") ->  | I115: =IFERROR((F115-(C115/Introduction!$B$3))/F115,"") ->  | J115: =IFERROR(F115/(C115/Introduction!$B$3),"") -> 
H116: =IFERROR(C116/VLOOKUP(B116,'Hidden Fields'!$A$2:$B$10,2,FALSE),"") ->  | I116: =IFERROR((F116-(C116/Introduction!$B$3))/F116,"") ->  | J116: =IFERROR(F116/(C116/Introduction!$B$3),"") -> 
H117: =IFERROR(C117/VLOOKUP(B117,'Hidden Fields'!$A$2:$B$10,2,FALSE),"") ->  | I117: =IFERROR((F117-(C117/Introduction!$B$3))/F117,"") ->  | J117: =IFERROR(F117/(C117/Introduction!$B$3),"") -> 
H118: =IFERROR(C118/VLOOKUP(B118,'Hidden Fields'!$A$2:$B$10,2,FALSE),"") ->  | I118: =IFERROR((F118-(C118/Introduction!$B$3))/F118,"") ->  | J118: =IFERROR(F118/(C118/Introduction!$B$3),"") -> 
H119: =IFERROR(C119/VLOOKUP(B119,'Hidden Fields'!$A$2:$B$10,2,FALSE),"") ->  | I119: =IFERROR((F119-(C119/Introduction!$B$3))/F119,"") ->  | J119: =IFERROR(F119/(C119/Introduction!$B$3),"") -> 
H120: =IFERROR(C120/VLOOKUP(B120,'Hidden Fields'!$A$2:$B$10,2,FALSE),"") ->  | I120: =IFERROR((F120-(C120/Introduction!$B$3))/F120,"") ->  | J120: =IFERROR(F120/(C120/Introduction!$B$3),"") -> 
H121: =IFERROR(C121/VLOOKUP(B121,'Hidden Fields'!$A$2:$B$10,2,FALSE),"") ->  | I121: =IFERROR((F121-(C121/Introduction!$B$3))/F121,"") ->  | J121: =IFERROR(F121/(C121/Introduction!$B$3),"") -> 
H122: =IFERROR(C122/VLOOKUP(B122,'Hidden Fields'!$A$2:$B$10,2,FALSE),"") ->  | I122: =IFERROR((F122-(C122/Introduction!$B$3))/F122,"") ->  | J122: =IFERROR(F122/(C122/Introduction!$B$3),"") -> 
H123: =IFERROR(C123/VLOOKUP(B123,'Hidden Fields'!$A$2:$B$10,2,FALSE),"") ->  | I123: =IFERROR((F123-(C123/Introduction!$B$3))/F123,"") ->  | J123: =IFERROR(F123/(C123/Introduction!$B$3),"") -> 
H124: =IFERROR(C124/VLOOKUP(B124,'Hidden Fields'!$A$2:$B$10,2,FALSE),"") ->  | I124: =IFERROR((F124-(C124/Introduction!$B$3))/F124,"") ->  | J124: =IFERROR(F124/(C124/Introduction!$B$3),"") -> 
H125: =IFERROR(C125/VLOOKUP(B125,'Hidden Fields'!$A$2:$B$10,2,FALSE),"") ->  | I125: =IFERROR((F125-(C125/Introduction!$B$3))/F125,"") ->  | J125: =IFERROR(F125/(C125/Introduction!$B$3),"") -> 
H126: =IFERROR(C126/VLOOKUP(B126,'Hidden Fields'!$A$2:$B$10,2,FALSE),"") ->  | I126: =IFERROR((F126-(C126/Introduction!$B$3))/F126,"") ->  | J126: =IFERROR(F126/(C126/Introduction!$B$3),"") -> 
H127: =IFERROR(C127/VLOOKUP(B127,'Hidden Fields'!$A$2:$B$10,2,FALSE),"") ->  | I127: =IFERROR((F127-(C127/Introduction!$B$3))/F127,"") ->  | J127: =IFERROR(F127/(C127/Introduction!$B$3),"") -> 
H128: =IFERROR(C128/VLOOKUP(B128,'Hidden Fields'!$A$2:$B$10,2,FALSE),"") ->  | I128: =IFERROR((F128-(C128/Introduction!$B$3))/F128,"") ->  | J128: =IFERROR(F128/(C128/Introduction!$B$3),"") -> 
H129: =IFERROR(C129/VLOOKUP(B129,'Hidden Fields'!$A$2:$B$10,2,FALSE),"") ->  | I129: =IFERROR((F129-(C129/Introduction!$B$3))/F129,"") ->  | J129: =IFERROR(F129/(C129/Introduction!$B$3),"") -> 
H130: =IFERROR(C130/VLOOKUP(B130,'Hidden Fields'!$A$2:$B$10,2,FALSE),"") ->  | I130: =IFERROR((F130-(C130/Introduction!$B$3))/F130,"") ->  | J130: =IFERROR(F130/(C130/Introduction!$B$3),"") -> 
H131: =IFERROR(C131/VLOOKUP(B131,'Hidden Fields'!$A$2:$B$10,2,FALSE),"") ->  | I131: =IFERROR((F131-(C131/Introduction!$B$3))/F131,"") ->  | J131: =IFERROR(F131/(C131/Introduction!$B$3),"") ->  | K131: =IFERROR((G131-C131)/G131,"") ->  | L131: =IFERROR(G131/C131,"") -> 
H132: =IFERROR(C132/VLOOKUP(B132,'Hidden Fields'!$A$2:$B$10,2,FALSE),"") ->  | I132: =IFERROR((F132-(C132/Introduction!$B$3))/F132,"") ->  | J132: =IFERROR(F132/(C132/Introduction!$B$3),"") -> 
H133: =IFERROR(C133/VLOOKUP(B133,'Hidden Fields'!$A$2:$B$10,2,FALSE),"") ->  | I133: =IFERROR((F133-(C133/Introduction!$B$3))/F133,"") ->  | J133: =IFERROR(F133/(C133/Introduction!$B$3),"") -> 
H134: =IFERROR(C134/VLOOKUP(B134,'Hidden Fields'!$A$2:$B$10,2,FALSE),"") ->  | I134: =IFERROR((F134-(C134/Introduction!$B$3))/F134,"") ->  | J134: =IFERROR(F134/(C134/Introduction!$B$3),"") -> 
H135: =IFERROR(C135/VLOOKUP(B135,'Hidden Fields'!$A$2:$B$10,2,FALSE),"") ->  | I135: =IFERROR((F135-(C135/Introduction!$B$3))/F135,"") ->  | J135: =IFERROR(F135/(C135/Introduction!$B$3),"") -> 
H136: =IFERROR(C136/VLOOKUP(B136,'Hidden Fields'!$A$2:$B$10,2,FALSE),"") ->  | I136: =IFERROR((F136-(C136/Introduction!$B$3))/F136,"") ->  | J136: =IFERROR(F136/(C136/Introduction!$B$3),"") -> 
H137: =IFERROR(C137/VLOOKUP(B137,'Hidden Fields'!$A$2:$B$10,2,FALSE),"") ->  | I137: =IFERROR((F137-(C137/Introduction!$B$3))/F137,"") ->  | J137: =IFERROR(F137/(C137/Introduction!$B$3),"") -> 
H138: =IFERROR(C138/VLOOKUP(B138,'Hidden Fields'!$A$2:$B$10,2,FALSE),"") ->  | I138: =IFERROR((F138-(C138/Introduction!$B$3))/F138,"") ->  | J138: =IFERROR(F138/(C138/Introduction!$B$3),"") -> 
H139: =IFERROR(C139/VLOOKUP(B139,'Hidden Fields'!$A$2:$B$10,2,FALSE),"") ->  | I139: =IFERROR((F139-(C139/Introduction!$B$3))/F139,"") ->  | J139: =IFERROR(F139/(C139/Introduction!$B$3),"") -> 
H140: =IFERROR(C140/VLOOKUP(B140,'Hidden Fields'!$A$2:$B$10,2,FALSE),"") ->  | I140: =IFERROR((F140-(C140/Introduction!$B$3))/F140,"") ->  | J140: =IFERROR(F140/(C140/Introduction!$B$3),"") -> 
H141: =IFERROR(C141/VLOOKUP(B141,'Hidden Fields'!$A$2:$B$10,2,FALSE),"") ->  | I141: =IFERROR((F141-(C141/Introduction!$B$3))/F141,"") ->  | J141: =IFERROR(F141/(C141/Introduction!$B$3),"") -> 
H142: =IFERROR(C142/VLOOKUP(B142,'Hidden Fields'!$A$2:$B$10,2,FALSE),"") ->  | I142: =IFERROR((F142-(C142/Introduction!$B$3))/F142,"") ->  | J142: =IFERROR(F142/(C142/Introduction!$B$3),"") -> 
H143: =IFERROR(C143/VLOOKUP(B143,'Hidden Fields'!$A$2:$B$10,2,FALSE),"") ->  | I143: =IFERROR((F143-(C143/Introduction!$B$3))/F143,"") ->  | J143: =IFERROR(F143/(C143/Introduction!$B$3),"") -> 
H144: =IFERROR(C144/VLOOKUP(B144,'Hidden Fields'!$A$2:$B$10,2,FALSE),"") ->  | I144: =IFERROR((F144-(C144/Introduction!$B$3))/F144,"") ->  | J144: =IFERROR(F144/(C144/Introduction!$B$3),"") -> 
H145: =IFERROR(C145/VLOOKUP(B145,'Hidden Fields'!$A$2:$B$10,2,FALSE),"") ->  | I145: =IFERROR((F145-(C145/Introduction!$B$3))/F145,"") ->  | J145: =IFERROR(F145/(C145/Introduction!$B$3),"") -> 
H146: =IFERROR(C146/VLOOKUP(B146,'Hidden Fields'!$A$2:$B$10,2,FALSE),"") ->  | I146: =IFERROR((F146-(C146/Introduction!$B$3))/F146,"") ->  | J146: =IFERROR(F146/(C146/Introduction!$B$3),"") -> 
H147: =IFERROR(C147/VLOOKUP(B147,'Hidden Fields'!$A$2:$B$10,2,FALSE),"") ->  | I147: =IFERROR((F147-(C147/Introduction!$B$3))/F147,"") ->  | J147: =IFERROR(F147/(C147/Introduction!$B$3),"") -> 
H148: =IFERROR(C148/VLOOKUP(B148,'Hidden Fields'!$A$2:$B$10,2,FALSE),"") ->  | I148: =IFERROR((F148-(C148/Introduction!$B$3))/F148,"") ->  | J148: =IFERROR(F148/(C148/Introduction!$B$3),"") -> 
H149: =IFERROR(C149/VLOOKUP(B149,'Hidden Fields'!$A$2:$B$10,2,FALSE),"") ->  | I149: =IFERROR((F149-(C149/Introduction!$B$3))/F149,"") ->  | J149: =IFERROR(F149/(C149/Introduction!$B$3),"") -> 
H150: =IFERROR(C150/VLOOKUP(B150,'Hidden Fields'!$A$2:$B$10,2,FALSE),"") ->  | I150: =IFERROR((F150-(C150/Introduction!$B$3))/F150,"") ->  | J150: =IFERROR(F150/(C150/Introduction!$B$3),"") -> 
H151: =IFERROR(C151/VLOOKUP(B151,'Hidden Fields'!$A$2:$B$10,2,FALSE),"") ->  | I151: =IFERROR((F151-(C151/Introduction!$B$3))/F151,"") ->  | J151: =IFERROR(F151/(C151/Introduction!$B$3),"") -> 
H152: =IFERROR(C152/VLOOKUP(B152,'Hidden Fields'!$A$2:$B$10,2,FALSE),"") ->  | I152: =IFERROR((F152-(C152/Introduction!$B$3))/F152,"") ->  | J152: =IFERROR(F152/(C152/Introduction!$B$3),"") -> 
H153: =IFERROR(C153/VLOOKUP(B153,'Hidden Fields'!$A$2:$B$10,2,FALSE),"") ->  | I153: =IFERROR((F153-(C153/Introduction!$B$3))/F153,"") ->  | J153: =IFERROR(F153/(C153/Introduction!$B$3),"") -> 
H154: =IFERROR(C154/VLOOKUP(B154,'Hidden Fields'!$A$2:$B$10,2,FALSE),"") ->  | I154: =IFERROR((F154-(C154/Introduction!$B$3))/F154,"") ->  | J154: =IFERROR(F154/(C154/Introduction!$B$3),"") -> 
H155: =IFERROR(C155/VLOOKUP(B155,'Hidden Fields'!$A$2:$B$10,2,FALSE),"") ->  | I155: =IFERROR((F155-(C155/Introduction!$B$3))/F155,"") ->  | J155: =IFERROR(F155/(C155/Introduction!$B$3),"") -> 
H156: =IFERROR(C156/VLOOKUP(B156,'Hidden Fields'!$A$2:$B$10,2,FALSE),"") ->  | I156: =IFERROR((F156-(C156/Introduction!$B$3))/F156,"") ->  | J156: =IFERROR(F156/(C156/Introduction!$B$3),"") -> 
H157: =IFERROR(C157/VLOOKUP(B157,'Hidden Fields'!$A$2:$B$10,2,FALSE),"") ->  | I157: =IFERROR((F157-(C157/Introduction!$B$3))/F157,"") ->  | J157: =IFERROR(F157/(C157/Introduction!$B$3),"") -> 
H158: =IFERROR(C158/VLOOKUP(B158,'Hidden Fields'!$A$2:$B$10,2,FALSE),"") ->  | I158: =IFERROR((F158-(C158/Introduction!$B$3))/F158,"") ->  | J158: =IFERROR(F158/(C158/Introduction!$B$3),"") -> 
H159: =IFERROR(C159/VLOOKUP(B159,'Hidden Fields'!$A$2:$B$10,2,FALSE),"") ->  | I159: =IFERROR((F159-(C159/Introduction!$B$3))/F159,"") ->  | J159: =IFERROR(F159/(C159/Introduction!$B$3),"") -> 
H160: =IFERROR(C160/VLOOKUP(B160,'Hidden Fields'!$A$2:$B$10,2,FALSE),"") ->  | I160: =IFERROR((F160-(C160/Introduction!$B$3))/F160,"") ->  | J160: =IFERROR(F160/(C160/Introduction!$B$3),"") -> 
H161: =IFERROR(C161/VLOOKUP(B161,'Hidden Fields'!$A$2:$B$10,2,FALSE),"") ->  | I161: =IFERROR((F161-(C161/Introduction!$B$3))/F161,"") ->  | J161: =IFERROR(F161/(C161/Introduction!$B$3),"") -> 
H162: =IFERROR(C162/VLOOKUP(B162,'Hidden Fields'!$A$2:$B$10,2,FALSE),"") ->  | I162: =IFERROR((F162-(C162/Introduction!$B$3))/F162,"") ->  | J162: =IFERROR(F162/(C162/Introduction!$B$3),"") -> 
H163: =IFERROR(C163/VLOOKUP(B163,'Hidden Fields'!$A$2:$B$10,2,FALSE),"") ->  | I163: =IFERROR((F163-(C163/Introduction!$B$3))/F163,"") ->  | J163: =IFERROR(F163/(C163/Introduction!$B$3),"") -> 
H164: =IFERROR(C164/VLOOKUP(B164,'Hidden Fields'!$A$2:$B$10,2,FALSE),"") ->  | I164: =IFERROR((F164-(C164/Introduction!$B$3))/F164,"") ->  | J164: =IFERROR(F164/(C164/Introduction!$B$3),"") -> 
H165: =IFERROR(C165/VLOOKUP(B165,'Hidden Fields'!$A$2:$B$10,2,FALSE),"") ->  | I165: =IFERROR((F165-(C165/Introduction!$B$3))/F165,"") ->  | J165: =IFERROR(F165/(C165/Introduction!$B$3),"") -> 
H166: =IFERROR(C166/VLOOKUP(B166,'Hidden Fields'!$A$2:$B$10,2,FALSE),"") ->  | I166: =IFERROR((F166-(C166/Introduction!$B$3))/F166,"") ->  | J166: =IFERROR(F166/(C166/Introduction!$B$3),"") -> 
H167: =IFERROR(C167/VLOOKUP(B167,'Hidden Fields'!$A$2:$B$10,2,FALSE),"") ->  | I167: =IFERROR((F167-(C167/Introduction!$B$3))/F167,"") ->  | J167: =IFERROR(F167/(C167/Introduction!$B$3),"") -> 
H168: =IFERROR(C168/VLOOKUP(B168,'Hidden Fields'!$A$2:$B$10,2,FALSE),"") ->  | I168: =IFERROR((F168-(C168/Introduction!$B$3))/F168,"") ->  | J168: =IFERROR(F168/(C168/Introduction!$B$3),"") -> 
H169: =IFERROR(C169/VLOOKUP(B169,'Hidden Fields'!$A$2:$B$10,2,FALSE),"") ->  | I169: =IFERROR((F169-(C169/Introduction!$B$3))/F169,"") ->  | J169: =IFERROR(F169/(C169/Introduction!$B$3),"") -> 
H170: =IFERROR(C170/VLOOKUP(B170,'Hidden Fields'!$A$2:$B$10,2,FALSE),"") ->  | I170: =IFERROR((F170-(C170/Introduction!$B$3))/F170,"") ->  | J170: =IFERROR(F170/(C170/Introduction!$B$3),"") -> 
H171: =IFERROR(C171/VLOOKUP(B171,'Hidden Fields'!$A$2:$B$10,2,FALSE),"") ->  | I171: =IFERROR((F171-(C171/Introduction!$B$3))/F171,"") ->  | J171: =IFERROR(F171/(C171/Introduction!$B$3),"") -> 
H172: =IFERROR(C172/VLOOKUP(B172,'Hidden Fields'!$A$2:$B$10,2,FALSE),"") ->  | I172: =IFERROR((F172-(C172/Introduction!$B$3))/F172,"") ->  | J172: =IFERROR(F172/(C172/Introduction!$B$3),"") -> 
H173: =IFERROR(C173/VLOOKUP(B173,'Hidden Fields'!$A$2:$B$10,2,FALSE),"") ->  | I173: =IFERROR((F173-(C173/Introduction!$B$3))/F173,"") ->  | J173: =IFERROR(F173/(C173/Introduction!$B$3),"") -> 
H174: =IFERROR(C174/VLOOKUP(B174,'Hidden Fields'!$A$2:$B$10,2,FALSE),"") ->  | I174: =IFERROR((F174-(C174/Introduction!$B$3))/F174,"") ->  | J174: =IFERROR(F174/(C174/Introduction!$B$3),"") -> 
H175: =IFERROR(C175/VLOOKUP(B175,'Hidden Fields'!$A$2:$B$10,2,FALSE),"") ->  | I175: =IFERROR((F175-(C175/Introduction!$B$3))/F175,"") ->  | J175: =IFERROR(F175/(C175/Introduction!$B$3),"") -> 
H176: =IFERROR(C176/VLOOKUP(B176,'Hidden Fields'!$A$2:$B$10,2,FALSE),"") ->  | I176: =IFERROR((F176-(C176/Introduction!$B$3))/F176,"") ->  | J176: =IFERROR(F176/(C176/Introduction!$B$3),"") -> 
H177: =IFERROR(C177/VLOOKUP(B177,'Hidden Fields'!$A$2:$B$10,2,FALSE),"") ->  | I177: =IFERROR((F177-(C177/Introduction!$B$3))/F177,"") ->  | J177: =IFERROR(F177/(C177/Introduction!$B$3),"") -> 
H178: =IFERROR(C178/VLOOKUP(B178,'Hidden Fields'!$A$2:$B$10,2,FALSE),"") ->  | I178: =IFERROR((F178-(C178/Introduction!$B$3))/F178,"") ->  | J178: =IFERROR(F178/(C178/Introduction!$B$3),"") -> 
H179: =IFERROR(C179/VLOOKUP(B179,'Hidden Fields'!$A$2:$B$10,2,FALSE),"") ->  | I179: =IFERROR((F179-(C179/Introduction!$B$3))/F179,"") ->  | J179: =IFERROR(F179/(C179/Introduction!$B$3),"") -> 
H180: =IFERROR(C180/VLOOKUP(B180,'Hidden Fields'!$A$2:$B$10,2,FALSE),"") ->  | I180: =IFERROR((F180-(C180/Introduction!$B$3))/F180,"") ->  | J180: =IFERROR(F180/(C180/Introduction!$B$3),"") -> 
H181: =IFERROR(C181/VLOOKUP(B181,'Hidden Fields'!$A$2:$B$10,2,FALSE),"") ->  | I181: =IFERROR((F181-(C181/Introduction!$B$3))/F181,"") ->  | J181: =IFERROR(F181/(C181/Introduction!$B$3),"") -> 
H182: =IFERROR(C182/VLOOKUP(B182,'Hidden Fields'!$A$2:$B$10,2,FALSE),"") ->  | I182: =IFERROR((F182-(C182/Introduction!$B$3))/F182,"") ->  | J182: =IFERROR(F182/(C182/Introduction!$B$3),"") -> 
H183: =IFERROR(C183/VLOOKUP(B183,'Hidden Fields'!$A$2:$B$10,2,FALSE),"") ->  | I183: =IFERROR((F183-(C183/Introduction!$B$3))/F183,"") ->  | J183: =IFERROR(F183/(C183/Introduction!$B$3),"") -> 
H184: =IFERROR(C184/VLOOKUP(B184,'Hidden Fields'!$A$2:$B$10,2,FALSE),"") ->  | I184: =IFERROR((F184-(C184/Introduction!$B$3))/F184,"") ->  | J184: =IFERROR(F184/(C184/Introduction!$B$3),"") -> 
H185: =IFERROR(C185/VLOOKUP(B185,'Hidden Fields'!$A$2:$B$10,2,FALSE),"") ->  | I185: =IFERROR((F185-(C185/Introduction!$B$3))/F185,"") ->  | J185: =IFERROR(F185/(C185/Introduction!$B$3),"") -> 
H186: =IFERROR(C186/VLOOKUP(B186,'Hidden Fields'!$A$2:$B$10,2,FALSE),"") ->  | I186: =IFERROR((F186-(C186/Introduction!$B$3))/F186,"") ->  | J186: =IFERROR(F186/(C186/Introduction!$B$3),"") -> 
H187: =IFERROR(C187/VLOOKUP(B187,'Hidden Fields'!$A$2:$B$10,2,FALSE),"") ->  | I187: =IFERROR((F187-(C187/Introduction!$B$3))/F187,"") ->  | J187: =IFERROR(F187/(C187/Introduction!$B$3),"") -> 
H188: =IFERROR(C188/VLOOKUP(B188,'Hidden Fields'!$A$2:$B$10,2,FALSE),"") ->  | I188: =IFERROR((F188-(C188/Introduction!$B$3))/F188,"") ->  | J188: =IFERROR(F188/(C188/Introduction!$B$3),"") -> 
H189: =IFERROR(C189/VLOOKUP(B189,'Hidden Fields'!$A$2:$B$10,2,FALSE),"") ->  | I189: =IFERROR((F189-(C189/Introduction!$B$3))/F189,"") ->  | J189: =IFERROR(F189/(C189/Introduction!$B$3),"") -> 
H190: =IFERROR(C190/VLOOKUP(B190,'Hidden Fields'!$A$2:$B$10,2,FALSE),"") ->  | I190: =IFERROR((F190-(C190/Introduction!$B$3))/F190,"") ->  | J190: =IFERROR(F190/(C190/Introduction!$B$3),"") -> 
H191: =IFERROR(C191/VLOOKUP(B191,'Hidden Fields'!$A$2:$B$10,2,FALSE),"") ->  | I191: =IFERROR((F191-(C191/Introduction!$B$3))/F191,"") ->  | J191: =IFERROR(F191/(C191/Introduction!$B$3),"") -> 
H192: =IFERROR(C192/VLOOKUP(B192,'Hidden Fields'!$A$2:$B$10,2,FALSE),"") ->  | I192: =IFERROR((F192-(C192/Introduction!$B$3))/F192,"") ->  | J192: =IFERROR(F192/(C192/Introduction!$B$3),"") -> 
H193: =IFERROR(C193/VLOOKUP(B193,'Hidden Fields'!$A$2:$B$10,2,FALSE),"") ->  | I193: =IFERROR((F193-(C193/Introduction!$B$3))/F193,"") ->  | J193: =IFERROR(F193/(C193/Introduction!$B$3),"") -> 
H194: =IFERROR(C194/VLOOKUP(B194,'Hidden Fields'!$A$2:$B$10,2,FALSE),"") ->  | I194: =IFERROR((F194-(C194/Introduction!$B$3))/F194,"") ->  | J194: =IFERROR(F194/(C194/Introduction!$B$3),"") -> 
H195: =IFERROR(C195/VLOOKUP(B195,'Hidden Fields'!$A$2:$B$10,2,FALSE),"") ->  | I195: =IFERROR((F195-(C195/Introduction!$B$3))/F195,"") ->  | J195: =IFERROR(F195/(C195/Introduction!$B$3),"") ->  | K195: =IFERROR((G195-C195)/G195,"") ->  | L195: =IFERROR(G195/C195,"") -> 
H196: =IFERROR(C196/VLOOKUP(B196,'Hidden Fields'!$A$2:$B$10,2,FALSE),"") ->  | I196: =IFERROR((F196-(C196/Introduction!$B$3))/F196,"") ->  | J196: =IFERROR(F196/(C196/Introduction!$B$3),"") -> 
H197: =IFERROR(C197/VLOOKUP(B197,'Hidden Fields'!$A$2:$B$10,2,FALSE),"") ->  | I197: =IFERROR((F197-(C197/Introduction!$B$3))/F197,"") ->  | J197: =IFERROR(F197/(C197/Introduction!$B$3),"") -> 
H198: =IFERROR(C198/VLOOKUP(B198,'Hidden Fields'!$A$2:$B$10,2,FALSE),"") ->  | I198: =IFERROR((F198-(C198/Introduction!$B$3))/F198,"") ->  | J198: =IFERROR(F198/(C198/Introduction!$B$3),"") -> 
H199: =IFERROR(C199/VLOOKUP(B199,'Hidden Fields'!$A$2:$B$10,2,FALSE),"") ->  | I199: =IFERROR((F199-(C199/Introduction!$B$3))/F199,"") ->  | J199: =IFERROR(F199/(C199/Introduction!$B$3),"") -> 
H200: =IFERROR(C200/VLOOKUP(B200,'Hidden Fields'!$A$2:$B$10,2,FALSE),"") ->  | I200: =IFERROR((F200-(C200/Introduction!$B$3))/F200,"") ->  | J200: =IFERROR(F200/(C200/Introduction!$B$3),"") -> 
... 214 more rows

Sheet Beers
A1: Beer Name | B1: Size | C1: Cost | D1: Distributor | E1: Category | F1: Type | G1: Menu Price | H1: Pour Size (oz) Draft | I1: $ cost/oz | J1: % Margin | K1: Markup
A2: Sample Beer 1 | B2: 12oz | C2: 0.75 | D2: Distributor B | E2: Bottle | F2: Lager | G2: 6 | I2: =IFERROR(C2/VLOOKUP(B2,'Hidden Fields'!$C$2:$D$10,2,FALSE),"") -> 0.0625 | J2: =IF(E2<>"Draft",IFERROR((G2-C2)/G2,""),IFERROR((G2-((C2*H2)/VLOOKUP(B2,'Hidden Fields'!$C$2:$D$10,2,FALSE)))/G2,"")) -> 0.875 | K2: =IF(E2<>"Draft",IFERROR(G2/C2,""),IFERROR((G2/((C2*H2)/VLOOKUP(B2,'Hidden Fields'!$C$2:$D$10,2,FALSE))),"")) -> 8
A3: Sample Beer 2 | B3: 1/2 barrel keg (15.5g) | C3: 189 | D3: Distributor C | E3: Draft | F3: India Pale Ale | G3: 7 | H3: 16 | I3: =IFERROR(C3/VLOOKUP(B3,'Hidden Fields'!$C$2:$D$10,2,FALSE),"") -> 0.09545454545 | J3: =IF(E3<>"Draft",IFERROR((G3-C3)/G3,""),IFERROR((G3-((C3*H3)/VLOOKUP(B3,'Hidden Fields'!$C$2:$D$10,2,FALSE)))/G3,"")) -> 0.7818181818 | K3: =IF(E3<>"Draft",IFERROR(G3/C3,""),IFERROR((G3/((C3*H3)/VLOOKUP(B3,'Hidden Fields'!$C$2:$D$10,2,FALSE))),"")) -> 4.583333333
A4: Sample Beer 3 | B4: 1/4 barrel keg (7.75g) | C4: 156 | D4: Distributor C | E4: Draft | F4: Brown Ale | G4: 7 | H4: 16 | I4: =IFERROR(C4/VLOOKUP(B4,'Hidden Fields'!$C$2:$D$10,2,FALSE),"") -> 0.1585365854 | J4: =IF(E4<>"Draft",IFERROR((G4-C4)/G4,""),IFERROR((G4-((C4*H4)/VLOOKUP(B4,'Hidden Fields'!$C$2:$D$10,2,FALSE)))/G4,"")) -> 0.637630662 | K4: =IF(E4<>"Draft",IFERROR(G4/C4,""),IFERROR((G4/((C4*H4)/VLOOKUP(B4,'Hidden Fields'!$C$2:$D$10,2,FALSE))),"")) -> 2.759615385
A5: Sample Beer 4 | B5: Cornelius keg (5g) | C5: 120 | D5: Distributor C | E5: Draft | F5: Belgian | G5: 7 | H5: 16 | I5: =IFERROR(C5/VLOOKUP(B5,'Hidden Fields'!$C$2:$D$10,2,FALSE),"") -> 0.1875 | J5: =IF(E5<>"Draft",IFERROR((G5-C5)/G5,""),IFERROR((G5-((C5*H5)/VLOOKUP(B5,'Hidden Fields'!$C$2:$D$10,2,FALSE)))/G5,"")) -> 0.5714285714 | K5: =IF(E5<>"Draft",IFERROR(G5/C5,""),IFERROR((G5/((C5*H5)/VLOOKUP(B5,'Hidden Fields'!$C$2:$D$10,2,FALSE))),"")) -> 2.333333333
A6: Sample Beer 5 | B6: 1/6 barrel keg (5.16g) | C6: 150 | D6: Distributor B | E6: Draft | F6: Belgian | G6: 7 | H6: 10 | I6: =IFERROR(C6/VLOOKUP(B6,'Hidden Fields'!$C$2:$D$10,2,FALSE),"") -> 0.2272727273 | J6: =IF(E6<>"Draft",IFERROR((G6-C6)/G6,""),IFERROR((G6-((C6*H6)/VLOOKUP(B6,'Hidden Fields'!$C$2:$D$10,2,FALSE)))/G6,"")) -> 0.6753246753 | K6: =IF(E6<>"Draft",IFERROR(G6/C6,""),IFERROR((G6/((C6*H6)/VLOOKUP(B6,'Hidden Fields'!$C$2:$D$10,2,FALSE))),"")) -> 3.08
I7: =IFERROR(C7/VLOOKUP(B7,'Hidden Fields'!$C$2:$D$10,2,FALSE),"") ->  | J7: =IF(E7<>"Draft",IFERROR((G7-C7)/G7,""),IFERROR((G7-((C7*H7)/VLOOKUP(B7,'Hidden Fields'!$C$2:$D$10,2,FALSE)))/G7,"")) ->  | K7: =IF(E7<>"Draft",IFERROR(G7/C7,""),IFERROR((G7/((C7*H7)/VLOOKUP(B7,'Hidden Fields'!$C$2:$D$10,2,FALSE))),"")) -> 
I8: =IFERROR(C8/VLOOKUP(B8,'Hidden Fields'!$C$2:$D$10,2,FALSE),"") ->  | J8: =IF(E8<>"Draft",IFERROR((G8-C8)/G8,""),IFERROR((G8-((C8*H8)/VLOOKUP(B8,'Hidden Fields'!$C$2:$D$10,2,FALSE)))/G8,"")) ->  | K8: =IF(E8<>"Draft",IFERROR(G8/C8,""),IFERROR((G8/((C8*H8)/VLOOKUP(B8,'Hidden Fields'!$C$2:$D$10,2,FALSE))),"")) -> 
I9: =IFERROR(C9/VLOOKUP(B9,'Hidden Fields'!$C$2:$D$10,2,FALSE),"") ->  | J9: =IF(E9<>"Draft",IFERROR((G9-C9)/G9,""),IFERROR((G9-((C9*H9)/VLOOKUP(B9,'Hidden Fields'!$C$2:$D$10,2,FALSE)))/G9,"")) ->  | K9: =IF(E9<>"Draft",IFERROR(G9/C9,""),IFERROR((G9/((C9*H9)/VLOOKUP(B9,'Hidden Fields'!$C$2:$D$10,2,FALSE))),"")) -> 
I10: =IFERROR(C10/VLOOKUP(B10,'Hidden Fields'!$C$2:$D$10,2,FALSE),"") ->  | J10: =IF(E10<>"Draft",IFERROR((G10-C10)/G10,""),IFERROR((G10-((C10*H10)/VLOOKUP(B10,'Hidden Fields'!$C$2:$D$10,2,FALSE)))/G10,"")) ->  | K10: =IF(E10<>"Draft",IFERROR(G10/C10,""),IFERROR((G10/((C10*H10)/VLOOKUP(B10,'Hidden Fields'!$C$2:$D$10,2,FALSE))),"")) -> 
I11: =IFERROR(C11/VLOOKUP(B11,'Hidden Fields'!$C$2:$D$10,2,FALSE),"") ->  | J11: =IF(E11<>"Draft",IFERROR((G11-C11)/G11,""),IFERROR((G11-((C11*H11)/VLOOKUP(B11,'Hidden Fields'!$C$2:$D$10,2,FALSE)))/G11,"")) ->  | K11: =IF(E11<>"Draft",IFERROR(G11/C11,""),IFERROR((G11/((C11*H11)/VLOOKUP(B11,'Hidden Fields'!$C$2:$D$10,2,FALSE))),"")) -> 
I12: =IFERROR(C12/VLOOKUP(B12,'Hidden Fields'!$C$2:$D$10,2,FALSE),"") ->  | J12: =IF(E12<>"Draft",IFERROR((G12-C12)/G12,""),IFERROR((G12-((C12*H12)/VLOOKUP(B12,'Hidden Fields'!$C$2:$D$10,2,FALSE)))/G12,"")) ->  | K12: =IF(E12<>"Draft",IFERROR(G12/C12,""),IFERROR((G12/((C12*H12)/VLOOKUP(B12,'Hidden Fields'!$C$2:$D$10,2,FALSE))),"")) -> 
I13: =IFERROR(C13/VLOOKUP(B13,'Hidden Fields'!$C$2:$D$10,2,FALSE),"") ->  | J13: =IF(E13<>"Draft",IFERROR((G13-C13)/G13,""),IFERROR((G13-((C13*H13)/VLOOKUP(B13,'Hidden Fields'!$C$2:$D$10,2,FALSE)))/G13,"")) ->  | K13: =IF(E13<>"Draft",IFERROR(G13/C13,""),IFERROR((G13/((C13*H13)/VLOOKUP(B13,'Hidden Fields'!$C$2:$D$10,2,FALSE))),"")) -> 
I14: =IFERROR(C14/VLOOKUP(B14,'Hidden Fields'!$C$2:$D$10,2,FALSE),"") ->  | J14: =IF(E14<>"Draft",IFERROR((G14-C14)/G14,""),IFERROR((G14-((C14*H14)/VLOOKUP(B14,'Hidden Fields'!$C$2:$D$10,2,FALSE)))/G14,"")) ->  | K14: =IF(E14<>"Draft",IFERROR(G14/C14,""),IFERROR((G14/((C14*H14)/VLOOKUP(B14,'Hidden Fields'!$C$2:$D$10,2,FALSE))),"")) -> 
I15: =IFERROR(C15/VLOOKUP(B15,'Hidden Fields'!$C$2:$D$10,2,FALSE),"") ->  | J15: =IF(E15<>"Draft",IFERROR((G15-C15)/G15,""),IFERROR((G15-((C15*H15)/VLOOKUP(B15,'Hidden Fields'!$C$2:$D$10,2,FALSE)))/G15,"")) ->  | K15: =IF(E15<>"Draft",IFERROR(G15/C15,""),IFERROR((G15/((C15*H15)/VLOOKUP(B15,'Hidden Fields'!$C$2:$D$10,2,FALSE))),"")) -> 
I16: =IFERROR(C16/VLOOKUP(B16,'Hidden Fields'!$C$2:$D$10,2,FALSE),"") ->  | J16: =IF(E16<>"Draft",IFERROR((G16-C16)/G16,""),IFERROR((G16-((C16*H16)/VLOOKUP(B16,'Hidden Fields'!$C$2:$D$10,2,FALSE)))/G16,"")) ->  | K16: =IF(E16<>"Draft",IFERROR(G16/C16,""),IFERROR((G16/((C16*H16)/VLOOKUP(B16,'Hidden Fields'!$C$2:$D$10,2,FALSE))),"")) -> 
I17: =IFERROR(C17/VLOOKUP(B17,'Hidden Fields'!$C$2:$D$10,2,FALSE),"") ->  | J17: =IF(E17<>"Draft",IFERROR((G17-C17)/G17,""),IFERROR((G17-((C17*H17)/VLOOKUP(B17,'Hidden Fields'!$C$2:$D$10,2,FALSE)))/G17,"")) ->  | K17: =IF(E17<>"Draft",IFERROR(G17/C17,""),IFERROR((G17/((C17*H17)/VLOOKUP(B17,'Hidden Fields'!$C$2:$D$10,2,FALSE))),"")) -> 
I18: =IFERROR(C18/VLOOKUP(B18,'Hidden Fields'!$C$2:$D$10,2,FALSE),"") ->  | J18: =IF(E18<>"Draft",IFERROR((G18-C18)/G18,""),IFERROR((G18-((C18*H18)/VLOOKUP(B18,'Hidden Fields'!$C$2:$D$10,2,FALSE)))/G18,"")) ->  | K18: =IF(E18<>"Draft",IFERROR(G18/C18,""),IFERROR((G18/((C18*H18)/VLOOKUP(B18,'Hidden Fields'!$C$2:$D$10,2,FALSE))),"")) -> 
I19: =IFERROR(C19/VLOOKUP(B19,'Hidden Fields'!$C$2:$D$10,2,FALSE),"") ->  | J19: =IF(E19<>"Draft",IFERROR((G19-C19)/G19,""),IFERROR((G19-((C19*H19)/VLOOKUP(B19,'Hidden Fields'!$C$2:$D$10,2,FALSE)))/G19,"")) ->  | K19: =IF(E19<>"Draft",IFERROR(G19/C19,""),IFERROR((G19/((C19*H19)/VLOOKUP(B19,'Hidden Fields'!$C$2:$D$10,2,FALSE))),"")) -> 
I20: =IFERROR(C20/VLOOKUP(B20,'Hidden Fields'!$C$2:$D$10,2,FALSE),"") ->  | J20: =IF(E20<>"Draft",IFERROR((G20-C20)/G20,""),IFERROR((G20-((C20*H20)/VLOOKUP(B20,'Hidden Fields'!$C$2:$D$10,2,FALSE)))/G20,"")) ->  | K20: =IF(E20<>"Draft",IFERROR(G20/C20,""),IFERROR((G20/((C20*H20)/VLOOKUP(B20,'Hidden Fields'!$C$2:$D$10,2,FALSE))),"")) -> 
I21: =IFERROR(C21/VLOOKUP(B21,'Hidden Fields'!$C$2:$D$10,2,FALSE),"") ->  | J21: =IF(E21<>"Draft",IFERROR((G21-C21)/G21,""),IFERROR((G21-((C21*H21)/VLOOKUP(B21,'Hidden Fields'!$C$2:$D$10,2,FALSE)))/G21,"")) ->  | K21: =IF(E21<>"Draft",IFERROR(G21/C21,""),IFERROR((G21/((C21*H21)/VLOOKUP(B21,'Hidden Fields'!$C$2:$D$10,2,FALSE))),"")) -> 
I22: =IFERROR(C22/VLOOKUP(B22,'Hidden Fields'!$C$2:$D$10,2,FALSE),"") ->  | J22: =IF(E22<>"Draft",IFERROR((G22-C22)/G22,""),IFERROR((G22-((C22*H22)/VLOOKUP(B22,'Hidden Fields'!$C$2:$D$10,2,FALSE)))/G22,"")) ->  | K22: =IF(E22<>"Draft",IFERROR(G22/C22,""),IFERROR((G22/((C22*H22)/VLOOKUP(B22,'Hidden Fields'!$C$2:$D$10,2,FALSE))),"")) -> 
I23: =IFERROR(C23/VLOOKUP(B23,'Hidden Fields'!$C$2:$D$10,2,FALSE),"") ->  | J23: =IF(E23<>"Draft",IFERROR((G23-C23)/G23,""),IFERROR((G23-((C23*H23)/VLOOKUP(B23,'Hidden Fields'!$C$2:$D$10,2,FALSE)))/G23,"")) ->  | K23: =IF(E23<>"Draft",IFERROR(G23/C23,""),IFERROR((G23/((C23*H23)/VLOOKUP(B23,'Hidden Fields'!$C$2:$D$10,2,FALSE))),"")) -> 
I24: =IFERROR(C24/VLOOKUP(B24,'Hidden Fields'!$C$2:$D$10,2,FALSE),"") ->  | J24: =IF(E24<>"Draft",IFERROR((G24-C24)/G24,""),IFERROR((G24-((C24*H24)/VLOOKUP(B24,'Hidden Fields'!$C$2:$D$10,2,FALSE)))/G24,"")) ->  | K24: =IF(E24<>"Draft",IFERROR(G24/C24,""),IFERROR((G24/((C24*H24)/VLOOKUP(B24,'Hidden Fields'!$C$2:$D$10,2,FALSE))),"")) -> 
I25: =IFERROR(C25/VLOOKUP(B25,'Hidden Fields'!$C$2:$D$10,2,FALSE),"") ->  | J25: =IF(E25<>"Draft",IFERROR((G25-C25)/G25,""),IFERROR((G25-((C25*H25)/VLOOKUP(B25,'Hidden Fields'!$C$2:$D$10,2,FALSE)))/G25,"")) ->  | K25: =IF(E25<>"Draft",IFERROR(G25/C25,""),IFERROR((G25/((C25*H25)/VLOOKUP(B25,'Hidden Fields'!$C$2:$D$10,2,FALSE))),"")) -> 
I26: =IFERROR(C26/VLOOKUP(B26,'Hidden Fields'!$C$2:$D$10,2,FALSE),"") ->  | J26: =IF(E26<>"Draft",IFERROR((G26-C26)/G26,""),IFERROR((G26-((C26*H26)/VLOOKUP(B26,'Hidden Fields'!$C$2:$D$10,2,FALSE)))/G26,"")) ->  | K26: =IF(E26<>"Draft",IFERROR(G26/C26,""),IFERROR((G26/((C26*H26)/VLOOKUP(B26,'Hidden Fields'!$C$2:$D$10,2,FALSE))),"")) -> 
I27: =IFERROR(C27/VLOOKUP(B27,'Hidden Fields'!$C$2:$D$10,2,FALSE),"") ->  | J27: =IF(E27<>"Draft",IFERROR((G27-C27)/G27,""),IFERROR((G27-((C27*H27)/VLOOKUP(B27,'Hidden Fields'!$C$2:$D$10,2,FALSE)))/G27,"")) ->  | K27: =IF(E27<>"Draft",IFERROR(G27/C27,""),IFERROR((G27/((C27*H27)/VLOOKUP(B27,'Hidden Fields'!$C$2:$D$10,2,FALSE))),"")) -> 
I28: =IFERROR(C28/VLOOKUP(B28,'Hidden Fields'!$C$2:$D$10,2,FALSE),"") ->  | J28: =IF(E28<>"Draft",IFERROR((G28-C28)/G28,""),IFERROR((G28-((C28*H28)/VLOOKUP(B28,'Hidden Fields'!$C$2:$D$10,2,FALSE)))/G28,"")) ->  | K28: =IF(E28<>"Draft",IFERROR(G28/C28,""),IFERROR((G28/((C28*H28)/VLOOKUP(B28,'Hidden Fields'!$C$2:$D$10,2,FALSE))),"")) -> 
I29: =IFERROR(C29/VLOOKUP(B29,'Hidden Fields'!$C$2:$D$10,2,FALSE),"") ->  | J29: =IF(E29<>"Draft",IFERROR((G29-C29)/G29,""),IFERROR((G29-((C29*H29)/VLOOKUP(B29,'Hidden Fields'!$C$2:$D$10,2,FALSE)))/G29,"")) ->  | K29: =IF(E29<>"Draft",IFERROR(G29/C29,""),IFERROR((G29/((C29*H29)/VLOOKUP(B29,'Hidden Fields'!$C$2:$D$10,2,FALSE))),"")) -> 
I30: =IFERROR(C30/VLOOKUP(B30,'Hidden Fields'!$C$2:$D$10,2,FALSE),"") ->  | J30: =IF(E30<>"Draft",IFERROR((G30-C30)/G30,""),IFERROR((G30-((C30*H30)/VLOOKUP(B30,'Hidden Fields'!$C$2:$D$10,2,FALSE)))/G30,"")) ->  | K30: =IF(E30<>"Draft",IFERROR(G30/C30,""),IFERROR((G30/((C30*H30)/VLOOKUP(B30,'Hidden Fields'!$C$2:$D$10,2,FALSE))),"")) -> 
I31: =IFERROR(C31/VLOOKUP(B31,'Hidden Fields'!$C$2:$D$10,2,FALSE),"") ->  | J31: =IF(E31<>"Draft",IFERROR((G31-C31)/G31,""),IFERROR((G31-((C31*H31)/VLOOKUP(B31,'Hidden Fields'!$C$2:$D$10,2,FALSE)))/G31,"")) ->  | K31: =IF(E31<>"Draft",IFERROR(G31/C31,""),IFERROR((G31/((C31*H31)/VLOOKUP(B31,'Hidden Fields'!$C$2:$D$10,2,FALSE))),"")) -> 
I32: =IFERROR(C32/VLOOKUP(B32,'Hidden Fields'!$C$2:$D$10,2,FALSE),"") ->  | J32: =IF(E32<>"Draft",IFERROR((G32-C32)/G32,""),IFERROR((G32-((C32*H32)/VLOOKUP(B32,'Hidden Fields'!$C$2:$D$10,2,FALSE)))/G32,"")) ->  | K32: =IF(E32<>"Draft",IFERROR(G32/C32,""),IFERROR((G32/((C32*H32)/VLOOKUP(B32,'Hidden Fields'!$C$2:$D$10,2,FALSE))),"")) -> 
I33: =IFERROR(C33/VLOOKUP(B33,'Hidden Fields'!$C$2:$D$10,2,FALSE),"") ->  | J33: =IF(E33<>"Draft",IFERROR((G33-C33)/G33,""),IFERROR((G33-((C33*H33)/VLOOKUP(B33,'Hidden Fields'!$C$2:$D$10,2,FALSE)))/G33,"")) ->  | K33: =IF(E33<>"Draft",IFERROR(G33/C33,""),IFERROR((G33/((C33*H33)/VLOOKUP(B33,'Hidden Fields'!$C$2:$D$10,2,FALSE))),"")) -> 
I34: =IFERROR(C34/VLOOKUP(B34,'Hidden Fields'!$C$2:$D$10,2,FALSE),"") ->  | J34: =IF(E34<>"Draft",IFERROR((G34-C34)/G34,""),IFERROR((G34-((C34*H34)/VLOOKUP(B34,'Hidden Fields'!$C$2:$D$10,2,FALSE)))/G34,"")) ->  | K34: =IF(E34<>"Draft",IFERROR(G34/C34,""),IFERROR((G34/((C34*H34)/VLOOKUP(B34,'Hidden Fields'!$C$2:$D$10,2,FALSE))),"")) -> 
I35: =IFERROR(C35/VLOOKUP(B35,'Hidden Fields'!$C$2:$D$10,2,FALSE),"") ->  | J35: =IF(E35<>"Draft",IFERROR((G35-C35)/G35,""),IFERROR((G35-((C35*H35)/VLOOKUP(B35,'Hidden Fields'!$C$2:$D$10,2,FALSE)))/G35,"")) ->  | K35: =IF(E35<>"Draft",IFERROR(G35/C35,""),IFERROR((G35/((C35*H35)/VLOOKUP(B35,'Hidden Fields'!$C$2:$D$10,2,FALSE))),"")) -> 
I36: =IFERROR(C36/VLOOKUP(B36,'Hidden Fields'!$C$2:$D$10,2,FALSE),"") ->  | J36: =IF(E36<>"Draft",IFERROR((G36-C36)/G36,""),IFERROR((G36-((C36*H36)/VLOOKUP(B36,'Hidden Fields'!$C$2:$D$10,2,FALSE)))/G36,"")) ->  | K36: =IF(E36<>"Draft",IFERROR(G36/C36,""),IFERROR((G36/((C36*H36)/VLOOKUP(B36,'Hidden Fields'!$C$2:$D$10,2,FALSE))),"")) -> 
I37: =IFERROR(C37/VLOOKUP(B37,'Hidden Fields'!$C$2:$D$10,2,FALSE),"") ->  | J37: =IF(E37<>"Draft",IFERROR((G37-C37)/G37,""),IFERROR((G37-((C37*H37)/VLOOKUP(B37,'Hidden Fields'!$C$2:$D$10,2,FALSE)))/G37,"")) ->  | K37: =IF(E37<>"Draft",IFERROR(G37/C37,""),IFERROR((G37/((C37*H37)/VLOOKUP(B37,'Hidden Fields'!$C$2:$D$10,2,FALSE))),"")) -> 
I38: =IFERROR(C38/VLOOKUP(B38,'Hidden Fields'!$C$2:$D$10,2,FALSE),"") ->  | J38: =IF(E38<>"Draft",IFERROR((G38-C38)/G38,""),IFERROR((G38-((C38*H38)/VLOOKUP(B38,'Hidden Fields'!$C$2:$D$10,2,FALSE)))/G38,"")) ->  | K38: =IF(E38<>"Draft",IFERROR(G38/C38,""),IFERROR((G38/((C38*H38)/VLOOKUP(B38,'Hidden Fields'!$C$2:$D$10,2,FALSE))),"")) -> 
I39: =IFERROR(C39/VLOOKUP(B39,'Hidden Fields'!$C$2:$D$10,2,FALSE),"") ->  | J39: =IF(E39<>"Draft",IFERROR((G39-C39)/G39,""),IFERROR((G39-((C39*H39)/VLOOKUP(B39,'Hidden Fields'!$C$2:$D$10,2,FALSE)))/G39,"")) ->  | K39: =IF(E39<>"Draft",IFERROR(G39/C39,""),IFERROR((G39/((C39*H39)/VLOOKUP(B39,'Hidden Fields'!$C$2:$D$10,2,FALSE))),"")) -> 
I40: =IFERROR(C40/VLOOKUP(B40,'Hidden Fields'!$C$2:$D$10,2,FALSE),"") ->  | J40: =IF(E40<>"Draft",IFERROR((G40-C40)/G40,""),IFERROR((G40-((C40*H40)/VLOOKUP(B40,'Hidden Fields'!$C$2:$D$10,2,FALSE)))/G40,"")) ->  | K40: =IF(E40<>"Draft",IFERROR(G40/C40,""),IFERROR((G40/((C40*H40)/VLOOKUP(B40,'Hidden Fields'!$C$2:$D$10,2,FALSE))),"")) -> 
I41: =IFERROR(C41/VLOOKUP(B41,'Hidden Fields'!$C$2:$D$10,2,FALSE),"") ->  | J41: =IF(E41<>"Draft",IFERROR((G41-C41)/G41,""),IFERROR((G41-((C41*H41)/VLOOKUP(B41,'Hidden Fields'!$C$2:$D$10,2,FALSE)))/G41,"")) ->  | K41: =IF(E41<>"Draft",IFERROR(G41/C41,""),IFERROR((G41/((C41*H41)/VLOOKUP(B41,'Hidden Fields'!$C$2:$D$10,2,FALSE))),"")) -> 
I42: =IFERROR(C42/VLOOKUP(B42,'Hidden Fields'!$C$2:$D$10,2,FALSE),"") ->  | J42: =IF(E42<>"Draft",IFERROR((G42-C42)/G42,""),IFERROR((G42-((C42*H42)/VLOOKUP(B42,'Hidden Fields'!$C$2:$D$10,2,FALSE)))/G42,"")) ->  | K42: =IF(E42<>"Draft",IFERROR(G42/C42,""),IFERROR((G42/((C42*H42)/VLOOKUP(B42,'Hidden Fields'!$C$2:$D$10,2,FALSE))),"")) -> 
I43: =IFERROR(C43/VLOOKUP(B43,'Hidden Fields'!$C$2:$D$10,2,FALSE),"") ->  | J43: =IF(E43<>"Draft",IFERROR((G43-C43)/G43,""),IFERROR((G43-((C43*H43)/VLOOKUP(B43,'Hidden Fields'!$C$2:$D$10,2,FALSE)))/G43,"")) ->  | K43: =IF(E43<>"Draft",IFERROR(G43/C43,""),IFERROR((G43/((C43*H43)/VLOOKUP(B43,'Hidden Fields'!$C$2:$D$10,2,FALSE))),"")) -> 
I44: =IFERROR(C44/VLOOKUP(B44,'Hidden Fields'!$C$2:$D$10,2,FALSE),"") ->  | J44: =IF(E44<>"Draft",IFERROR((G44-C44)/G44,""),IFERROR((G44-((C44*H44)/VLOOKUP(B44,'Hidden Fields'!$C$2:$D$10,2,FALSE)))/G44,"")) ->  | K44: =IF(E44<>"Draft",IFERROR(G44/C44,""),IFERROR((G44/((C44*H44)/VLOOKUP(B44,'Hidden Fields'!$C$2:$D$10,2,FALSE))),"")) -> 
I45: =IFERROR(C45/VLOOKUP(B45,'Hidden Fields'!$C$2:$D$10,2,FALSE),"") ->  | J45: =IF(E45<>"Draft",IFERROR((G45-C45)/G45,""),IFERROR((G45-((C45*H45)/VLOOKUP(B45,'Hidden Fields'!$C$2:$D$10,2,FALSE)))/G45,"")) ->  | K45: =IF(E45<>"Draft",IFERROR(G45/C45,""),IFERROR((G45/((C45*H45)/VLOOKUP(B45,'Hidden Fields'!$C$2:$D$10,2,FALSE))),"")) -> 
I46: =IFERROR(C46/VLOOKUP(B46,'Hidden Fields'!$C$2:$D$10,2,FALSE),"") ->  | J46: =IF(E46<>"Draft",IFERROR((G46-C46)/G46,""),IFERROR((G46-((C46*H46)/VLOOKUP(B46,'Hidden Fields'!$C$2:$D$10,2,FALSE)))/G46,"")) ->  | K46: =IF(E46<>"Draft",IFERROR(G46/C46,""),IFERROR((G46/((C46*H46)/VLOOKUP(B46,'Hidden Fields'!$C$2:$D$10,2,FALSE))),"")) -> 
I47: =IFERROR(C47/VLOOKUP(B47,'Hidden Fields'!$C$2:$D$10,2,FALSE),"") ->  | J47: =IF(E47<>"Draft",IFERROR((G47-C47)/G47,""),IFERROR((G47-((C47*H47)/VLOOKUP(B47,'Hidden Fields'!$C$2:$D$10,2,FALSE)))/G47,"")) ->  | K47: =IF(E47<>"Draft",IFERROR(G47/C47,""),IFERROR((G47/((C47*H47)/VLOOKUP(B47,'Hidden Fields'!$C$2:$D$10,2,FALSE))),"")) -> 
I48: =IFERROR(C48/VLOOKUP(B48,'Hidden Fields'!$C$2:$D$10,2,FALSE),"") ->  | J48: =IF(E48<>"Draft",IFERROR((G48-C48)/G48,""),IFERROR((G48-((C48*H48)/VLOOKUP(B48,'Hidden Fields'!$C$2:$D$10,2,FALSE)))/G48,"")) ->  | K48: =IF(E48<>"Draft",IFERROR(G48/C48,""),IFERROR((G48/((C48*H48)/VLOOKUP(B48,'Hidden Fields'!$C$2:$D$10,2,FALSE))),"")) -> 
I49: =IFERROR(C49/VLOOKUP(B49,'Hidden Fields'!$C$2:$D$10,2,FALSE),"") ->  | J49: =IF(E49<>"Draft",IFERROR((G49-C49)/G49,""),IFERROR((G49-((C49*H49)/VLOOKUP(B49,'Hidden Fields'!$C$2:$D$10,2,FALSE)))/G49,"")) ->  | K49: =IF(E49<>"Draft",IFERROR(G49/C49,""),IFERROR((G49/((C49*H49)/VLOOKUP(B49,'Hidden Fields'!$C$2:$D$10,2,FALSE))),"")) -> 
I50: =IFERROR(C50/VLOOKUP(B50,'Hidden Fields'!$C$2:$D$10,2,FALSE),"") ->  | J50: =IF(E50<>"Draft",IFERROR((G50-C50)/G50,""),IFERROR((G50-((C50*H50)/VLOOKUP(B50,'Hidden Fields'!$C$2:$D$10,2,FALSE)))/G50,"")) ->  | K50: =IF(E50<>"Draft",IFERROR(G50/C50,""),IFERROR((G50/((C50*H50)/VLOOKUP(B50,'Hidden Fields'!$C$2:$D$10,2,FALSE))),"")) -> 
I51: =IFERROR(C51/VLOOKUP(B51,'Hidden Fields'!$C$2:$D$10,2,FALSE),"") ->  | J51: =IF(E51<>"Draft",IFERROR((G51-C51)/G51,""),IFERROR((G51-((C51*H51)/VLOOKUP(B51,'Hidden Fields'!$C$2:$D$10,2,FALSE)))/G51,"")) ->  | K51: =IF(E51<>"Draft",IFERROR(G51/C51,""),IFERROR((G51/((C51*H51)/VLOOKUP(B51,'Hidden Fields'!$C$2:$D$10,2,FALSE))),"")) -> 
I52: =IFERROR(C52/VLOOKUP(B52,'Hidden Fields'!$C$2:$D$10,2,FALSE),"") ->  | J52: =IF(E52<>"Draft",IFERROR((G52-C52)/G52,""),IFERROR((G52-((C52*H52)/VLOOKUP(B52,'Hidden Fields'!$C$2:$D$10,2,FALSE)))/G52,"")) ->  | K52: =IF(E52<>"Draft",IFERROR(G52/C52,""),IFERROR((G52/((C52*H52)/VLOOKUP(B52,'Hidden Fields'!$C$2:$D$10,2,FALSE))),"")) -> 
I53: =IFERROR(C53/VLOOKUP(B53,'Hidden Fields'!$C$2:$D$10,2,FALSE),"") ->  | J53: =IF(E53<>"Draft",IFERROR((G53-C53)/G53,""),IFERROR((G53-((C53*H53)/VLOOKUP(B53,'Hidden Fields'!$C$2:$D$10,2,FALSE)))/G53,"")) ->  | K53: =IF(E53<>"Draft",IFERROR(G53/C53,""),IFERROR((G53/((C53*H53)/VLOOKUP(B53,'Hidden Fields'!$C$2:$D$10,2,FALSE))),"")) -> 
I54: =IFERROR(C54/VLOOKUP(B54,'Hidden Fields'!$C$2:$D$10,2,FALSE),"") ->  | J54: =IF(E54<>"Draft",IFERROR((G54-C54)/G54,""),IFERROR((G54-((C54*H54)/VLOOKUP(B54,'Hidden Fields'!$C$2:$D$10,2,FALSE)))/G54,"")) ->  | K54: =IF(E54<>"Draft",IFERROR(G54/C54,""),IFERROR((G54/((C54*H54)/VLOOKUP(B54,'Hidden Fields'!$C$2:$D$10,2,FALSE))),"")) -> 
I55: =IFERROR(C55/VLOOKUP(B55,'Hidden Fields'!$C$2:$D$10,2,FALSE),"") ->  | J55: =IF(E55<>"Draft",IFERROR((G55-C55)/G55,""),IFERROR((G55-((C55*H55)/VLOOKUP(B55,'Hidden Fields'!$C$2:$D$10,2,FALSE)))/G55,"")) ->  | K55: =IF(E55<>"Draft",IFERROR(G55/C55,""),IFERROR((G55/((C55*H55)/VLOOKUP(B55,'Hidden Fields'!$C$2:$D$10,2,FALSE))),"")) -> 
I56: =IFERROR(C56/VLOOKUP(B56,'Hidden Fields'!$C$2:$D$10,2,FALSE),"") ->  | J56: =IF(E56<>"Draft",IFERROR((G56-C56)/G56,""),IFERROR((G56-((C56*H56)/VLOOKUP(B56,'Hidden Fields'!$C$2:$D$10,2,FALSE)))/G56,"")) ->  | K56: =IF(E56<>"Draft",IFERROR(G56/C56,""),IFERROR((G56/((C56*H56)/VLOOKUP(B56,'Hidden Fields'!$C$2:$D$10,2,FALSE))),"")) -> 
I57: =IFERROR(C57/VLOOKUP(B57,'Hidden Fields'!$C$2:$D$10,2,FALSE),"") ->  | J57: =IF(E57<>"Draft",IFERROR((G57-C57)/G57,""),IFERROR((G57-((C57*H57)/VLOOKUP(B57,'Hidden Fields'!$C$2:$D$10,2,FALSE)))/G57,"")) ->  | K57: =IF(E57<>"Draft",IFERROR(G57/C57,""),IFERROR((G57/((C57*H57)/VLOOKUP(B57,'Hidden Fields'!$C$2:$D$10,2,FALSE))),"")) -> 
I58: =IFERROR(C58/VLOOKUP(B58,'Hidden Fields'!$C$2:$D$10,2,FALSE),"") ->  | J58: =IF(E58<>"Draft",IFERROR((G58-C58)/G58,""),IFERROR((G58-((C58*H58)/VLOOKUP(B58,'Hidden Fields'!$C$2:$D$10,2,FALSE)))/G58,"")) ->  | K58: =IF(E58<>"Draft",IFERROR(G58/C58,""),IFERROR((G58/((C58*H58)/VLOOKUP(B58,'Hidden Fields'!$C$2:$D$10,2,FALSE))),"")) -> 
I59: =IFERROR(C59/VLOOKUP(B59,'Hidden Fields'!$C$2:$D$10,2,FALSE),"") ->  | J59: =IF(E59<>"Draft",IFERROR((G59-C59)/G59,""),IFERROR((G59-((C59*H59)/VLOOKUP(B59,'Hidden Fields'!$C$2:$D$10,2,FALSE)))/G59,"")) ->  | K59: =IF(E59<>"Draft",IFERROR(G59/C59,""),IFERROR((G59/((C59*H59)/VLOOKUP(B59,'Hidden Fields'!$C$2:$D$10,2,FALSE))),"")) -> 
I60: =IFERROR(C60/VLOOKUP(B60,'Hidden Fields'!$C$2:$D$10,2,FALSE),"") ->  | J60: =IF(E60<>"Draft",IFERROR((G60-C60)/G60,""),IFERROR((G60-((C60*H60)/VLOOKUP(B60,'Hidden Fields'!$C$2:$D$10,2,FALSE)))/G60,"")) ->  | K60: =IF(E60<>"Draft",IFERROR(G60/C60,""),IFERROR((G60/((C60*H60)/VLOOKUP(B60,'Hidden Fields'!$C$2:$D$10,2,FALSE))),"")) -> 
I61: =IFERROR(C61/VLOOKUP(B61,'Hidden Fields'!$C$2:$D$10,2,FALSE),"") ->  | J61: =IF(E61<>"Draft",IFERROR((G61-C61)/G61,""),IFERROR((G61-((C61*H61)/VLOOKUP(B61,'Hidden Fields'!$C$2:$D$10,2,FALSE)))/G61,"")) ->  | K61: =IF(E61<>"Draft",IFERROR(G61/C61,""),IFERROR((G61/((C61*H61)/VLOOKUP(B61,'Hidden Fields'!$C$2:$D$10,2,FALSE))),"")) -> 
I62: =IFERROR(C62/VLOOKUP(B62,'Hidden Fields'!$C$2:$D$10,2,FALSE),"") ->  | J62: =IF(E62<>"Draft",IFERROR((G62-C62)/G62,""),IFERROR((G62-((C62*H62)/VLOOKUP(B62,'Hidden Fields'!$C$2:$D$10,2,FALSE)))/G62,"")) ->  | K62: =IF(E62<>"Draft",IFERROR(G62/C62,""),IFERROR((G62/((C62*H62)/VLOOKUP(B62,'Hidden Fields'!$C$2:$D$10,2,FALSE))),"")) -> 
I63: =IFERROR(C63/VLOOKUP(B63,'Hidden Fields'!$C$2:$D$10,2,FALSE),"") ->  | J63: =IF(E63<>"Draft",IFERROR((G63-C63)/G63,""),IFERROR((G63-((C63*H63)/VLOOKUP(B63,'Hidden Fields'!$C$2:$D$10,2,FALSE)))/G63,"")) ->  | K63: =IF(E63<>"Draft",IFERROR(G63/C63,""),IFERROR((G63/((C63*H63)/VLOOKUP(B63,'Hidden Fields'!$C$2:$D$10,2,FALSE))),"")) -> 
I64: =IFERROR(C64/VLOOKUP(B64,'Hidden Fields'!$C$2:$D$10,2,FALSE),"") ->  | J64: =IF(E64<>"Draft",IFERROR((G64-C64)/G64,""),IFERROR((G64-((C64*H64)/VLOOKUP(B64,'Hidden Fields'!$C$2:$D$10,2,FALSE)))/G64,"")) ->  | K64: =IF(E64<>"Draft",IFERROR(G64/C64,""),IFERROR((G64/((C64*H64)/VLOOKUP(B64,'Hidden Fields'!$C$2:$D$10,2,FALSE))),"")) -> 
I65: =IFERROR(C65/VLOOKUP(B65,'Hidden Fields'!$C$2:$D$10,2,FALSE),"") ->  | J65: =IF(E65<>"Draft",IFERROR((G65-C65)/G65,""),IFERROR((G65-((C65*H65)/VLOOKUP(B65,'Hidden Fields'!$C$2:$D$10,2,FALSE)))/G65,"")) ->  | K65: =IF(E65<>"Draft",IFERROR(G65/C65,""),IFERROR((G65/((C65*H65)/VLOOKUP(B65,'Hidden Fields'!$C$2:$D$10,2,FALSE))),"")) -> 
I66: =IFERROR(C66/VLOOKUP(B66,'Hidden Fields'!$C$2:$D$10,2,FALSE),"") ->  | J66: =IF(E66<>"Draft",IFERROR((G66-C66)/G66,""),IFERROR((G66-((C66*H66)/VLOOKUP(B66,'Hidden Fields'!$C$2:$D$10,2,FALSE)))/G66,"")) ->  | K66: =IF(E66<>"Draft",IFERROR(G66/C66,""),IFERROR((G66/((C66*H66)/VLOOKUP(B66,'Hidden Fields'!$C$2:$D$10,2,FALSE))),"")) -> 
I67: =IFERROR(C67/VLOOKUP(B67,'Hidden Fields'!$C$2:$D$10,2,FALSE),"") ->  | J67: =IF(E67<>"Draft",IFERROR((G67-C67)/G67,""),IFERROR((G67-((C67*H67)/VLOOKUP(B67,'Hidden Fields'!$C$2:$D$10,2,FALSE)))/G67,"")) ->  | K67: =IF(E67<>"Draft",IFERROR(G67/C67,""),IFERROR((G67/((C67*H67)/VLOOKUP(B67,'Hidden Fields'!$C$2:$D$10,2,FALSE))),"")) -> 
I68: =IFERROR(C68/VLOOKUP(B68,'Hidden Fields'!$C$2:$D$10,2,FALSE),"") ->  | J68: =IF(E68<>"Draft",IFERROR((G68-C68)/G68,""),IFERROR((G68-((C68*H68)/VLOOKUP(B68,'Hidden Fields'!$C$2:$D$10,2,FALSE)))/G68,"")) ->  | K68: =IF(E68<>"Draft",IFERROR(G68/C68,""),IFERROR((G68/((C68*H68)/VLOOKUP(B68,'Hidden Fields'!$C$2:$D$10,2,FALSE))),"")) -> 
I69: =IFERROR(C69/VLOOKUP(B69,'Hidden Fields'!$C$2:$D$10,2,FALSE),"") ->  | J69: =IF(E69<>"Draft",IFERROR((G69-C69)/G69,""),IFERROR((G69-((C69*H69)/VLOOKUP(B69,'Hidden Fields'!$C$2:$D$10,2,FALSE)))/G69,"")) ->  | K69: =IF(E69<>"Draft",IFERROR(G69/C69,""),IFERROR((G69/((C69*H69)/VLOOKUP(B69,'Hidden Fields'!$C$2:$D$10,2,FALSE))),"")) -> 
I70: =IFERROR(C70/VLOOKUP(B70,'Hidden Fields'!$C$2:$D$10,2,FALSE),"") ->  | J70: =IF(E70<>"Draft",IFERROR((G70-C70)/G70,""),IFERROR((G70-((C70*H70)/VLOOKUP(B70,'Hidden Fields'!$C$2:$D$10,2,FALSE)))/G70,"")) ->  | K70: =IF(E70<>"Draft",IFERROR(G70/C70,""),IFERROR((G70/((C70*H70)/VLOOKUP(B70,'Hidden Fields'!$C$2:$D$10,2,FALSE))),"")) -> 
I71: =IFERROR(C71/VLOOKUP(B71,'Hidden Fields'!$C$2:$D$10,2,FALSE),"") ->  | J71: =IF(E71<>"Draft",IFERROR((G71-C71)/G71,""),IFERROR((G71-((C71*H71)/VLOOKUP(B71,'Hidden Fields'!$C$2:$D$10,2,FALSE)))/G71,"")) ->  | K71: =IF(E71<>"Draft",IFERROR(G71/C71,""),IFERROR((G71/((C71*H71)/VLOOKUP(B71,'Hidden Fields'!$C$2:$D$10,2,FALSE))),"")) -> 
I72: =IFERROR(C72/VLOOKUP(B72,'Hidden Fields'!$C$2:$D$10,2,FALSE),"") ->  | J72: =IF(E72<>"Draft",IFERROR((G72-C72)/G72,""),IFERROR((G72-((C72*H72)/VLOOKUP(B72,'Hidden Fields'!$C$2:$D$10,2,FALSE)))/G72,"")) ->  | K72: =IF(E72<>"Draft",IFERROR(G72/C72,""),IFERROR((G72/((C72*H72)/VLOOKUP(B72,'Hidden Fields'!$C$2:$D$10,2,FALSE))),"")) -> 
I73: =IFERROR(C73/VLOOKUP(B73,'Hidden Fields'!$C$2:$D$10,2,FALSE),"") ->  | J73: =IF(E73<>"Draft",IFERROR((G73-C73)/G73,""),IFERROR((G73-((C73*H73)/VLOOKUP(B73,'Hidden Fields'!$C$2:$D$10,2,FALSE)))/G73,"")) ->  | K73: =IF(E73<>"Draft",IFERROR(G73/C73,""),IFERROR((G73/((C73*H73)/VLOOKUP(B73,'Hidden Fields'!$C$2:$D$10,2,FALSE))),"")) -> 
I74: =IFERROR(C74/VLOOKUP(B74,'Hidden Fields'!$C$2:$D$10,2,FALSE),"") ->  | J74: =IF(E74<>"Draft",IFERROR((G74-C74)/G74,""),IFERROR((G74-((C74*H74)/VLOOKUP(B74,'Hidden Fields'!$C$2:$D$10,2,FALSE)))/G74,"")) ->  | K74: =IF(E74<>"Draft",IFERROR(G74/C74,""),IFERROR((G74/((C74*H74)/VLOOKUP(B74,'Hidden Fields'!$C$2:$D$10,2,FALSE))),"")) -> 
I75: =IFERROR(C75/VLOOKUP(B75,'Hidden Fields'!$C$2:$D$10,2,FALSE),"") ->  | J75: =IF(E75<>"Draft",IFERROR((G75-C75)/G75,""),IFERROR((G75-((C75*H75)/VLOOKUP(B75,'Hidden Fields'!$C$2:$D$10,2,FALSE)))/G75,"")) ->  | K75: =IF(E75<>"Draft",IFERROR(G75/C75,""),IFERROR((G75/((C75*H75)/VLOOKUP(B75,'Hidden Fields'!$C$2:$D$10,2,FALSE))),"")) -> 
I76: =IFERROR(C76/VLOOKUP(B76,'Hidden Fields'!$C$2:$D$10,2,FALSE),"") ->  | J76: =IF(E76<>"Draft",IFERROR((G76-C76)/G76,""),IFERROR((G76-((C76*H76)/VLOOKUP(B76,'Hidden Fields'!$C$2:$D$10,2,FALSE)))/G76,"")) ->  | K76: =IF(E76<>"Draft",IFERROR(G76/C76,""),IFERROR((G76/((C76*H76)/VLOOKUP(B76,'Hidden Fields'!$C$2:$D$10,2,FALSE))),"")) -> 
I77: =IFERROR(C77/VLOOKUP(B77,'Hidden Fields'!$C$2:$D$10,2,FALSE),"") ->  | J77: =IF(E77<>"Draft",IFERROR((G77-C77)/G77,""),IFERROR((G77-((C77*H77)/VLOOKUP(B77,'Hidden Fields'!$C$2:$D$10,2,FALSE)))/G77,"")) ->  | K77: =IF(E77<>"Draft",IFERROR(G77/C77,""),IFERROR((G77/((C77*H77)/VLOOKUP(B77,'Hidden Fields'!$C$2:$D$10,2,FALSE))),"")) -> 
I78: =IFERROR(C78/VLOOKUP(B78,'Hidden Fields'!$C$2:$D$10,2,FALSE),"") ->  | J78: =IF(E78<>"Draft",IFERROR((G78-C78)/G78,""),IFERROR((G78-((C78*H78)/VLOOKUP(B78,'Hidden Fields'!$C$2:$D$10,2,FALSE)))/G78,"")) ->  | K78: =IF(E78<>"Draft",IFERROR(G78/C78,""),IFERROR((G78/((C78*H78)/VLOOKUP(B78,'Hidden Fields'!$C$2:$D$10,2,FALSE))),"")) -> 
I79: =IFERROR(C79/VLOOKUP(B79,'Hidden Fields'!$C$2:$D$10,2,FALSE),"") ->  | J79: =IF(E79<>"Draft",IFERROR((G79-C79)/G79,""),IFERROR((G79-((C79*H79)/VLOOKUP(B79,'Hidden Fields'!$C$2:$D$10,2,FALSE)))/G79,"")) ->  | K79: =IF(E79<>"Draft",IFERROR(G79/C79,""),IFERROR((G79/((C79*H79)/VLOOKUP(B79,'Hidden Fields'!$C$2:$D$10,2,FALSE))),"")) -> 
I80: =IFERROR(C80/VLOOKUP(B80,'Hidden Fields'!$C$2:$D$10,2,FALSE),"") ->  | J80: =IF(E80<>"Draft",IFERROR((G80-C80)/G80,""),IFERROR((G80-((C80*H80)/VLOOKUP(B80,'Hidden Fields'!$C$2:$D$10,2,FALSE)))/G80,"")) ->  | K80: =IF(E80<>"Draft",IFERROR(G80/C80,""),IFERROR((G80/((C80*H80)/VLOOKUP(B80,'Hidden Fields'!$C$2:$D$10,2,FALSE))),"")) -> 
I81: =IFERROR(C81/VLOOKUP(B81,'Hidden Fields'!$C$2:$D$10,2,FALSE),"") ->  | J81: =IF(E81<>"Draft",IFERROR((G81-C81)/G81,""),IFERROR((G81-((C81*H81)/VLOOKUP(B81,'Hidden Fields'!$C$2:$D$10,2,FALSE)))/G81,"")) ->  | K81: =IF(E81<>"Draft",IFERROR(G81/C81,""),IFERROR((G81/((C81*H81)/VLOOKUP(B81,'Hidden Fields'!$C$2:$D$10,2,FALSE))),"")) -> 
I82: =IFERROR(C82/VLOOKUP(B82,'Hidden Fields'!$C$2:$D$10,2,FALSE),"") ->  | J82: =IF(E82<>"Draft",IFERROR((G82-C82)/G82,""),IFERROR((G82-((C82*H82)/VLOOKUP(B82,'Hidden Fields'!$C$2:$D$10,2,FALSE)))/G82,"")) ->  | K82: =IF(E82<>"Draft",IFERROR(G82/C82,""),IFERROR((G82/((C82*H82)/VLOOKUP(B82,'Hidden Fields'!$C$2:$D$10,2,FALSE))),"")) -> 
I83: =IFERROR(C83/VLOOKUP(B83,'Hidden Fields'!$C$2:$D$10,2,FALSE),"") ->  | J83: =IF(E83<>"Draft",IFERROR((G83-C83)/G83,""),IFERROR((G83-((C83*H83)/VLOOKUP(B83,'Hidden Fields'!$C$2:$D$10,2,FALSE)))/G83,"")) ->  | K83: =IF(E83<>"Draft",IFERROR(G83/C83,""),IFERROR((G83/((C83*H83)/VLOOKUP(B83,'Hidden Fields'!$C$2:$D$10,2,FALSE))),"")) -> 
I84: =IFERROR(C84/VLOOKUP(B84,'Hidden Fields'!$C$2:$D$10,2,FALSE),"") ->  | J84: =IF(E84<>"Draft",IFERROR((G84-C84)/G84,""),IFERROR((G84-((C84*H84)/VLOOKUP(B84,'Hidden Fields'!$C$2:$D$10,2,FALSE)))/G84,"")) ->  | K84: =IF(E84<>"Draft",IFERROR(G84/C84,""),IFERROR((G84/((C84*H84)/VLOOKUP(B84,'Hidden Fields'!$C$2:$D$10,2,FALSE))),"")) -> 
I85: =IFERROR(C85/VLOOKUP(B85,'Hidden Fields'!$C$2:$D$10,2,FALSE),"") ->  | J85: =IF(E85<>"Draft",IFERROR((G85-C85)/G85,""),IFERROR((G85-((C85*H85)/VLOOKUP(B85,'Hidden Fields'!$C$2:$D$10,2,FALSE)))/G85,"")) ->  | K85: =IF(E85<>"Draft",IFERROR(G85/C85,""),IFERROR((G85/((C85*H85)/VLOOKUP(B85,'Hidden Fields'!$C$2:$D$10,2,FALSE))),"")) -> 
I86: =IFERROR(C86/VLOOKUP(B86,'Hidden Fields'!$C$2:$D$10,2,FALSE),"") ->  | J86: =IF(E86<>"Draft",IFERROR((G86-C86)/G86,""),IFERROR((G86-((C86*H86)/VLOOKUP(B86,'Hidden Fields'!$C$2:$D$10,2,FALSE)))/G86,"")) ->  | K86: =IF(E86<>"Draft",IFERROR(G86/C86,""),IFERROR((G86/((C86*H86)/VLOOKUP(B86,'Hidden Fields'!$C$2:$D$10,2,FALSE))),"")) -> 
I87: =IFERROR(C87/VLOOKUP(B87,'Hidden Fields'!$C$2:$D$10,2,FALSE),"") ->  | J87: =IF(E87<>"Draft",IFERROR((G87-C87)/G87,""),IFERROR((G87-((C87*H87)/VLOOKUP(B87,'Hidden Fields'!$C$2:$D$10,2,FALSE)))/G87,"")) ->  | K87: =IF(E87<>"Draft",IFERROR(G87/C87,""),IFERROR((G87/((C87*H87)/VLOOKUP(B87,'Hidden Fields'!$C$2:$D$10,2,FALSE))),"")) -> 
I88: =IFERROR(C88/VLOOKUP(B88,'Hidden Fields'!$C$2:$D$10,2,FALSE),"") ->  | J88: =IF(E88<>"Draft",IFERROR((G88-C88)/G88,""),IFERROR((G88-((C88*H88)/VLOOKUP(B88,'Hidden Fields'!$C$2:$D$10,2,FALSE)))/G88,"")) ->  | K88: =IF(E88<>"Draft",IFERROR(G88/C88,""),IFERROR((G88/((C88*H88)/VLOOKUP(B88,'Hidden Fields'!$C$2:$D$10,2,FALSE))),"")) -> 
I89: =IFERROR(C89/VLOOKUP(B89,'Hidden Fields'!$C$2:$D$10,2,FALSE),"") ->  | J89: =IF(E89<>"Draft",IFERROR((G89-C89)/G89,""),IFERROR((G89-((C89*H89)/VLOOKUP(B89,'Hidden Fields'!$C$2:$D$10,2,FALSE)))/G89,"")) ->  | K89: =IF(E89<>"Draft",IFERROR(G89/C89,""),IFERROR((G89/((C89*H89)/VLOOKUP(B89,'Hidden Fields'!$C$2:$D$10,2,FALSE))),"")) -> 
I90: =IFERROR(C90/VLOOKUP(B90,'Hidden Fields'!$C$2:$D$10,2,FALSE),"") ->  | J90: =IF(E90<>"Draft",IFERROR((G90-C90)/G90,""),IFERROR((G90-((C90*H90)/VLOOKUP(B90,'Hidden Fields'!$C$2:$D$10,2,FALSE)))/G90,"")) ->  | K90: =IF(E90<>"Draft",IFERROR(G90/C90,""),IFERROR((G90/((C90*H90)/VLOOKUP(B90,'Hidden Fields'!$C$2:$D$10,2,FALSE))),"")) -> 
I91: =IFERROR(C91/VLOOKUP(B91,'Hidden Fields'!$C$2:$D$10,2,FALSE),"") ->  | J91: =IF(E91<>"Draft",IFERROR((G91-C91)/G91,""),IFERROR((G91-((C91*H91)/VLOOKUP(B91,'Hidden Fields'!$C$2:$D$10,2,FALSE)))/G91,"")) ->  | K91: =IF(E91<>"Draft",IFERROR(G91/C91,""),IFERROR((G91/((C91*H91)/VLOOKUP(B91,'Hidden Fields'!$C$2:$D$10,2,FALSE))),"")) -> 
I92: =IFERROR(C92/VLOOKUP(B92,'Hidden Fields'!$C$2:$D$10,2,FALSE),"") ->  | J92: =IF(E92<>"Draft",IFERROR((G92-C92)/G92,""),IFERROR((G92-((C92*H92)/VLOOKUP(B92,'Hidden Fields'!$C$2:$D$10,2,FALSE)))/G92,"")) ->  | K92: =IF(E92<>"Draft",IFERROR(G92/C92,""),IFERROR((G92/((C92*H92)/VLOOKUP(B92,'Hidden Fields'!$C$2:$D$10,2,FALSE))),"")) -> 
I93: =IFERROR(C93/VLOOKUP(B93,'Hidden Fields'!$C$2:$D$10,2,FALSE),"") ->  | J93: =IF(E93<>"Draft",IFERROR((G93-C93)/G93,""),IFERROR((G93-((C93*H93)/VLOOKUP(B93,'Hidden Fields'!$C$2:$D$10,2,FALSE)))/G93,"")) ->  | K93: =IF(E93<>"Draft",IFERROR(G93/C93,""),IFERROR((G93/((C93*H93)/VLOOKUP(B93,'Hidden Fields'!$C$2:$D$10,2,FALSE))),"")) -> 
I94: =IFERROR(C94/VLOOKUP(B94,'Hidden Fields'!$C$2:$D$10,2,FALSE),"") ->  | J94: =IF(E94<>"Draft",IFERROR((G94-C94)/G94,""),IFERROR((G94-((C94*H94)/VLOOKUP(B94,'Hidden Fields'!$C$2:$D$10,2,FALSE)))/G94,"")) ->  | K94: =IF(E94<>"Draft",IFERROR(G94/C94,""),IFERROR((G94/((C94*H94)/VLOOKUP(B94,'Hidden Fields'!$C$2:$D$10,2,FALSE))),"")) -> 
I95: =IFERROR(C95/VLOOKUP(B95,'Hidden Fields'!$C$2:$D$10,2,FALSE),"") ->  | J95: =IF(E95<>"Draft",IFERROR((G95-C95)/G95,""),IFERROR((G95-((C95*H95)/VLOOKUP(B95,'Hidden Fields'!$C$2:$D$10,2,FALSE)))/G95,"")) ->  | K95: =IF(E95<>"Draft",IFERROR(G95/C95,""),IFERROR((G95/((C95*H95)/VLOOKUP(B95,'Hidden Fields'!$C$2:$D$10,2,FALSE))),"")) -> 
I96: =IFERROR(C96/VLOOKUP(B96,'Hidden Fields'!$C$2:$D$10,2,FALSE),"") ->  | J96: =IF(E96<>"Draft",IFERROR((G96-C96)/G96,""),IFERROR((G96-((C96*H96)/VLOOKUP(B96,'Hidden Fields'!$C$2:$D$10,2,FALSE)))/G96,"")) ->  | K96: =IF(E96<>"Draft",IFERROR(G96/C96,""),IFERROR((G96/((C96*H96)/VLOOKUP(B96,'Hidden Fields'!$C$2:$D$10,2,FALSE))),"")) -> 
I97: =IFERROR(C97/VLOOKUP(B97,'Hidden Fields'!$C$2:$D$10,2,FALSE),"") ->  | J97: =IF(E97<>"Draft",IFERROR((G97-C97)/G97,""),IFERROR((G97-((C97*H97)/VLOOKUP(B97,'Hidden Fields'!$C$2:$D$10,2,FALSE)))/G97,"")) ->  | K97: =IF(E97<>"Draft",IFERROR(G97/C97,""),IFERROR((G97/((C97*H97)/VLOOKUP(B97,'Hidden Fields'!$C$2:$D$10,2,FALSE))),"")) -> 
I98: =IFERROR(C98/VLOOKUP(B98,'Hidden Fields'!$C$2:$D$10,2,FALSE),"") ->  | J98: =IF(E98<>"Draft",IFERROR((G98-C98)/G98,""),IFERROR((G98-((C98*H98)/VLOOKUP(B98,'Hidden Fields'!$C$2:$D$10,2,FALSE)))/G98,"")) ->  | K98: =IF(E98<>"Draft",IFERROR(G98/C98,""),IFERROR((G98/((C98*H98)/VLOOKUP(B98,'Hidden Fields'!$C$2:$D$10,2,FALSE))),"")) -> 
I99: =IFERROR(C99/VLOOKUP(B99,'Hidden Fields'!$C$2:$D$10,2,FALSE),"") ->  | J99: =IF(E99<>"Draft",IFERROR((G99-C99)/G99,""),IFERROR((G99-((C99*H99)/VLOOKUP(B99,'Hidden Fields'!$C$2:$D$10,2,FALSE)))/G99,"")) ->  | K99: =IF(E99<>"Draft",IFERROR(G99/C99,""),IFERROR((G99/((C99*H99)/VLOOKUP(B99,'Hidden Fields'!$C$2:$D$10,2,FALSE))),"")) -> 
I100: =IFERROR(C100/VLOOKUP(B100,'Hidden Fields'!$C$2:$D$10,2,FALSE),"") ->  | J100: =IF(E100<>"Draft",IFERROR((G100-C100)/G100,""),IFERROR((G100-((C100*H100)/VLOOKUP(B100,'Hidden Fields'!$C$2:$D$10,2,FALSE)))/G100,"")) ->  | K100: =IF(E100<>"Draft",IFERROR(G100/C100,""),IFERROR((G100/((C100*H100)/VLOOKUP(B100,'Hidden Fields'!$C$2:$D$10,2,FALSE))),"")) -> 
I101: =IFERROR(C101/VLOOKUP(B101,'Hidden Fields'!$C$2:$D$10,2,FALSE),"") ->  | J101: =IF(E101<>"Draft",IFERROR((G101-C101)/G101,""),IFERROR((G101-((C101*H101)/VLOOKUP(B101,'Hidden Fields'!$C$2:$D$10,2,FALSE)))/G101,"")) ->  | K101: =IF(E101<>"Draft",IFERROR(G101/C101,""),IFERROR((G101/((C101*H101)/VLOOKUP(B101,'Hidden Fields'!$C$2:$D$10,2,FALSE))),"")) -> 
I102: =IFERROR(C102/VLOOKUP(B102,'Hidden Fields'!$C$2:$D$10,2,FALSE),"") ->  | J102: =IF(E102<>"Draft",IFERROR((G102-C102)/G102,""),IFERROR((G102-((C102*H102)/VLOOKUP(B102,'Hidden Fields'!$C$2:$D$10,2,FALSE)))/G102,"")) ->  | K102: =IF(E102<>"Draft",IFERROR(G102/C102,""),IFERROR((G102/((C102*H102)/VLOOKUP(B102,'Hidden Fields'!$C$2:$D$10,2,FALSE))),"")) -> 
I103: =IFERROR(C103/VLOOKUP(B103,'Hidden Fields'!$C$2:$D$10,2,FALSE),"") ->  | J103: =IF(E103<>"Draft",IFERROR((G103-C103)/G103,""),IFERROR((G103-((C103*H103)/VLOOKUP(B103,'Hidden Fields'!$C$2:$D$10,2,FALSE)))/G103,"")) ->  | K103: =IF(E103<>"Draft",IFERROR(G103/C103,""),IFERROR((G103/((C103*H103)/VLOOKUP(B103,'Hidden Fields'!$C$2:$D$10,2,FALSE))),"")) -> 
I104: =IFERROR(C104/VLOOKUP(B104,'Hidden Fields'!$C$2:$D$10,2,FALSE),"") ->  | J104: =IF(E104<>"Draft",IFERROR((G104-C104)/G104,""),IFERROR((G104-((C104*H104)/VLOOKUP(B104,'Hidden Fields'!$C$2:$D$10,2,FALSE)))/G104,"")) ->  | K104: =IF(E104<>"Draft",IFERROR(G104/C104,""),IFERROR((G104/((C104*H104)/VLOOKUP(B104,'Hidden Fields'!$C$2:$D$10,2,FALSE))),"")) -> 
I105: =IFERROR(C105/VLOOKUP(B105,'Hidden Fields'!$C$2:$D$10,2,FALSE),"") ->  | J105: =IF(E105<>"Draft",IFERROR((G105-C105)/G105,""),IFERROR((G105-((C105*H105)/VLOOKUP(B105,'Hidden Fields'!$C$2:$D$10,2,FALSE)))/G105,"")) ->  | K105: =IF(E105<>"Draft",IFERROR(G105/C105,""),IFERROR((G105/((C105*H105)/VLOOKUP(B105,'Hidden Fields'!$C$2:$D$10,2,FALSE))),"")) -> 
I106: =IFERROR(C106/VLOOKUP(B106,'Hidden Fields'!$C$2:$D$10,2,FALSE),"") ->  | J106: =IF(E106<>"Draft",IFERROR((G106-C106)/G106,""),IFERROR((G106-((C106*H106)/VLOOKUP(B106,'Hidden Fields'!$C$2:$D$10,2,FALSE)))/G106,"")) ->  | K106: =IF(E106<>"Draft",IFERROR(G106/C106,""),IFERROR((G106/((C106*H106)/VLOOKUP(B106,'Hidden Fields'!$C$2:$D$10,2,FALSE))),"")) -> 
I107: =IFERROR(C107/VLOOKUP(B107,'Hidden Fields'!$C$2:$D$10,2,FALSE),"") ->  | J107: =IF(E107<>"Draft",IFERROR((G107-C107)/G107,""),IFERROR((G107-((C107*H107)/VLOOKUP(B107,'Hidden Fields'!$C$2:$D$10,2,FALSE)))/G107,"")) ->  | K107: =IF(E107<>"Draft",IFERROR(G107/C107,""),IFERROR((G107/((C107*H107)/VLOOKUP(B107,'Hidden Fields'!$C$2:$D$10,2,FALSE))),"")) -> 
I108: =IFERROR(C108/VLOOKUP(B108,'Hidden Fields'!$C$2:$D$10,2,FALSE),"") ->  | J108: =IF(E108<>"Draft",IFERROR((G108-C108)/G108,""),IFERROR((G108-((C108*H108)/VLOOKUP(B108,'Hidden Fields'!$C$2:$D$10,2,FALSE)))/G108,"")) ->  | K108: =IF(E108<>"Draft",IFERROR(G108/C108,""),IFERROR((G108/((C108*H108)/VLOOKUP(B108,'Hidden Fields'!$C$2:$D$10,2,FALSE))),"")) -> 
I109: =IFERROR(C109/VLOOKUP(B109,'Hidden Fields'!$C$2:$D$10,2,FALSE),"") ->  | J109: =IF(E109<>"Draft",IFERROR((G109-C109)/G109,""),IFERROR((G109-((C109*H109)/VLOOKUP(B109,'Hidden Fields'!$C$2:$D$10,2,FALSE)))/G109,"")) ->  | K109: =IF(E109<>"Draft",IFERROR(G109/C109,""),IFERROR((G109/((C109*H109)/VLOOKUP(B109,'Hidden Fields'!$C$2:$D$10,2,FALSE))),"")) -> 
I110: =IFERROR(C110/VLOOKUP(B110,'Hidden Fields'!$C$2:$D$10,2,FALSE),"") ->  | J110: =IF(E110<>"Draft",IFERROR((G110-C110)/G110,""),IFERROR((G110-((C110*H110)/VLOOKUP(B110,'Hidden Fields'!$C$2:$D$10,2,FALSE)))/G110,"")) ->  | K110: =IF(E110<>"Draft",IFERROR(G110/C110,""),IFERROR((G110/((C110*H110)/VLOOKUP(B110,'Hidden Fields'!$C$2:$D$10,2,FALSE))),"")) -> 
I111: =IFERROR(C111/VLOOKUP(B111,'Hidden Fields'!$C$2:$D$10,2,FALSE),"") ->  | J111: =IF(E111<>"Draft",IFERROR((G111-C111)/G111,""),IFERROR((G111-((C111*H111)/VLOOKUP(B111,'Hidden Fields'!$C$2:$D$10,2,FALSE)))/G111,"")) ->  | K111: =IF(E111<>"Draft",IFERROR(G111/C111,""),IFERROR((G111/((C111*H111)/VLOOKUP(B111,'Hidden Fields'!$C$2:$D$10,2,FALSE))),"")) -> 
I112: =IFERROR(C112/VLOOKUP(B112,'Hidden Fields'!$C$2:$D$10,2,FALSE),"") ->  | J112: =IF(E112<>"Draft",IFERROR((G112-C112)/G112,""),IFERROR((G112-((C112*H112)/VLOOKUP(B112,'Hidden Fields'!$C$2:$D$10,2,FALSE)))/G112,"")) ->  | K112: =IF(E112<>"Draft",IFERROR(G112/C112,""),IFERROR((G112/((C112*H112)/VLOOKUP(B112,'Hidden Fields'!$C$2:$D$10,2,FALSE))),"")) -> 
I113: =IFERROR(C113/VLOOKUP(B113,'Hidden Fields'!$C$2:$D$10,2,FALSE),"") ->  | J113: =IF(E113<>"Draft",IFERROR((G113-C113)/G113,""),IFERROR((G113-((C113*H113)/VLOOKUP(B113,'Hidden Fields'!$C$2:$D$10,2,FALSE)))/G113,"")) ->  | K113: =IF(E113<>"Draft",IFERROR(G113/C113,""),IFERROR((G113/((C113*H113)/VLOOKUP(B113,'Hidden Fields'!$C$2:$D$10,2,FALSE))),"")) -> 
I114: =IFERROR(C114/VLOOKUP(B114,'Hidden Fields'!$C$2:$D$10,2,FALSE),"") ->  | J114: =IF(E114<>"Draft",IFERROR((G114-C114)/G114,""),IFERROR((G114-((C114*H114)/VLOOKUP(B114,'Hidden Fields'!$C$2:$D$10,2,FALSE)))/G114,"")) ->  | K114: =IF(E114<>"Draft",IFERROR(G114/C114,""),IFERROR((G114/((C114*H114)/VLOOKUP(B114,'Hidden Fields'!$C$2:$D$10,2,FALSE))),"")) -> 
I115: =IFERROR(C115/VLOOKUP(B115,'Hidden Fields'!$C$2:$D$10,2,FALSE),"") ->  | J115: =IF(E115<>"Draft",IFERROR((G115-C115)/G115,""),IFERROR((G115-((C115*H115)/VLOOKUP(B115,'Hidden Fields'!$C$2:$D$10,2,FALSE)))/G115,"")) ->  | K115: =IF(E115<>"Draft",IFERROR(G115/C115,""),IFERROR((G115/((C115*H115)/VLOOKUP(B115,'Hidden Fields'!$C$2:$D$10,2,FALSE))),"")) -> 
I116: =IFERROR(C116/VLOOKUP(B116,'Hidden Fields'!$C$2:$D$10,2,FALSE),"") ->  | J116: =IF(E116<>"Draft",IFERROR((G116-C116)/G116,""),IFERROR((G116-((C116*H116)/VLOOKUP(B116,'Hidden Fields'!$C$2:$D$10,2,FALSE)))/G116,"")) ->  | K116: =IF(E116<>"Draft",IFERROR(G116/C116,""),IFERROR((G116/((C116*H116)/VLOOKUP(B116,'Hidden Fields'!$C$2:$D$10,2,FALSE))),"")) -> 
I117: =IFERROR(C117/VLOOKUP(B117,'Hidden Fields'!$C$2:$D$10,2,FALSE),"") ->  | J117: =IF(E117<>"Draft",IFERROR((G117-C117)/G117,""),IFERROR((G117-((C117*H117)/VLOOKUP(B117,'Hidden Fields'!$C$2:$D$10,2,FALSE)))/G117,"")) ->  | K117: =IF(E117<>"Draft",IFERROR(G117/C117,""),IFERROR((G117/((C117*H117)/VLOOKUP(B117,'Hidden Fields'!$C$2:$D$10,2,FALSE))),"")) -> 
I118: =IFERROR(C118/VLOOKUP(B118,'Hidden Fields'!$C$2:$D$10,2,FALSE),"") ->  | J118: =IF(E118<>"Draft",IFERROR((G118-C118)/G118,""),IFERROR((G118-((C118*H118)/VLOOKUP(B118,'Hidden Fields'!$C$2:$D$10,2,FALSE)))/G118,"")) ->  | K118: =IF(E118<>"Draft",IFERROR(G118/C118,""),IFERROR((G118/((C118*H118)/VLOOKUP(B118,'Hidden Fields'!$C$2:$D$10,2,FALSE))),"")) -> 
I119: =IFERROR(C119/VLOOKUP(B119,'Hidden Fields'!$C$2:$D$10,2,FALSE),"") ->  | J119: =IF(E119<>"Draft",IFERROR((G119-C119)/G119,""),IFERROR((G119-((C119*H119)/VLOOKUP(B119,'Hidden Fields'!$C$2:$D$10,2,FALSE)))/G119,"")) ->  | K119: =IF(E119<>"Draft",IFERROR(G119/C119,""),IFERROR((G119/((C119*H119)/VLOOKUP(B119,'Hidden Fields'!$C$2:$D$10,2,FALSE))),"")) -> 
I120: =IFERROR(C120/VLOOKUP(B120,'Hidden Fields'!$C$2:$D$10,2,FALSE),"") ->  | J120: =IF(E120<>"Draft",IFERROR((G120-C120)/G120,""),IFERROR((G120-((C120*H120)/VLOOKUP(B120,'Hidden Fields'!$C$2:$D$10,2,FALSE)))/G120,"")) ->  | K120: =IF(E120<>"Draft",IFERROR(G120/C120,""),IFERROR((G120/((C120*H120)/VLOOKUP(B120,'Hidden Fields'!$C$2:$D$10,2,FALSE))),"")) -> 
I121: =IFERROR(C121/VLOOKUP(B121,'Hidden Fields'!$C$2:$D$10,2,FALSE),"") ->  | J121: =IF(E121<>"Draft",IFERROR((G121-C121)/G121,""),IFERROR((G121-((C121*H121)/VLOOKUP(B121,'Hidden Fields'!$C$2:$D$10,2,FALSE)))/G121,"")) ->  | K121: =IF(E121<>"Draft",IFERROR(G121/C121,""),IFERROR((G121/((C121*H121)/VLOOKUP(B121,'Hidden Fields'!$C$2:$D$10,2,FALSE))),"")) -> 
I122: =IFERROR(C122/VLOOKUP(B122,'Hidden Fields'!$C$2:$D$10,2,FALSE),"") ->  | J122: =IF(E122<>"Draft",IFERROR((G122-C122)/G122,""),IFERROR((G122-((C122*H122)/VLOOKUP(B122,'Hidden Fields'!$C$2:$D$10,2,FALSE)))/G122,"")) ->  | K122: =IF(E122<>"Draft",IFERROR(G122/C122,""),IFERROR((G122/((C122*H122)/VLOOKUP(B122,'Hidden Fields'!$C$2:$D$10,2,FALSE))),"")) -> 
I123: =IFERROR(C123/VLOOKUP(B123,'Hidden Fields'!$C$2:$D$10,2,FALSE),"") ->  | J123: =IF(E123<>"Draft",IFERROR((G123-C123)/G123,""),IFERROR((G123-((C123*H123)/VLOOKUP(B123,'Hidden Fields'!$C$2:$D$10,2,FALSE)))/G123,"")) ->  | K123: =IF(E123<>"Draft",IFERROR(G123/C123,""),IFERROR((G123/((C123*H123)/VLOOKUP(B123,'Hidden Fields'!$C$2:$D$10,2,FALSE))),"")) -> 
I124: =IFERROR(C124/VLOOKUP(B124,'Hidden Fields'!$C$2:$D$10,2,FALSE),"") ->  | J124: =IF(E124<>"Draft",IFERROR((G124-C124)/G124,""),IFERROR((G124-((C124*H124)/VLOOKUP(B124,'Hidden Fields'!$C$2:$D$10,2,FALSE)))/G124,"")) ->  | K124: =IF(E124<>"Draft",IFERROR(G124/C124,""),IFERROR((G124/((C124*H124)/VLOOKUP(B124,'Hidden Fields'!$C$2:$D$10,2,FALSE))),"")) -> 
I125: =IFERROR(C125/VLOOKUP(B125,'Hidden Fields'!$C$2:$D$10,2,FALSE),"") ->  | J125: =IF(E125<>"Draft",IFERROR((G125-C125)/G125,""),IFERROR((G125-((C125*H125)/VLOOKUP(B125,'Hidden Fields'!$C$2:$D$10,2,FALSE)))/G125,"")) ->  | K125: =IF(E125<>"Draft",IFERROR(G125/C125,""),IFERROR((G125/((C125*H125)/VLOOKUP(B125,'Hidden Fields'!$C$2:$D$10,2,FALSE))),"")) -> 
I126: =IFERROR(C126/VLOOKUP(B126,'Hidden Fields'!$C$2:$D$10,2,FALSE),"") ->  | J126: =IF(E126<>"Draft",IFERROR((G126-C126)/G126,""),IFERROR((G126-((C126*H126)/VLOOKUP(B126,'Hidden Fields'!$C$2:$D$10,2,FALSE)))/G126,"")) ->  | K126: =IF(E126<>"Draft",IFERROR(G126/C126,""),IFERROR((G126/((C126*H126)/VLOOKUP(B126,'Hidden Fields'!$C$2:$D$10,2,FALSE))),"")) -> 
I127: =IFERROR(C127/VLOOKUP(B127,'Hidden Fields'!$C$2:$D$10,2,FALSE),"") ->  | J127: =IF(E127<>"Draft",IFERROR((G127-C127)/G127,""),IFERROR((G127-((C127*H127)/VLOOKUP(B127,'Hidden Fields'!$C$2:$D$10,2,FALSE)))/G127,"")) ->  | K127: =IF(E127<>"Draft",IFERROR(G127/C127,""),IFERROR((G127/((C127*H127)/VLOOKUP(B127,'Hidden Fields'!$C$2:$D$10,2,FALSE))),"")) -> 
I128: =IFERROR(C128/VLOOKUP(B128,'Hidden Fields'!$C$2:$D$10,2,FALSE),"") ->  | J128: =IF(E128<>"Draft",IFERROR((G128-C128)/G128,""),IFERROR((G128-((C128*H128)/VLOOKUP(B128,'Hidden Fields'!$C$2:$D$10,2,FALSE)))/G128,"")) ->  | K128: =IF(E128<>"Draft",IFERROR(G128/C128,""),IFERROR((G128/((C128*H128)/VLOOKUP(B128,'Hidden Fields'!$C$2:$D$10,2,FALSE))),"")) -> 
I129: =IFERROR(C129/VLOOKUP(B129,'Hidden Fields'!$C$2:$D$10,2,FALSE),"") ->  | J129: =IF(E129<>"Draft",IFERROR((G129-C129)/G129,""),IFERROR((G129-((C129*H129)/VLOOKUP(B129,'Hidden Fields'!$C$2:$D$10,2,FALSE)))/G129,"")) ->  | K129: =IF(E129<>"Draft",IFERROR(G129/C129,""),IFERROR((G129/((C129*H129)/VLOOKUP(B129,'Hidden Fields'!$C$2:$D$10,2,FALSE))),"")) -> 
I130: =IFERROR(C130/VLOOKUP(B130,'Hidden Fields'!$C$2:$D$10,2,FALSE),"") ->  | J130: =IF(E130<>"Draft",IFERROR((G130-C130)/G130,""),IFERROR((G130-((C130*H130)/VLOOKUP(B130,'Hidden Fields'!$C$2:$D$10,2,FALSE)))/G130,"")) ->  | K130: =IF(E130<>"Draft",IFERROR(G130/C130,""),IFERROR((G130/((C130*H130)/VLOOKUP(B130,'Hidden Fields'!$C$2:$D$10,2,FALSE))),"")) -> 
I131: =IFERROR(C131/VLOOKUP(B131,'Hidden Fields'!$C$2:$D$10,2,FALSE),"") ->  | J131: =IF(E131<>"Draft",IFERROR((G131-C131)/G131,""),IFERROR((G131-((C131*H131)/VLOOKUP(B131,'Hidden Fields'!$C$2:$D$10,2,FALSE)))/G131,"")) ->  | K131: =IF(E131<>"Draft",IFERROR(G131/C131,""),IFERROR((G131/((C131*H131)/VLOOKUP(B131,'Hidden Fields'!$C$2:$D$10,2,FALSE))),"")) -> 
I132: =IFERROR(C132/VLOOKUP(B132,'Hidden Fields'!$C$2:$D$10,2,FALSE),"") ->  | J132: =IF(E132<>"Draft",IFERROR((G132-C132)/G132,""),IFERROR((G132-((C132*H132)/VLOOKUP(B132,'Hidden Fields'!$C$2:$D$10,2,FALSE)))/G132,"")) ->  | K132: =IF(E132<>"Draft",IFERROR(G132/C132,""),IFERROR((G132/((C132*H132)/VLOOKUP(B132,'Hidden Fields'!$C$2:$D$10,2,FALSE))),"")) -> 
I133: =IFERROR(C133/VLOOKUP(B133,'Hidden Fields'!$C$2:$D$10,2,FALSE),"") ->  | J133: =IF(E133<>"Draft",IFERROR((G133-C133)/G133,""),IFERROR((G133-((C133*H133)/VLOOKUP(B133,'Hidden Fields'!$C$2:$D$10,2,FALSE)))/G133,"")) ->  | K133: =IF(E133<>"Draft",IFERROR(G133/C133,""),IFERROR((G133/((C133*H133)/VLOOKUP(B133,'Hidden Fields'!$C$2:$D$10,2,FALSE))),"")) -> 
I134: =IFERROR(C134/VLOOKUP(B134,'Hidden Fields'!$C$2:$D$10,2,FALSE),"") ->  | J134: =IF(E134<>"Draft",IFERROR((G134-C134)/G134,""),IFERROR((G134-((C134*H134)/VLOOKUP(B134,'Hidden Fields'!$C$2:$D$10,2,FALSE)))/G134,"")) ->  | K134: =IF(E134<>"Draft",IFERROR(G134/C134,""),IFERROR((G134/((C134*H134)/VLOOKUP(B134,'Hidden Fields'!$C$2:$D$10,2,FALSE))),"")) -> 
I135: =IFERROR(C135/VLOOKUP(B135,'Hidden Fields'!$C$2:$D$10,2,FALSE),"") ->  | J135: =IF(E135<>"Draft",IFERROR((G135-C135)/G135,""),IFERROR((G135-((C135*H135)/VLOOKUP(B135,'Hidden Fields'!$C$2:$D$10,2,FALSE)))/G135,"")) ->  | K135: =IF(E135<>"Draft",IFERROR(G135/C135,""),IFERROR((G135/((C135*H135)/VLOOKUP(B135,'Hidden Fields'!$C$2:$D$10,2,FALSE))),"")) -> 
I136: =IFERROR(C136/VLOOKUP(B136,'Hidden Fields'!$C$2:$D$10,2,FALSE),"") ->  | J136: =IF(E136<>"Draft",IFERROR((G136-C136)/G136,""),IFERROR((G136-((C136*H136)/VLOOKUP(B136,'Hidden Fields'!$C$2:$D$10,2,FALSE)))/G136,"")) ->  | K136: =IF(E136<>"Draft",IFERROR(G136/C136,""),IFERROR((G136/((C136*H136)/VLOOKUP(B136,'Hidden Fields'!$C$2:$D$10,2,FALSE))),"")) -> 
I137: =IFERROR(C137/VLOOKUP(B137,'Hidden Fields'!$C$2:$D$10,2,FALSE),"") ->  | J137: =IF(E137<>"Draft",IFERROR((G137-C137)/G137,""),IFERROR((G137-((C137*H137)/VLOOKUP(B137,'Hidden Fields'!$C$2:$D$10,2,FALSE)))/G137,"")) ->  | K137: =IF(E137<>"Draft",IFERROR(G137/C137,""),IFERROR((G137/((C137*H137)/VLOOKUP(B137,'Hidden Fields'!$C$2:$D$10,2,FALSE))),"")) -> 
I138: =IFERROR(C138/VLOOKUP(B138,'Hidden Fields'!$C$2:$D$10,2,FALSE),"") ->  | J138: =IF(E138<>"Draft",IFERROR((G138-C138)/G138,""),IFERROR((G138-((C138*H138)/VLOOKUP(B138,'Hidden Fields'!$C$2:$D$10,2,FALSE)))/G138,"")) ->  | K138: =IF(E138<>"Draft",IFERROR(G138/C138,""),IFERROR((G138/((C138*H138)/VLOOKUP(B138,'Hidden Fields'!$C$2:$D$10,2,FALSE))),"")) -> 
I139: =IFERROR(C139/VLOOKUP(B139,'Hidden Fields'!$C$2:$D$10,2,FALSE),"") ->  | J139: =IF(E139<>"Draft",IFERROR((G139-C139)/G139,""),IFERROR((G139-((C139*H139)/VLOOKUP(B139,'Hidden Fields'!$C$2:$D$10,2,FALSE)))/G139,"")) ->  | K139: =IF(E139<>"Draft",IFERROR(G139/C139,""),IFERROR((G139/((C139*H139)/VLOOKUP(B139,'Hidden Fields'!$C$2:$D$10,2,FALSE))),"")) -> 
I140: =IFERROR(C140/VLOOKUP(B140,'Hidden Fields'!$C$2:$D$10,2,FALSE),"") ->  | J140: =IF(E140<>"Draft",IFERROR((G140-C140)/G140,""),IFERROR((G140-((C140*H140)/VLOOKUP(B140,'Hidden Fields'!$C$2:$D$10,2,FALSE)))/G140,"")) ->  | K140: =IF(E140<>"Draft",IFERROR(G140/C140,""),IFERROR((G140/((C140*H140)/VLOOKUP(B140,'Hidden Fields'!$C$2:$D$10,2,FALSE))),"")) -> 
I141: =IFERROR(C141/VLOOKUP(B141,'Hidden Fields'!$C$2:$D$10,2,FALSE),"") ->  | J141: =IF(E141<>"Draft",IFERROR((G141-C141)/G141,""),IFERROR((G141-((C141*H141)/VLOOKUP(B141,'Hidden Fields'!$C$2:$D$10,2,FALSE)))/G141,"")) ->  | K141: =IF(E141<>"Draft",IFERROR(G141/C141,""),IFERROR((G141/((C141*H141)/VLOOKUP(B141,'Hidden Fields'!$C$2:$D$10,2,FALSE))),"")) -> 
I142: =IFERROR(C142/VLOOKUP(B142,'Hidden Fields'!$C$2:$D$10,2,FALSE),"") ->  | J142: =IF(E142<>"Draft",IFERROR((G142-C142)/G142,""),IFERROR((G142-((C142*H142)/VLOOKUP(B142,'Hidden Fields'!$C$2:$D$10,2,FALSE)))/G142,"")) ->  | K142: =IF(E142<>"Draft",IFERROR(G142/C142,""),IFERROR((G142/((C142*H142)/VLOOKUP(B142,'Hidden Fields'!$C$2:$D$10,2,FALSE))),"")) -> 
I143: =IFERROR(C143/VLOOKUP(B143,'Hidden Fields'!$C$2:$D$10,2,FALSE),"") ->  | J143: =IF(E143<>"Draft",IFERROR((G143-C143)/G143,""),IFERROR((G143-((C143*H143)/VLOOKUP(B143,'Hidden Fields'!$C$2:$D$10,2,FALSE)))/G143,"")) ->  | K143: =IF(E143<>"Draft",IFERROR(G143/C143,""),IFERROR((G143/((C143*H143)/VLOOKUP(B143,'Hidden Fields'!$C$2:$D$10,2,FALSE))),"")) -> 
I144: =IFERROR(C144/VLOOKUP(B144,'Hidden Fields'!$C$2:$D$10,2,FALSE),"") ->  | J144: =IF(E144<>"Draft",IFERROR((G144-C144)/G144,""),IFERROR((G144-((C144*H144)/VLOOKUP(B144,'Hidden Fields'!$C$2:$D$10,2,FALSE)))/G144,"")) ->  | K144: =IF(E144<>"Draft",IFERROR(G144/C144,""),IFERROR((G144/((C144*H144)/VLOOKUP(B144,'Hidden Fields'!$C$2:$D$10,2,FALSE))),"")) -> 
I145: =IFERROR(C145/VLOOKUP(B145,'Hidden Fields'!$C$2:$D$10,2,FALSE),"") ->  | J145: =IF(E145<>"Draft",IFERROR((G145-C145)/G145,""),IFERROR((G145-((C145*H145)/VLOOKUP(B145,'Hidden Fields'!$C$2:$D$10,2,FALSE)))/G145,"")) ->  | K145: =IF(E145<>"Draft",IFERROR(G145/C145,""),IFERROR((G145/((C145*H145)/VLOOKUP(B145,'Hidden Fields'!$C$2:$D$10,2,FALSE))),"")) -> 
I146: =IFERROR(C146/VLOOKUP(B146,'Hidden Fields'!$C$2:$D$10,2,FALSE),"") ->  | J146: =IF(E146<>"Draft",IFERROR((G146-C146)/G146,""),IFERROR((G146-((C146*H146)/VLOOKUP(B146,'Hidden Fields'!$C$2:$D$10,2,FALSE)))/G146,"")) ->  | K146: =IF(E146<>"Draft",IFERROR(G146/C146,""),IFERROR((G146/((C146*H146)/VLOOKUP(B146,'Hidden Fields'!$C$2:$D$10,2,FALSE))),"")) -> 
I147: =IFERROR(C147/VLOOKUP(B147,'Hidden Fields'!$C$2:$D$10,2,FALSE),"") ->  | J147: =IF(E147<>"Draft",IFERROR((G147-C147)/G147,""),IFERROR((G147-((C147*H147)/VLOOKUP(B147,'Hidden Fields'!$C$2:$D$10,2,FALSE)))/G147,"")) ->  | K147: =IF(E147<>"Draft",IFERROR(G147/C147,""),IFERROR((G147/((C147*H147)/VLOOKUP(B147,'Hidden Fields'!$C$2:$D$10,2,FALSE))),"")) -> 
I148: =IFERROR(C148/VLOOKUP(B148,'Hidden Fields'!$C$2:$D$10,2,FALSE),"") ->  | J148: =IF(E148<>"Draft",IFERROR((G148-C148)/G148,""),IFERROR((G148-((C148*H148)/VLOOKUP(B148,'Hidden Fields'!$C$2:$D$10,2,FALSE)))/G148,"")) ->  | K148: =IF(E148<>"Draft",IFERROR(G148/C148,""),IFERROR((G148/((C148*H148)/VLOOKUP(B148,'Hidden Fields'!$C$2:$D$10,2,FALSE))),"")) -> 
I149: =IFERROR(C149/VLOOKUP(B149,'Hidden Fields'!$C$2:$D$10,2,FALSE),"") ->  | J149: =IF(E149<>"Draft",IFERROR((G149-C149)/G149,""),IFERROR((G149-((C149*H149)/VLOOKUP(B149,'Hidden Fields'!$C$2:$D$10,2,FALSE)))/G149,"")) ->  | K149: =IF(E149<>"Draft",IFERROR(G149/C149,""),IFERROR((G149/((C149*H149)/VLOOKUP(B149,'Hidden Fields'!$C$2:$D$10,2,FALSE))),"")) -> 
I150: =IFERROR(C150/VLOOKUP(B150,'Hidden Fields'!$C$2:$D$10,2,FALSE),"") ->  | J150: =IF(E150<>"Draft",IFERROR((G150-C150)/G150,""),IFERROR((G150-((C150*H150)/VLOOKUP(B150,'Hidden Fields'!$C$2:$D$10,2,FALSE)))/G150,"")) ->  | K150: =IF(E150<>"Draft",IFERROR(G150/C150,""),IFERROR((G150/((C150*H150)/VLOOKUP(B150,'Hidden Fields'!$C$2:$D$10,2,FALSE))),"")) -> 
I151: =IFERROR(C151/VLOOKUP(B151,'Hidden Fields'!$C$2:$D$10,2,FALSE),"") ->  | J151: =IF(E151<>"Draft",IFERROR((G151-C151)/G151,""),IFERROR((G151-((C151*H151)/VLOOKUP(B151,'Hidden Fields'!$C$2:$D$10,2,FALSE)))/G151,"")) ->  | K151: =IF(E151<>"Draft",IFERROR(G151/C151,""),IFERROR((G151/((C151*H151)/VLOOKUP(B151,'Hidden Fields'!$C$2:$D$10,2,FALSE))),"")) -> 
I152: =IFERROR(C152/VLOOKUP(B152,'Hidden Fields'!$C$2:$D$10,2,FALSE),"") ->  | J152: =IF(E152<>"Draft",IFERROR((G152-C152)/G152,""),IFERROR((G152-((C152*H152)/VLOOKUP(B152,'Hidden Fields'!$C$2:$D$10,2,FALSE)))/G152,"")) ->  | K152: =IF(E152<>"Draft",IFERROR(G152/C152,""),IFERROR((G152/((C152*H152)/VLOOKUP(B152,'Hidden Fields'!$C$2:$D$10,2,FALSE))),"")) -> 
I153: =IFERROR(C153/VLOOKUP(B153,'Hidden Fields'!$C$2:$D$10,2,FALSE),"") ->  | J153: =IF(E153<>"Draft",IFERROR((G153-C153)/G153,""),IFERROR((G153-((C153*H153)/VLOOKUP(B153,'Hidden Fields'!$C$2:$D$10,2,FALSE)))/G153,"")) ->  | K153: =IF(E153<>"Draft",IFERROR(G153/C153,""),IFERROR((G153/((C153*H153)/VLOOKUP(B153,'Hidden Fields'!$C$2:$D$10,2,FALSE))),"")) -> 
I154: =IFERROR(C154/VLOOKUP(B154,'Hidden Fields'!$C$2:$D$10,2,FALSE),"") ->  | J154: =IF(E154<>"Draft",IFERROR((G154-C154)/G154,""),IFERROR((G154-((C154*H154)/VLOOKUP(B154,'Hidden Fields'!$C$2:$D$10,2,FALSE)))/G154,"")) ->  | K154: =IF(E154<>"Draft",IFERROR(G154/C154,""),IFERROR((G154/((C154*H154)/VLOOKUP(B154,'Hidden Fields'!$C$2:$D$10,2,FALSE))),"")) -> 
I155: =IFERROR(C155/VLOOKUP(B155,'Hidden Fields'!$C$2:$D$10,2,FALSE),"") ->  | J155: =IF(E155<>"Draft",IFERROR((G155-C155)/G155,""),IFERROR((G155-((C155*H155)/VLOOKUP(B155,'Hidden Fields'!$C$2:$D$10,2,FALSE)))/G155,"")) ->  | K155: =IF(E155<>"Draft",IFERROR(G155/C155,""),IFERROR((G155/((C155*H155)/VLOOKUP(B155,'Hidden Fields'!$C$2:$D$10,2,FALSE))),"")) -> 
I156: =IFERROR(C156/VLOOKUP(B156,'Hidden Fields'!$C$2:$D$10,2,FALSE),"") ->  | J156: =IF(E156<>"Draft",IFERROR((G156-C156)/G156,""),IFERROR((G156-((C156*H156)/VLOOKUP(B156,'Hidden Fields'!$C$2:$D$10,2,FALSE)))/G156,"")) ->  | K156: =IF(E156<>"Draft",IFERROR(G156/C156,""),IFERROR((G156/((C156*H156)/VLOOKUP(B156,'Hidden Fields'!$C$2:$D$10,2,FALSE))),"")) -> 
I157: =IFERROR(C157/VLOOKUP(B157,'Hidden Fields'!$C$2:$D$10,2,FALSE),"") ->  | J157: =IF(E157<>"Draft",IFERROR((G157-C157)/G157,""),IFERROR((G157-((C157*H157)/VLOOKUP(B157,'Hidden Fields'!$C$2:$D$10,2,FALSE)))/G157,"")) ->  | K157: =IF(E157<>"Draft",IFERROR(G157/C157,""),IFERROR((G157/((C157*H157)/VLOOKUP(B157,'Hidden Fields'!$C$2:$D$10,2,FALSE))),"")) -> 
I158: =IFERROR(C158/VLOOKUP(B158,'Hidden Fields'!$C$2:$D$10,2,FALSE),"") ->  | J158: =IF(E158<>"Draft",IFERROR((G158-C158)/G158,""),IFERROR((G158-((C158*H158)/VLOOKUP(B158,'Hidden Fields'!$C$2:$D$10,2,FALSE)))/G158,"")) ->  | K158: =IF(E158<>"Draft",IFERROR(G158/C158,""),IFERROR((G158/((C158*H158)/VLOOKUP(B158,'Hidden Fields'!$C$2:$D$10,2,FALSE))),"")) -> 
I159: =IFERROR(C159/VLOOKUP(B159,'Hidden Fields'!$C$2:$D$10,2,FALSE),"") ->  | J159: =IF(E159<>"Draft",IFERROR((G159-C159)/G159,""),IFERROR((G159-((C159*H159)/VLOOKUP(B159,'Hidden Fields'!$C$2:$D$10,2,FALSE)))/G159,"")) ->  | K159: =IF(E159<>"Draft",IFERROR(G159/C159,""),IFERROR((G159/((C159*H159)/VLOOKUP(B159,'Hidden Fields'!$C$2:$D$10,2,FALSE))),"")) -> 
I160: =IFERROR(C160/VLOOKUP(B160,'Hidden Fields'!$C$2:$D$10,2,FALSE),"") ->  | J160: =IF(E160<>"Draft",IFERROR((G160-C160)/G160,""),IFERROR((G160-((C160*H160)/VLOOKUP(B160,'Hidden Fields'!$C$2:$D$10,2,FALSE)))/G160,"")) ->  | K160: =IF(E160<>"Draft",IFERROR(G160/C160,""),IFERROR((G160/((C160*H160)/VLOOKUP(B160,'Hidden Fields'!$C$2:$D$10,2,FALSE))),"")) -> 
I161: =IFERROR(C161/VLOOKUP(B161,'Hidden Fields'!$C$2:$D$10,2,FALSE),"") ->  | J161: =IF(E161<>"Draft",IFERROR((G161-C161)/G161,""),IFERROR((G161-((C161*H161)/VLOOKUP(B161,'Hidden Fields'!$C$2:$D$10,2,FALSE)))/G161,"")) ->  | K161: =IF(E161<>"Draft",IFERROR(G161/C161,""),IFERROR((G161/((C161*H161)/VLOOKUP(B161,'Hidden Fields'!$C$2:$D$10,2,FALSE))),"")) -> 
I162: =IFERROR(C162/VLOOKUP(B162,'Hidden Fields'!$C$2:$D$10,2,FALSE),"") ->  | J162: =IF(E162<>"Draft",IFERROR((G162-C162)/G162,""),IFERROR((G162-((C162*H162)/VLOOKUP(B162,'Hidden Fields'!$C$2:$D$10,2,FALSE)))/G162,"")) ->  | K162: =IF(E162<>"Draft",IFERROR(G162/C162,""),IFERROR((G162/((C162*H162)/VLOOKUP(B162,'Hidden Fields'!$C$2:$D$10,2,FALSE))),"")) -> 
I163: =IFERROR(C163/VLOOKUP(B163,'Hidden Fields'!$C$2:$D$10,2,FALSE),"") ->  | J163: =IF(E163<>"Draft",IFERROR((G163-C163)/G163,""),IFERROR((G163-((C163*H163)/VLOOKUP(B163,'Hidden Fields'!$C$2:$D$10,2,FALSE)))/G163,"")) ->  | K163: =IF(E163<>"Draft",IFERROR(G163/C163,""),IFERROR((G163/((C163*H163)/VLOOKUP(B163,'Hidden Fields'!$C$2:$D$10,2,FALSE))),"")) -> 
I164: =IFERROR(C164/VLOOKUP(B164,'Hidden Fields'!$C$2:$D$10,2,FALSE),"") ->  | J164: =IF(E164<>"Draft",IFERROR((G164-C164)/G164,""),IFERROR((G164-((C164*H164)/VLOOKUP(B164,'Hidden Fields'!$C$2:$D$10,2,FALSE)))/G164,"")) ->  | K164: =IF(E164<>"Draft",IFERROR(G164/C164,""),IFERROR((G164/((C164*H164)/VLOOKUP(B164,'Hidden Fields'!$C$2:$D$10,2,FALSE))),"")) -> 
I165: =IFERROR(C165/VLOOKUP(B165,'Hidden Fields'!$C$2:$D$10,2,FALSE),"") ->  | J165: =IF(E165<>"Draft",IFERROR((G165-C165)/G165,""),IFERROR((G165-((C165*H165)/VLOOKUP(B165,'Hidden Fields'!$C$2:$D$10,2,FALSE)))/G165,"")) ->  | K165: =IF(E165<>"Draft",IFERROR(G165/C165,""),IFERROR((G165/((C165*H165)/VLOOKUP(B165,'Hidden Fields'!$C$2:$D$10,2,FALSE))),"")) -> 
I166: =IFERROR(C166/VLOOKUP(B166,'Hidden Fields'!$C$2:$D$10,2,FALSE),"") ->  | J166: =IF(E166<>"Draft",IFERROR((G166-C166)/G166,""),IFERROR((G166-((C166*H166)/VLOOKUP(B166,'Hidden Fields'!$C$2:$D$10,2,FALSE)))/G166,"")) ->  | K166: =IF(E166<>"Draft",IFERROR(G166/C166,""),IFERROR((G166/((C166*H166)/VLOOKUP(B166,'Hidden Fields'!$C$2:$D$10,2,FALSE))),"")) -> 
I167: =IFERROR(C167/VLOOKUP(B167,'Hidden Fields'!$C$2:$D$10,2,FALSE),"") ->  | J167: =IF(E167<>"Draft",IFERROR((G167-C167)/G167,""),IFERROR((G167-((C167*H167)/VLOOKUP(B167,'Hidden Fields'!$C$2:$D$10,2,FALSE)))/G167,"")) ->  | K167: =IF(E167<>"Draft",IFERROR(G167/C167,""),IFERROR((G167/((C167*H167)/VLOOKUP(B167,'Hidden Fields'!$C$2:$D$10,2,FALSE))),"")) -> 
I168: =IFERROR(C168/VLOOKUP(B168,'Hidden Fields'!$C$2:$D$10,2,FALSE),"") ->  | J168: =IF(E168<>"Draft",IFERROR((G168-C168)/G168,""),IFERROR((G168-((C168*H168)/VLOOKUP(B168,'Hidden Fields'!$C$2:$D$10,2,FALSE)))/G168,"")) ->  | K168: =IF(E168<>"Draft",IFERROR(G168/C168,""),IFERROR((G168/((C168*H168)/VLOOKUP(B168,'Hidden Fields'!$C$2:$D$10,2,FALSE))),"")) -> 
I169: =IFERROR(C169/VLOOKUP(B169,'Hidden Fields'!$C$2:$D$10,2,FALSE),"") ->  | J169: =IF(E169<>"Draft",IFERROR((G169-C169)/G169,""),IFERROR((G169-((C169*H169)/VLOOKUP(B169,'Hidden Fields'!$C$2:$D$10,2,FALSE)))/G169,"")) ->  | K169: =IF(E169<>"Draft",IFERROR(G169/C169,""),IFERROR((G169/((C169*H169)/VLOOKUP(B169,'Hidden Fields'!$C$2:$D$10,2,FALSE))),"")) -> 
I170: =IFERROR(C170/VLOOKUP(B170,'Hidden Fields'!$C$2:$D$10,2,FALSE),"") ->  | J170: =IF(E170<>"Draft",IFERROR((G170-C170)/G170,""),IFERROR((G170-((C170*H170)/VLOOKUP(B170,'Hidden Fields'!$C$2:$D$10,2,FALSE)))/G170,"")) ->  | K170: =IF(E170<>"Draft",IFERROR(G170/C170,""),IFERROR((G170/((C170*H170)/VLOOKUP(B170,'Hidden Fields'!$C$2:$D$10,2,FALSE))),"")) -> 
I171: =IFERROR(C171/VLOOKUP(B171,'Hidden Fields'!$C$2:$D$10,2,FALSE),"") ->  | J171: =IF(E171<>"Draft",IFERROR((G171-C171)/G171,""),IFERROR((G171-((C171*H171)/VLOOKUP(B171,'Hidden Fields'!$C$2:$D$10,2,FALSE)))/G171,"")) ->  | K171: =IF(E171<>"Draft",IFERROR(G171/C171,""),IFERROR((G171/((C171*H171)/VLOOKUP(B171,'Hidden Fields'!$C$2:$D$10,2,FALSE))),"")) -> 
I172: =IFERROR(C172/VLOOKUP(B172,'Hidden Fields'!$C$2:$D$10,2,FALSE),"") ->  | J172: =IF(E172<>"Draft",IFERROR((G172-C172)/G172,""),IFERROR((G172-((C172*H172)/VLOOKUP(B172,'Hidden Fields'!$C$2:$D$10,2,FALSE)))/G172,"")) ->  | K172: =IF(E172<>"Draft",IFERROR(G172/C172,""),IFERROR((G172/((C172*H172)/VLOOKUP(B172,'Hidden Fields'!$C$2:$D$10,2,FALSE))),"")) -> 
I173: =IFERROR(C173/VLOOKUP(B173,'Hidden Fields'!$C$2:$D$10,2,FALSE),"") ->  | J173: =IF(E173<>"Draft",IFERROR((G173-C173)/G173,""),IFERROR((G173-((C173*H173)/VLOOKUP(B173,'Hidden Fields'!$C$2:$D$10,2,FALSE)))/G173,"")) ->  | K173: =IF(E173<>"Draft",IFERROR(G173/C173,""),IFERROR((G173/((C173*H173)/VLOOKUP(B173,'Hidden Fields'!$C$2:$D$10,2,FALSE))),"")) -> 
I174: =IFERROR(C174/VLOOKUP(B174,'Hidden Fields'!$C$2:$D$10,2,FALSE),"") ->  | J174: =IF(E174<>"Draft",IFERROR((G174-C174)/G174,""),IFERROR((G174-((C174*H174)/VLOOKUP(B174,'Hidden Fields'!$C$2:$D$10,2,FALSE)))/G174,"")) ->  | K174: =IF(E174<>"Draft",IFERROR(G174/C174,""),IFERROR((G174/((C174*H174)/VLOOKUP(B174,'Hidden Fields'!$C$2:$D$10,2,FALSE))),"")) -> 
I175: =IFERROR(C175/VLOOKUP(B175,'Hidden Fields'!$C$2:$D$10,2,FALSE),"") ->  | J175: =IF(E175<>"Draft",IFERROR((G175-C175)/G175,""),IFERROR((G175-((C175*H175)/VLOOKUP(B175,'Hidden Fields'!$C$2:$D$10,2,FALSE)))/G175,"")) ->  | K175: =IF(E175<>"Draft",IFERROR(G175/C175,""),IFERROR((G175/((C175*H175)/VLOOKUP(B175,'Hidden Fields'!$C$2:$D$10,2,FALSE))),"")) -> 
I176: =IFERROR(C176/VLOOKUP(B176,'Hidden Fields'!$C$2:$D$10,2,FALSE),"") ->  | J176: =IF(E176<>"Draft",IFERROR((G176-C176)/G176,""),IFERROR((G176-((C176*H176)/VLOOKUP(B176,'Hidden Fields'!$C$2:$D$10,2,FALSE)))/G176,"")) ->  | K176: =IF(E176<>"Draft",IFERROR(G176/C176,""),IFERROR((G176/((C176*H176)/VLOOKUP(B176,'Hidden Fields'!$C$2:$D$10,2,FALSE))),"")) -> 
I177: =IFERROR(C177/VLOOKUP(B177,'Hidden Fields'!$C$2:$D$10,2,FALSE),"") ->  | J177: =IF(E177<>"Draft",IFERROR((G177-C177)/G177,""),IFERROR((G177-((C177*H177)/VLOOKUP(B177,'Hidden Fields'!$C$2:$D$10,2,FALSE)))/G177,"")) ->  | K177: =IF(E177<>"Draft",IFERROR(G177/C177,""),IFERROR((G177/((C177*H177)/VLOOKUP(B177,'Hidden Fields'!$C$2:$D$10,2,FALSE))),"")) -> 
I178: =IFERROR(C178/VLOOKUP(B178,'Hidden Fields'!$C$2:$D$10,2,FALSE),"") ->  | J178: =IF(E178<>"Draft",IFERROR((G178-C178)/G178,""),IFERROR((G178-((C178*H178)/VLOOKUP(B178,'Hidden Fields'!$C$2:$D$10,2,FALSE)))/G178,"")) ->  | K178: =IF(E178<>"Draft",IFERROR(G178/C178,""),IFERROR((G178/((C178*H178)/VLOOKUP(B178,'Hidden Fields'!$C$2:$D$10,2,FALSE))),"")) -> 
I179: =IFERROR(C179/VLOOKUP(B179,'Hidden Fields'!$C$2:$D$10,2,FALSE),"") ->  | J179: =IF(E179<>"Draft",IFERROR((G179-C179)/G179,""),IFERROR((G179-((C179*H179)/VLOOKUP(B179,'Hidden Fields'!$C$2:$D$10,2,FALSE)))/G179,"")) ->  | K179: =IF(E179<>"Draft",IFERROR(G179/C179,""),IFERROR((G179/((C179*H179)/VLOOKUP(B179,'Hidden Fields'!$C$2:$D$10,2,FALSE))),"")) -> 
I180: =IFERROR(C180/VLOOKUP(B180,'Hidden Fields'!$C$2:$D$10,2,FALSE),"") ->  | J180: =IF(E180<>"Draft",IFERROR((G180-C180)/G180,""),IFERROR((G180-((C180*H180)/VLOOKUP(B180,'Hidden Fields'!$C$2:$D$10,2,FALSE)))/G180,"")) ->  | K180: =IF(E180<>"Draft",IFERROR(G180/C180,""),IFERROR((G180/((C180*H180)/VLOOKUP(B180,'Hidden Fields'!$C$2:$D$10,2,FALSE))),"")) -> 
I181: =IFERROR(C181/VLOOKUP(B181,'Hidden Fields'!$C$2:$D$10,2,FALSE),"") ->  | J181: =IF(E181<>"Draft",IFERROR((G181-C181)/G181,""),IFERROR((G181-((C181*H181)/VLOOKUP(B181,'Hidden Fields'!$C$2:$D$10,2,FALSE)))/G181,"")) ->  | K181: =IF(E181<>"Draft",IFERROR(G181/C181,""),IFERROR((G181/((C181*H181)/VLOOKUP(B181,'Hidden Fields'!$C$2:$D$10,2,FALSE))),"")) -> 
I182: =IFERROR(C182/VLOOKUP(B182,'Hidden Fields'!$C$2:$D$10,2,FALSE),"") ->  | J182: =IF(E182<>"Draft",IFERROR((G182-C182)/G182,""),IFERROR((G182-((C182*H182)/VLOOKUP(B182,'Hidden Fields'!$C$2:$D$10,2,FALSE)))/G182,"")) ->  | K182: =IF(E182<>"Draft",IFERROR(G182/C182,""),IFERROR((G182/((C182*H182)/VLOOKUP(B182,'Hidden Fields'!$C$2:$D$10,2,FALSE))),"")) -> 
I183: =IFERROR(C183/VLOOKUP(B183,'Hidden Fields'!$C$2:$D$10,2,FALSE),"") ->  | J183: =IF(E183<>"Draft",IFERROR((G183-C183)/G183,""),IFERROR((G183-((C183*H183)/VLOOKUP(B183,'Hidden Fields'!$C$2:$D$10,2,FALSE)))/G183,"")) ->  | K183: =IF(E183<>"Draft",IFERROR(G183/C183,""),IFERROR((G183/((C183*H183)/VLOOKUP(B183,'Hidden Fields'!$C$2:$D$10,2,FALSE))),"")) -> 
I184: =IFERROR(C184/VLOOKUP(B184,'Hidden Fields'!$C$2:$D$10,2,FALSE),"") ->  | J184: =IF(E184<>"Draft",IFERROR((G184-C184)/G184,""),IFERROR((G184-((C184*H184)/VLOOKUP(B184,'Hidden Fields'!$C$2:$D$10,2,FALSE)))/G184,"")) ->  | K184: =IF(E184<>"Draft",IFERROR(G184/C184,""),IFERROR((G184/((C184*H184)/VLOOKUP(B184,'Hidden Fields'!$C$2:$D$10,2,FALSE))),"")) -> 
I185: =IFERROR(C185/VLOOKUP(B185,'Hidden Fields'!$C$2:$D$10,2,FALSE),"") ->  | J185: =IF(E185<>"Draft",IFERROR((G185-C185)/G185,""),IFERROR((G185-((C185*H185)/VLOOKUP(B185,'Hidden Fields'!$C$2:$D$10,2,FALSE)))/G185,"")) ->  | K185: =IF(E185<>"Draft",IFERROR(G185/C185,""),IFERROR((G185/((C185*H185)/VLOOKUP(B185,'Hidden Fields'!$C$2:$D$10,2,FALSE))),"")) -> 
I186: =IFERROR(C186/VLOOKUP(B186,'Hidden Fields'!$C$2:$D$10,2,FALSE),"") ->  | J186: =IF(E186<>"Draft",IFERROR((G186-C186)/G186,""),IFERROR((G186-((C186*H186)/VLOOKUP(B186,'Hidden Fields'!$C$2:$D$10,2,FALSE)))/G186,"")) ->  | K186: =IF(E186<>"Draft",IFERROR(G186/C186,""),IFERROR((G186/((C186*H186)/VLOOKUP(B186,'Hidden Fields'!$C$2:$D$10,2,FALSE))),"")) -> 
I187: =IFERROR(C187/VLOOKUP(B187,'Hidden Fields'!$C$2:$D$10,2,FALSE),"") ->  | J187: =IF(E187<>"Draft",IFERROR((G187-C187)/G187,""),IFERROR((G187-((C187*H187)/VLOOKUP(B187,'Hidden Fields'!$C$2:$D$10,2,FALSE)))/G187,"")) ->  | K187: =IF(E187<>"Draft",IFERROR(G187/C187,""),IFERROR((G187/((C187*H187)/VLOOKUP(B187,'Hidden Fields'!$C$2:$D$10,2,FALSE))),"")) -> 
I188: =IFERROR(C188/VLOOKUP(B188,'Hidden Fields'!$C$2:$D$10,2,FALSE),"") ->  | J188: =IF(E188<>"Draft",IFERROR((G188-C188)/G188,""),IFERROR((G188-((C188*H188)/VLOOKUP(B188,'Hidden Fields'!$C$2:$D$10,2,FALSE)))/G188,"")) ->  | K188: =IF(E188<>"Draft",IFERROR(G188/C188,""),IFERROR((G188/((C188*H188)/VLOOKUP(B188,'Hidden Fields'!$C$2:$D$10,2,FALSE))),"")) -> 
I189: =IFERROR(C189/VLOOKUP(B189,'Hidden Fields'!$C$2:$D$10,2,FALSE),"") ->  | J189: =IF(E189<>"Draft",IFERROR((G189-C189)/G189,""),IFERROR((G189-((C189*H189)/VLOOKUP(B189,'Hidden Fields'!$C$2:$D$10,2,FALSE)))/G189,"")) ->  | K189: =IF(E189<>"Draft",IFERROR(G189/C189,""),IFERROR((G189/((C189*H189)/VLOOKUP(B189,'Hidden Fields'!$C$2:$D$10,2,FALSE))),"")) -> 
I190: =IFERROR(C190/VLOOKUP(B190,'Hidden Fields'!$C$2:$D$10,2,FALSE),"") ->  | J190: =IF(E190<>"Draft",IFERROR((G190-C190)/G190,""),IFERROR((G190-((C190*H190)/VLOOKUP(B190,'Hidden Fields'!$C$2:$D$10,2,FALSE)))/G190,"")) ->  | K190: =IF(E190<>"Draft",IFERROR(G190/C190,""),IFERROR((G190/((C190*H190)/VLOOKUP(B190,'Hidden Fields'!$C$2:$D$10,2,FALSE))),"")) -> 
I191: =IFERROR(C191/VLOOKUP(B191,'Hidden Fields'!$C$2:$D$10,2,FALSE),"") ->  | J191: =IF(E191<>"Draft",IFERROR((G191-C191)/G191,""),IFERROR((G191-((C191*H191)/VLOOKUP(B191,'Hidden Fields'!$C$2:$D$10,2,FALSE)))/G191,"")) ->  | K191: =IF(E191<>"Draft",IFERROR(G191/C191,""),IFERROR((G191/((C191*H191)/VLOOKUP(B191,'Hidden Fields'!$C$2:$D$10,2,FALSE))),"")) -> 
I192: =IFERROR(C192/VLOOKUP(B192,'Hidden Fields'!$C$2:$D$10,2,FALSE),"") ->  | J192: =IF(E192<>"Draft",IFERROR((G192-C192)/G192,""),IFERROR((G192-((C192*H192)/VLOOKUP(B192,'Hidden Fields'!$C$2:$D$10,2,FALSE)))/G192,"")) ->  | K192: =IF(E192<>"Draft",IFERROR(G192/C192,""),IFERROR((G192/((C192*H192)/VLOOKUP(B192,'Hidden Fields'!$C$2:$D$10,2,FALSE))),"")) -> 
I193: =IFERROR(C193/VLOOKUP(B193,'Hidden Fields'!$C$2:$D$10,2,FALSE),"") ->  | J193: =IF(E193<>"Draft",IFERROR((G193-C193)/G193,""),IFERROR((G193-((C193*H193)/VLOOKUP(B193,'Hidden Fields'!$C$2:$D$10,2,FALSE)))/G193,"")) ->  | K193: =IF(E193<>"Draft",IFERROR(G193/C193,""),IFERROR((G193/((C193*H193)/VLOOKUP(B193,'Hidden Fields'!$C$2:$D$10,2,FALSE))),"")) -> 
I194: =IFERROR(C194/VLOOKUP(B194,'Hidden Fields'!$C$2:$D$10,2,FALSE),"") ->  | J194: =IF(E194<>"Draft",IFERROR((G194-C194)/G194,""),IFERROR((G194-((C194*H194)/VLOOKUP(B194,'Hidden Fields'!$C$2:$D$10,2,FALSE)))/G194,"")) ->  | K194: =IF(E194<>"Draft",IFERROR(G194/C194,""),IFERROR((G194/((C194*H194)/VLOOKUP(B194,'Hidden Fields'!$C$2:$D$10,2,FALSE))),"")) -> 
I195: =IFERROR(C195/VLOOKUP(B195,'Hidden Fields'!$C$2:$D$10,2,FALSE),"") ->  | J195: =IF(E195<>"Draft",IFERROR((G195-C195)/G195,""),IFERROR((G195-((C195*H195)/VLOOKUP(B195,'Hidden Fields'!$C$2:$D$10,2,FALSE)))/G195,"")) ->  | K195: =IF(E195<>"Draft",IFERROR(G195/C195,""),IFERROR((G195/((C195*H195)/VLOOKUP(B195,'Hidden Fields'!$C$2:$D$10,2,FALSE))),"")) -> 
I196: =IFERROR(C196/VLOOKUP(B196,'Hidden Fields'!$C$2:$D$10,2,FALSE),"") ->  | J196: =IF(E196<>"Draft",IFERROR((G196-C196)/G196,""),IFERROR((G196-((C196*H196)/VLOOKUP(B196,'Hidden Fields'!$C$2:$D$10,2,FALSE)))/G196,"")) ->  | K196: =IF(E196<>"Draft",IFERROR(G196/C196,""),IFERROR((G196/((C196*H196)/VLOOKUP(B196,'Hidden Fields'!$C$2:$D$10,2,FALSE))),"")) -> 
I197: =IFERROR(C197/VLOOKUP(B197,'Hidden Fields'!$C$2:$D$10,2,FALSE),"") ->  | J197: =IF(E197<>"Draft",IFERROR((G197-C197)/G197,""),IFERROR((G197-((C197*H197)/VLOOKUP(B197,'Hidden Fields'!$C$2:$D$10,2,FALSE)))/G197,"")) ->  | K197: =IF(E197<>"Draft",IFERROR(G197/C197,""),IFERROR((G197/((C197*H197)/VLOOKUP(B197,'Hidden Fields'!$C$2:$D$10,2,FALSE))),"")) -> 
I198: =IFERROR(C198/VLOOKUP(B198,'Hidden Fields'!$C$2:$D$10,2,FALSE),"") ->  | J198: =IF(E198<>"Draft",IFERROR((G198-C198)/G198,""),IFERROR((G198-((C198*H198)/VLOOKUP(B198,'Hidden Fields'!$C$2:$D$10,2,FALSE)))/G198,"")) ->  | K198: =IF(E198<>"Draft",IFERROR(G198/C198,""),IFERROR((G198/((C198*H198)/VLOOKUP(B198,'Hidden Fields'!$C$2:$D$10,2,FALSE))),"")) -> 
I199: =IFERROR(C199/VLOOKUP(B199,'Hidden Fields'!$C$2:$D$10,2,FALSE),"") ->  | J199: =IF(E199<>"Draft",IFERROR((G199-C199)/G199,""),IFERROR((G199-((C199*H199)/VLOOKUP(B199,'Hidden Fields'!$C$2:$D$10,2,FALSE)))/G199,"")) ->  | K199: =IF(E199<>"Draft",IFERROR(G199/C199,""),IFERROR((G199/((C199*H199)/VLOOKUP(B199,'Hidden Fields'!$C$2:$D$10,2,FALSE))),"")) -> 
I200: =IFERROR(C200/VLOOKUP(B200,'Hidden Fields'!$C$2:$D$10,2,FALSE),"") ->  | J200: =IF(E200<>"Draft",IFERROR((G200-C200)/G200,""),IFERROR((G200-((C200*H200)/VLOOKUP(B200,'Hidden Fields'!$C$2:$D$10,2,FALSE)))/G200,"")) ->  | K200: =IF(E200<>"Draft",IFERROR(G200/C200,""),IFERROR((G200/((C200*H200)/VLOOKUP(B200,'Hidden Fields'!$C$2:$D$10,2,FALSE))),"")) -> 
... 214 more rows

Sheet Liquors
A1: Liquor Name | B1: Size | C1: Cost | D1: Distributor | E1: Category | F1: Type | G1: Menu Price | H1: Pour Size (oz) | I1: $ cost/oz | J1: % Margin | K1: Markup
A2: Sample Liquor 1 | B2: 750ml | C2: 8.5 | D2: Distributor A | E2: Well | F2: Rum | G2: 6 | H2: 2 | I2: =IFERROR(C2/VLOOKUP(B2,'Hidden Fields'!$E$2:$F$3,2,FALSE),"") -> 0.3359683794 | J2: =IFERROR((G2-((C2*H2)/VLOOKUP(B2,'Hidden Fields'!$E$2:$F$3,2,FALSE)))/G2,"") -> 0.8880105402 | K2: =IFERROR(G2/((C2*H2)/VLOOKUP(B2,'Hidden Fields'!$E$2:$F$3,2,FALSE)),"") -> 8.929411765
A3: Sample Liquor 2 | B3: 750ml | C3: 34.75 | D3: Distributor D | E3: Top Shelf | F3: Vodka | G3: 10 | H3: 2 | I3: =IFERROR(C3/VLOOKUP(B3,'Hidden Fields'!$E$2:$F$3,2,FALSE),"") -> 1.373517787 | J3: =IFERROR((G3-((C3*H3)/VLOOKUP(B3,'Hidden Fields'!$E$2:$F$3,2,FALSE)))/G3,"") -> 0.7252964427 | K3: =IFERROR(G3/((C3*H3)/VLOOKUP(B3,'Hidden Fields'!$E$2:$F$3,2,FALSE)),"") -> 3.64028777
A4: Sample Liquor 3 | B4: 750ml | C4: 23.9 | D4: Distributor C | E4: Premium | F4: Bourbon | G4: 8 | H4: 2 | I4: =IFERROR(C4/VLOOKUP(B4,'Hidden Fields'!$E$2:$F$3,2,FALSE),"") -> 0.9446640316 | J4: =IFERROR((G4-((C4*H4)/VLOOKUP(B4,'Hidden Fields'!$E$2:$F$3,2,FALSE)))/G4,"") -> 0.7638339921 | K4: =IFERROR(G4/((C4*H4)/VLOOKUP(B4,'Hidden Fields'!$E$2:$F$3,2,FALSE)),"") -> 4.234309623
A5: Sample Liquor 4 | B5: 750ml | C5: 78.2 | D5: Distributor A | E5: Top Shelf | F5: Whiskey | G5: 25 | H5: 2 | I5: =IFERROR(C5/VLOOKUP(B5,'Hidden Fields'!$E$2:$F$3,2,FALSE),"") -> 3.090909091 | J5: =IFERROR((G5-((C5*H5)/VLOOKUP(B5,'Hidden Fields'!$E$2:$F$3,2,FALSE)))/G5,"") -> 0.7527272727 | K5: =IFERROR(G5/((C5*H5)/VLOOKUP(B5,'Hidden Fields'!$E$2:$F$3,2,FALSE)),"") -> 4.044117647
A6: Sample Liquor 5 | B6: 750ml | C6: 40.1 | D6: Distributor A | E6: Call | F6: Brandy | G6: 12 | H6: 2 | I6: =IFERROR(C6/VLOOKUP(B6,'Hidden Fields'!$E$2:$F$3,2,FALSE),"") -> 1.584980237 | J6: =IFERROR((G6-((C6*H6)/VLOOKUP(B6,'Hidden Fields'!$E$2:$F$3,2,FALSE)))/G6,"") -> 0.7358366271 | K6: =IFERROR(G6/((C6*H6)/VLOOKUP(B6,'Hidden Fields'!$E$2:$F$3,2,FALSE)),"") -> 3.78553616
I7: =IFERROR(C7/VLOOKUP(B7,'Hidden Fields'!$E$2:$F$3,2,FALSE),"") ->  | J7: =IFERROR((G7-((C7*H7)/VLOOKUP(B7,'Hidden Fields'!$E$2:$F$3,2,FALSE)))/G7,"") ->  | K7: =IFERROR(G7/((C7*H7)/VLOOKUP(B7,'Hidden Fields'!$E$2:$F$3,2,FALSE)),"") -> 
I8: =IFERROR(C8/VLOOKUP(B8,'Hidden Fields'!$E$2:$F$3,2,FALSE),"") ->  | J8: =IFERROR((G8-((C8*H8)/VLOOKUP(B8,'Hidden Fields'!$E$2:$F$3,2,FALSE)))/G8,"") ->  | K8: =IFERROR(G8/((C8*H8)/VLOOKUP(B8,'Hidden Fields'!$E$2:$F$3,2,FALSE)),"") -> 
I9: =IFERROR(C9/VLOOKUP(B9,'Hidden Fields'!$E$2:$F$3,2,FALSE),"") ->  | J9: =IFERROR((G9-((C9*H9)/VLOOKUP(B9,'Hidden Fields'!$E$2:$F$3,2,FALSE)))/G9,"") ->  | K9: =IFERROR(G9/((C9*H9)/VLOOKUP(B9,'Hidden Fields'!$E$2:$F$3,2,FALSE)),"") -> 
I10: =IFERROR(C10/VLOOKUP(B10,'Hidden Fields'!$E$2:$F$3,2,FALSE),"") ->  | J10: =IFERROR((G10-((C10*H10)/VLOOKUP(B10,'Hidden Fields'!$E$2:$F$3,2,FALSE)))/G10,"") ->  | K10: =IFERROR(G10/((C10*H10)/VLOOKUP(B10,'Hidden Fields'!$E$2:$F$3,2,FALSE)),"") -> 
I11: =IFERROR(C11/VLOOKUP(B11,'Hidden Fields'!$E$2:$F$3,2,FALSE),"") ->  | J11: =IFERROR((G11-((C11*H11)/VLOOKUP(B11,'Hidden Fields'!$E$2:$F$3,2,FALSE)))/G11,"") ->  | K11: =IFERROR(G11/((C11*H11)/VLOOKUP(B11,'Hidden Fields'!$E$2:$F$3,2,FALSE)),"") -> 
I12: =IFERROR(C12/VLOOKUP(B12,'Hidden Fields'!$E$2:$F$3,2,FALSE),"") ->  | J12: =IFERROR((G12-((C12*H12)/VLOOKUP(B12,'Hidden Fields'!$E$2:$F$3,2,FALSE)))/G12,"") ->  | K12: =IFERROR(G12/((C12*H12)/VLOOKUP(B12,'Hidden Fields'!$E$2:$F$3,2,FALSE)),"") -> 
I13: =IFERROR(C13/VLOOKUP(B13,'Hidden Fields'!$E$2:$F$3,2,FALSE),"") ->  | J13: =IFERROR((G13-((C13*H13)/VLOOKUP(B13,'Hidden Fields'!$E$2:$F$3,2,FALSE)))/G13,"") ->  | K13: =IFERROR(G13/((C13*H13)/VLOOKUP(B13,'Hidden Fields'!$E$2:$F$3,2,FALSE)),"") -> 
I14: =IFERROR(C14/VLOOKUP(B14,'Hidden Fields'!$E$2:$F$3,2,FALSE),"") ->  | J14: =IFERROR((G14-((C14*H14)/VLOOKUP(B14,'Hidden Fields'!$E$2:$F$3,2,FALSE)))/G14,"") ->  | K14: =IFERROR(G14/((C14*H14)/VLOOKUP(B14,'Hidden Fields'!$E$2:$F$3,2,FALSE)),"") -> 
I15: =IFERROR(C15/VLOOKUP(B15,'Hidden Fields'!$E$2:$F$3,2,FALSE),"") ->  | J15: =IFERROR((G15-((C15*H15)/VLOOKUP(B15,'Hidden Fields'!$E$2:$F$3,2,FALSE)))/G15,"") ->  | K15: =IFERROR(G15/((C15*H15)/VLOOKUP(B15,'Hidden Fields'!$E$2:$F$3,2,FALSE)),"") -> 
I16: =IFERROR(C16/VLOOKUP(B16,'Hidden Fields'!$E$2:$F$3,2,FALSE),"") ->  | J16: =IFERROR((G16-((C16*H16)/VLOOKUP(B16,'Hidden Fields'!$E$2:$F$3,2,FALSE)))/G16,"") ->  | K16: =IFERROR(G16/((C16*H16)/VLOOKUP(B16,'Hidden Fields'!$E$2:$F$3,2,FALSE)),"") -> 
I17: =IFERROR(C17/VLOOKUP(B17,'Hidden Fields'!$E$2:$F$3,2,FALSE),"") ->  | J17: =IFERROR((G17-((C17*H17)/VLOOKUP(B17,'Hidden Fields'!$E$2:$F$3,2,FALSE)))/G17,"") ->  | K17: =IFERROR(G17/((C17*H17)/VLOOKUP(B17,'Hidden Fields'!$E$2:$F$3,2,FALSE)),"") -> 
I18: =IFERROR(C18/VLOOKUP(B18,'Hidden Fields'!$E$2:$F$3,2,FALSE),"") ->  | J18: =IFERROR((G18-((C18*H18)/VLOOKUP(B18,'Hidden Fields'!$E$2:$F$3,2,FALSE)))/G18,"") ->  | K18: =IFERROR(G18/((C18*H18)/VLOOKUP(B18,'Hidden Fields'!$E$2:$F$3,2,FALSE)),"") -> 
I19: =IFERROR(C19/VLOOKUP(B19,'Hidden Fields'!$E$2:$F$3,2,FALSE),"") ->  | J19: =IFERROR((G19-((C19*H19)/VLOOKUP(B19,'Hidden Fields'!$E$2:$F$3,2,FALSE)))/G19,"") ->  | K19: =IFERROR(G19/((C19*H19)/VLOOKUP(B19,'Hidden Fields'!$E$2:$F$3,2,FALSE)),"") -> 
I20: =IFERROR(C20/VLOOKUP(B20,'Hidden Fields'!$E$2:$F$3,2,FALSE),"") ->  | J20: =IFERROR((G20-((C20*H20)/VLOOKUP(B20,'Hidden Fields'!$E$2:$F$3,2,FALSE)))/G20,"") ->  | K20: =IFERROR(G20/((C20*H20)/VLOOKUP(B20,'Hidden Fields'!$E$2:$F$3,2,FALSE)),"") -> 
I21: =IFERROR(C21/VLOOKUP(B21,'Hidden Fields'!$E$2:$F$3,2,FALSE),"") ->  | J21: =IFERROR((G21-((C21*H21)/VLOOKUP(B21,'Hidden Fields'!$E$2:$F$3,2,FALSE)))/G21,"") ->  | K21: =IFERROR(G21/((C21*H21)/VLOOKUP(B21,'Hidden Fields'!$E$2:$F$3,2,FALSE)),"") -> 
I22: =IFERROR(C22/VLOOKUP(B22,'Hidden Fields'!$E$2:$F$3,2,FALSE),"") ->  | J22: =IFERROR((G22-((C22*H22)/VLOOKUP(B22,'Hidden Fields'!$E$2:$F$3,2,FALSE)))/G22,"") ->  | K22: =IFERROR(G22/((C22*H22)/VLOOKUP(B22,'Hidden Fields'!$E$2:$F$3,2,FALSE)),"") -> 
I23: =IFERROR(C23/VLOOKUP(B23,'Hidden Fields'!$E$2:$F$3,2,FALSE),"") ->  | J23: =IFERROR((G23-((C23*H23)/VLOOKUP(B23,'Hidden Fields'!$E$2:$F$3,2,FALSE)))/G23,"") ->  | K23: =IFERROR(G23/((C23*H23)/VLOOKUP(B23,'Hidden Fields'!$E$2:$F$3,2,FALSE)),"") -> 
I24: =IFERROR(C24/VLOOKUP(B24,'Hidden Fields'!$E$2:$F$3,2,FALSE),"") ->  | J24: =IFERROR((G24-((C24*H24)/VLOOKUP(B24,'Hidden Fields'!$E$2:$F$3,2,FALSE)))/G24,"") ->  | K24: =IFERROR(G24/((C24*H24)/VLOOKUP(B24,'Hidden Fields'!$E$2:$F$3,2,FALSE)),"") -> 
I25: =IFERROR(C25/VLOOKUP(B25,'Hidden Fields'!$E$2:$F$3,2,FALSE),"") ->  | J25: =IFERROR((G25-((C25*H25)/VLOOKUP(B25,'Hidden Fields'!$E$2:$F$3,2,FALSE)))/G25,"") ->  | K25: =IFERROR(G25/((C25*H25)/VLOOKUP(B25,'Hidden Fields'!$E$2:$F$3,2,FALSE)),"") -> 
I26: =IFERROR(C26/VLOOKUP(B26,'Hidden Fields'!$E$2:$F$3,2,FALSE),"") ->  | J26: =IFERROR((G26-((C26*H26)/VLOOKUP(B26,'Hidden Fields'!$E$2:$F$3,2,FALSE)))/G26,"") ->  | K26: =IFERROR(G26/((C26*H26)/VLOOKUP(B26,'Hidden Fields'!$E$2:$F$3,2,FALSE)),"") -> 
I27: =IFERROR(C27/VLOOKUP(B27,'Hidden Fields'!$E$2:$F$3,2,FALSE),"") ->  | J27: =IFERROR((G27-((C27*H27)/VLOOKUP(B27,'Hidden Fields'!$E$2:$F$3,2,FALSE)))/G27,"") ->  | K27: =IFERROR(G27/((C27*H27)/VLOOKUP(B27,'Hidden Fields'!$E$2:$F$3,2,FALSE)),"") -> 
I28: =IFERROR(C28/VLOOKUP(B28,'Hidden Fields'!$E$2:$F$3,2,FALSE),"") ->  | J28: =IFERROR((G28-((C28*H28)/VLOOKUP(B28,'Hidden Fields'!$E$2:$F$3,2,FALSE)))/G28,"") ->  | K28: =IFERROR(G28/((C28*H28)/VLOOKUP(B28,'Hidden Fields'!$E$2:$F$3,2,FALSE)),"") -> 
I29: =IFERROR(C29/VLOOKUP(B29,'Hidden Fields'!$E$2:$F$3,2,FALSE),"") ->  | J29: =IFERROR((G29-((C29*H29)/VLOOKUP(B29,'Hidden Fields'!$E$2:$F$3,2,FALSE)))/G29,"") ->  | K29: =IFERROR(G29/((C29*H29)/VLOOKUP(B29,'Hidden Fields'!$E$2:$F$3,2,FALSE)),"") -> 
I30: =IFERROR(C30/VLOOKUP(B30,'Hidden Fields'!$E$2:$F$3,2,FALSE),"") ->  | J30: =IFERROR((G30-((C30*H30)/VLOOKUP(B30,'Hidden Fields'!$E$2:$F$3,2,FALSE)))/G30,"") ->  | K30: =IFERROR(G30/((C30*H30)/VLOOKUP(B30,'Hidden Fields'!$E$2:$F$3,2,FALSE)),"") -> 
I31: =IFERROR(C31/VLOOKUP(B31,'Hidden Fields'!$E$2:$F$3,2,FALSE),"") ->  | J31: =IFERROR((G31-((C31*H31)/VLOOKUP(B31,'Hidden Fields'!$E$2:$F$3,2,FALSE)))/G31,"") ->  | K31: =IFERROR(G31/((C31*H31)/VLOOKUP(B31,'Hidden Fields'!$E$2:$F$3,2,FALSE)),"") -> 
I32: =IFERROR(C32/VLOOKUP(B32,'Hidden Fields'!$E$2:$F$3,2,FALSE),"") ->  | J32: =IFERROR((G32-((C32*H32)/VLOOKUP(B32,'Hidden Fields'!$E$2:$F$3,2,FALSE)))/G32,"") ->  | K32: =IFERROR(G32/((C32*H32)/VLOOKUP(B32,'Hidden Fields'!$E$2:$F$3,2,FALSE)),"") -> 
I33: =IFERROR(C33/VLOOKUP(B33,'Hidden Fields'!$E$2:$F$3,2,FALSE),"") ->  | J33: =IFERROR((G33-((C33*H33)/VLOOKUP(B33,'Hidden Fields'!$E$2:$F$3,2,FALSE)))/G33,"") ->  | K33: =IFERROR(G33/((C33*H33)/VLOOKUP(B33,'Hidden Fields'!$E$2:$F$3,2,FALSE)),"") -> 
I34: =IFERROR(C34/VLOOKUP(B34,'Hidden Fields'!$E$2:$F$3,2,FALSE),"") ->  | J34: =IFERROR((G34-((C34*H34)/VLOOKUP(B34,'Hidden Fields'!$E$2:$F$3,2,FALSE)))/G34,"") ->  | K34: =IFERROR(G34/((C34*H34)/VLOOKUP(B34,'Hidden Fields'!$E$2:$F$3,2,FALSE)),"") -> 
I35: =IFERROR(C35/VLOOKUP(B35,'Hidden Fields'!$E$2:$F$3,2,FALSE),"") ->  | J35: =IFERROR((G35-((C35*H35)/VLOOKUP(B35,'Hidden Fields'!$E$2:$F$3,2,FALSE)))/G35,"") ->  | K35: =IFERROR(G35/((C35*H35)/VLOOKUP(B35,'Hidden Fields'!$E$2:$F$3,2,FALSE)),"") -> 
I36: =IFERROR(C36/VLOOKUP(B36,'Hidden Fields'!$E$2:$F$3,2,FALSE),"") ->  | J36: =IFERROR((G36-((C36*H36)/VLOOKUP(B36,'Hidden Fields'!$E$2:$F$3,2,FALSE)))/G36,"") ->  | K36: =IFERROR(G36/((C36*H36)/VLOOKUP(B36,'Hidden Fields'!$E$2:$F$3,2,FALSE)),"") -> 
I37: =IFERROR(C37/VLOOKUP(B37,'Hidden Fields'!$E$2:$F$3,2,FALSE),"") ->  | J37: =IFERROR((G37-((C37*H37)/VLOOKUP(B37,'Hidden Fields'!$E$2:$F$3,2,FALSE)))/G37,"") ->  | K37: =IFERROR(G37/((C37*H37)/VLOOKUP(B37,'Hidden Fields'!$E$2:$F$3,2,FALSE)),"") -> 
I38: =IFERROR(C38/VLOOKUP(B38,'Hidden Fields'!$E$2:$F$3,2,FALSE),"") ->  | J38: =IFERROR((G38-((C38*H38)/VLOOKUP(B38,'Hidden Fields'!$E$2:$F$3,2,FALSE)))/G38,"") ->  | K38: =IFERROR(G38/((C38*H38)/VLOOKUP(B38,'Hidden Fields'!$E$2:$F$3,2,FALSE)),"") -> 
I39: =IFERROR(C39/VLOOKUP(B39,'Hidden Fields'!$E$2:$F$3,2,FALSE),"") ->  | J39: =IFERROR((G39-((C39*H39)/VLOOKUP(B39,'Hidden Fields'!$E$2:$F$3,2,FALSE)))/G39,"") ->  | K39: =IFERROR(G39/((C39*H39)/VLOOKUP(B39,'Hidden Fields'!$E$2:$F$3,2,FALSE)),"") -> 
I40: =IFERROR(C40/VLOOKUP(B40,'Hidden Fields'!$E$2:$F$3,2,FALSE),"") ->  | J40: =IFERROR((G40-((C40*H40)/VLOOKUP(B40,'Hidden Fields'!$E$2:$F$3,2,FALSE)))/G40,"") ->  | K40: =IFERROR(G40/((C40*H40)/VLOOKUP(B40,'Hidden Fields'!$E$2:$F$3,2,FALSE)),"") -> 
I41: =IFERROR(C41/VLOOKUP(B41,'Hidden Fields'!$E$2:$F$3,2,FALSE),"") ->  | J41: =IFERROR((G41-((C41*H41)/VLOOKUP(B41,'Hidden Fields'!$E$2:$F$3,2,FALSE)))/G41,"") ->  | K41: =IFERROR(G41/((C41*H41)/VLOOKUP(B41,'Hidden Fields'!$E$2:$F$3,2,FALSE)),"") -> 
I42: =IFERROR(C42/VLOOKUP(B42,'Hidden Fields'!$E$2:$F$3,2,FALSE),"") ->  | J42: =IFERROR((G42-((C42*H42)/VLOOKUP(B42,'Hidden Fields'!$E$2:$F$3,2,FALSE)))/G42,"") ->  | K42: =IFERROR(G42/((C42*H42)/VLOOKUP(B42,'Hidden Fields'!$E$2:$F$3,2,FALSE)),"") -> 
I43: =IFERROR(C43/VLOOKUP(B43,'Hidden Fields'!$E$2:$F$3,2,FALSE),"") ->  | J43: =IFERROR((G43-((C43*H43)/VLOOKUP(B43,'Hidden Fields'!$E$2:$F$3,2,FALSE)))/G43,"") ->  | K43: =IFERROR(G43/((C43*H43)/VLOOKUP(B43,'Hidden Fields'!$E$2:$F$3,2,FALSE)),"") -> 
I44: =IFERROR(C44/VLOOKUP(B44,'Hidden Fields'!$E$2:$F$3,2,FALSE),"") ->  | J44: =IFERROR((G44-((C44*H44)/VLOOKUP(B44,'Hidden Fields'!$E$2:$F$3,2,FALSE)))/G44,"") ->  | K44: =IFERROR(G44/((C44*H44)/VLOOKUP(B44,'Hidden Fields'!$E$2:$F$3,2,FALSE)),"") -> 
I45: =IFERROR(C45/VLOOKUP(B45,'Hidden Fields'!$E$2:$F$3,2,FALSE),"") ->  | J45: =IFERROR((G45-((C45*H45)/VLOOKUP(B45,'Hidden Fields'!$E$2:$F$3,2,FALSE)))/G45,"") ->  | K45: =IFERROR(G45/((C45*H45)/VLOOKUP(B45,'Hidden Fields'!$E$2:$F$3,2,FALSE)),"") -> 
I46: =IFERROR(C46/VLOOKUP(B46,'Hidden Fields'!$E$2:$F$3,2,FALSE),"") ->  | J46: =IFERROR((G46-((C46*H46)/VLOOKUP(B46,'Hidden Fields'!$E$2:$F$3,2,FALSE)))/G46,"") ->  | K46: =IFERROR(G46/((C46*H46)/VLOOKUP(B46,'Hidden Fields'!$E$2:$F$3,2,FALSE)),"") -> 
I47: =IFERROR(C47/VLOOKUP(B47,'Hidden Fields'!$E$2:$F$3,2,FALSE),"") ->  | J47: =IFERROR((G47-((C47*H47)/VLOOKUP(B47,'Hidden Fields'!$E$2:$F$3,2,FALSE)))/G47,"") ->  | K47: =IFERROR(G47/((C47*H47)/VLOOKUP(B47,'Hidden Fields'!$E$2:$F$3,2,FALSE)),"") -> 
I48: =IFERROR(C48/VLOOKUP(B48,'Hidden Fields'!$E$2:$F$3,2,FALSE),"") ->  | J48: =IFERROR((G48-((C48*H48)/VLOOKUP(B48,'Hidden Fields'!$E$2:$F$3,2,FALSE)))/G48,"") ->  | K48: =IFERROR(G48/((C48*H48)/VLOOKUP(B48,'Hidden Fields'!$E$2:$F$3,2,FALSE)),"") -> 
I49: =IFERROR(C49/VLOOKUP(B49,'Hidden Fields'!$E$2:$F$3,2,FALSE),"") ->  | J49: =IFERROR((G49-((C49*H49)/VLOOKUP(B49,'Hidden Fields'!$E$2:$F$3,2,FALSE)))/G49,"") ->  | K49: =IFERROR(G49/((C49*H49)/VLOOKUP(B49,'Hidden Fields'!$E$2:$F$3,2,FALSE)),"") -> 
I50: =IFERROR(C50/VLOOKUP(B50,'Hidden Fields'!$E$2:$F$3,2,FALSE),"") ->  | J50: =IFERROR((G50-((C50*H50)/VLOOKUP(B50,'Hidden Fields'!$E$2:$F$3,2,FALSE)))/G50,"") ->  | K50: =IFERROR(G50/((C50*H50)/VLOOKUP(B50,'Hidden Fields'!$E$2:$F$3,2,FALSE)),"") -> 
I51: =IFERROR(C51/VLOOKUP(B51,'Hidden Fields'!$E$2:$F$3,2,FALSE),"") ->  | J51: =IFERROR((G51-((C51*H51)/VLOOKUP(B51,'Hidden Fields'!$E$2:$F$3,2,FALSE)))/G51,"") ->  | K51: =IFERROR(G51/((C51*H51)/VLOOKUP(B51,'Hidden Fields'!$E$2:$F$3,2,FALSE)),"") -> 
I52: =IFERROR(C52/VLOOKUP(B52,'Hidden Fields'!$E$2:$F$3,2,FALSE),"") ->  | J52: =IFERROR((G52-((C52*H52)/VLOOKUP(B52,'Hidden Fields'!$E$2:$F$3,2,FALSE)))/G52,"") ->  | K52: =IFERROR(G52/((C52*H52)/VLOOKUP(B52,'Hidden Fields'!$E$2:$F$3,2,FALSE)),"") -> 
I53: =IFERROR(C53/VLOOKUP(B53,'Hidden Fields'!$E$2:$F$3,2,FALSE),"") ->  | J53: =IFERROR((G53-((C53*H53)/VLOOKUP(B53,'Hidden Fields'!$E$2:$F$3,2,FALSE)))/G53,"") ->  | K53: =IFERROR(G53/((C53*H53)/VLOOKUP(B53,'Hidden Fields'!$E$2:$F$3,2,FALSE)),"") -> 
I54: =IFERROR(C54/VLOOKUP(B54,'Hidden Fields'!$E$2:$F$3,2,FALSE),"") ->  | J54: =IFERROR((G54-((C54*H54)/VLOOKUP(B54,'Hidden Fields'!$E$2:$F$3,2,FALSE)))/G54,"") ->  | K54: =IFERROR(G54/((C54*H54)/VLOOKUP(B54,'Hidden Fields'!$E$2:$F$3,2,FALSE)),"") -> 
I55: =IFERROR(C55/VLOOKUP(B55,'Hidden Fields'!$E$2:$F$3,2,FALSE),"") ->  | J55: =IFERROR((G55-((C55*H55)/VLOOKUP(B55,'Hidden Fields'!$E$2:$F$3,2,FALSE)))/G55,"") ->  | K55: =IFERROR(G55/((C55*H55)/VLOOKUP(B55,'Hidden Fields'!$E$2:$F$3,2,FALSE)),"") -> 
I56: =IFERROR(C56/VLOOKUP(B56,'Hidden Fields'!$E$2:$F$3,2,FALSE),"") ->  | J56: =IFERROR((G56-((C56*H56)/VLOOKUP(B56,'Hidden Fields'!$E$2:$F$3,2,FALSE)))/G56,"") ->  | K56: =IFERROR(G56/((C56*H56)/VLOOKUP(B56,'Hidden Fields'!$E$2:$F$3,2,FALSE)),"") -> 
I57: =IFERROR(C57/VLOOKUP(B57,'Hidden Fields'!$E$2:$F$3,2,FALSE),"") ->  | J57: =IFERROR((G57-((C57*H57)/VLOOKUP(B57,'Hidden Fields'!$E$2:$F$3,2,FALSE)))/G57,"") ->  | K57: =IFERROR(G57/((C57*H57)/VLOOKUP(B57,'Hidden Fields'!$E$2:$F$3,2,FALSE)),"") -> 
I58: =IFERROR(C58/VLOOKUP(B58,'Hidden Fields'!$E$2:$F$3,2,FALSE),"") ->  | J58: =IFERROR((G58-((C58*H58)/VLOOKUP(B58,'Hidden Fields'!$E$2:$F$3,2,FALSE)))/G58,"") ->  | K58: =IFERROR(G58/((C58*H58)/VLOOKUP(B58,'Hidden Fields'!$E$2:$F$3,2,FALSE)),"") -> 
I59: =IFERROR(C59/VLOOKUP(B59,'Hidden Fields'!$E$2:$F$3,2,FALSE),"") ->  | J59: =IFERROR((G59-((C59*H59)/VLOOKUP(B59,'Hidden Fields'!$E$2:$F$3,2,FALSE)))/G59,"") ->  | K59: =IFERROR(G59/((C59*H59)/VLOOKUP(B59,'Hidden Fields'!$E$2:$F$3,2,FALSE)),"") -> 
I60: =IFERROR(C60/VLOOKUP(B60,'Hidden Fields'!$E$2:$F$3,2,FALSE),"") ->  | J60: =IFERROR((G60-((C60*H60)/VLOOKUP(B60,'Hidden Fields'!$E$2:$F$3,2,FALSE)))/G60,"") ->  | K60: =IFERROR(G60/((C60*H60)/VLOOKUP(B60,'Hidden Fields'!$E$2:$F$3,2,FALSE)),"") -> 
I61: =IFERROR(C61/VLOOKUP(B61,'Hidden Fields'!$E$2:$F$3,2,FALSE),"") ->  | J61: =IFERROR((G61-((C61*H61)/VLOOKUP(B61,'Hidden Fields'!$E$2:$F$3,2,FALSE)))/G61,"") ->  | K61: =IFERROR(G61/((C61*H61)/VLOOKUP(B61,'Hidden Fields'!$E$2:$F$3,2,FALSE)),"") -> 
I62: =IFERROR(C62/VLOOKUP(B62,'Hidden Fields'!$E$2:$F$3,2,FALSE),"") ->  | J62: =IFERROR((G62-((C62*H62)/VLOOKUP(B62,'Hidden Fields'!$E$2:$F$3,2,FALSE)))/G62,"") ->  | K62: =IFERROR(G62/((C62*H62)/VLOOKUP(B62,'Hidden Fields'!$E$2:$F$3,2,FALSE)),"") -> 
I63: =IFERROR(C63/VLOOKUP(B63,'Hidden Fields'!$E$2:$F$3,2,FALSE),"") ->  | J63: =IFERROR((G63-((C63*H63)/VLOOKUP(B63,'Hidden Fields'!$E$2:$F$3,2,FALSE)))/G63,"") ->  | K63: =IFERROR(G63/((C63*H63)/VLOOKUP(B63,'Hidden Fields'!$E$2:$F$3,2,FALSE)),"") -> 
I64: =IFERROR(C64/VLOOKUP(B64,'Hidden Fields'!$E$2:$F$3,2,FALSE),"") ->  | J64: =IFERROR((G64-((C64*H64)/VLOOKUP(B64,'Hidden Fields'!$E$2:$F$3,2,FALSE)))/G64,"") ->  | K64: =IFERROR(G64/((C64*H64)/VLOOKUP(B64,'Hidden Fields'!$E$2:$F$3,2,FALSE)),"") -> 
I65: =IFERROR(C65/VLOOKUP(B65,'Hidden Fields'!$E$2:$F$3,2,FALSE),"") ->  | J65: =IFERROR((G65-((C65*H65)/VLOOKUP(B65,'Hidden Fields'!$E$2:$F$3,2,FALSE)))/G65,"") ->  | K65: =IFERROR(G65/((C65*H65)/VLOOKUP(B65,'Hidden Fields'!$E$2:$F$3,2,FALSE)),"") -> 
I66: =IFERROR(C66/VLOOKUP(B66,'Hidden Fields'!$E$2:$F$3,2,FALSE),"") ->  | J66: =IFERROR((G66-((C66*H66)/VLOOKUP(B66,'Hidden Fields'!$E$2:$F$3,2,FALSE)))/G66,"") ->  | K66: =IFERROR(G66/((C66*H66)/VLOOKUP(B66,'Hidden Fields'!$E$2:$F$3,2,FALSE)),"") -> 
I67: =IFERROR(C67/VLOOKUP(B67,'Hidden Fields'!$E$2:$F$3,2,FALSE),"") ->  | J67: =IFERROR((G67-((C67*H67)/VLOOKUP(B67,'Hidden Fields'!$E$2:$F$3,2,FALSE)))/G67,"") ->  | K67: =IFERROR(G67/((C67*H67)/VLOOKUP(B67,'Hidden Fields'!$E$2:$F$3,2,FALSE)),"") -> 
I68: =IFERROR(C68/VLOOKUP(B68,'Hidden Fields'!$E$2:$F$3,2,FALSE),"") ->  | J68: =IFERROR((G68-((C68*H68)/VLOOKUP(B68,'Hidden Fields'!$E$2:$F$3,2,FALSE)))/G68,"") ->  | K68: =IFERROR(G68/((C68*H68)/VLOOKUP(B68,'Hidden Fields'!$E$2:$F$3,2,FALSE)),"") -> 
I69: =IFERROR(C69/VLOOKUP(B69,'Hidden Fields'!$E$2:$F$3,2,FALSE),"") ->  | J69: =IFERROR((G69-((C69*H69)/VLOOKUP(B69,'Hidden Fields'!$E$2:$F$3,2,FALSE)))/G69,"") ->  | K69: =IFERROR(G69/((C69*H69)/VLOOKUP(B69,'Hidden Fields'!$E$2:$F$3,2,FALSE)),"") -> 
I70: =IFERROR(C70/VLOOKUP(B70,'Hidden Fields'!$E$2:$F$3,2,FALSE),"") ->  | J70: =IFERROR((G70-((C70*H70)/VLOOKUP(B70,'Hidden Fields'!$E$2:$F$3,2,FALSE)))/G70,"") ->  | K70: =IFERROR(G70/((C70*H70)/VLOOKUP(B70,'Hidden Fields'!$E$2:$F$3,2,FALSE)),"") -> 
I71: =IFERROR(C71/VLOOKUP(B71,'Hidden Fields'!$E$2:$F$3,2,FALSE),"") ->  | J71: =IFERROR((G71-((C71*H71)/VLOOKUP(B71,'Hidden Fields'!$E$2:$F$3,2,FALSE)))/G71,"") ->  | K71: =IFERROR(G71/((C71*H71)/VLOOKUP(B71,'Hidden Fields'!$E$2:$F$3,2,FALSE)),"") -> 
I72: =IFERROR(C72/VLOOKUP(B72,'Hidden Fields'!$E$2:$F$3,2,FALSE),"") ->  | J72: =IFERROR((G72-((C72*H72)/VLOOKUP(B72,'Hidden Fields'!$E$2:$F$3,2,FALSE)))/G72,"") ->  | K72: =IFERROR(G72/((C72*H72)/VLOOKUP(B72,'Hidden Fields'!$E$2:$F$3,2,FALSE)),"") -> 
I73: =IFERROR(C73/VLOOKUP(B73,'Hidden Fields'!$E$2:$F$3,2,FALSE),"") ->  | J73: =IFERROR((G73-((C73*H73)/VLOOKUP(B73,'Hidden Fields'!$E$2:$F$3,2,FALSE)))/G73,"") ->  | K73: =IFERROR(G73/((C73*H73)/VLOOKUP(B73,'Hidden Fields'!$E$2:$F$3,2,FALSE)),"") -> 
I74: =IFERROR(C74/VLOOKUP(B74,'Hidden Fields'!$E$2:$F$3,2,FALSE),"") ->  | J74: =IFERROR((G74-((C74*H74)/VLOOKUP(B74,'Hidden Fields'!$E$2:$F$3,2,FALSE)))/G74,"") ->  | K74: =IFERROR(G74/((C74*H74)/VLOOKUP(B74,'Hidden Fields'!$E$2:$F$3,2,FALSE)),"") -> 
I75: =IFERROR(C75/VLOOKUP(B75,'Hidden Fields'!$E$2:$F$3,2,FALSE),"") ->  | J75: =IFERROR((G75-((C75*H75)/VLOOKUP(B75,'Hidden Fields'!$E$2:$F$3,2,FALSE)))/G75,"") ->  | K75: =IFERROR(G75/((C75*H75)/VLOOKUP(B75,'Hidden Fields'!$E$2:$F$3,2,FALSE)),"") -> 
I76: =IFERROR(C76/VLOOKUP(B76,'Hidden Fields'!$E$2:$F$3,2,FALSE),"") ->  | J76: =IFERROR((G76-((C76*H76)/VLOOKUP(B76,'Hidden Fields'!$E$2:$F$3,2,FALSE)))/G76,"") ->  | K76: =IFERROR(G76/((C76*H76)/VLOOKUP(B76,'Hidden Fields'!$E$2:$F$3,2,FALSE)),"") -> 
I77: =IFERROR(C77/VLOOKUP(B77,'Hidden Fields'!$E$2:$F$3,2,FALSE),"") ->  | J77: =IFERROR((G77-((C77*H77)/VLOOKUP(B77,'Hidden Fields'!$E$2:$F$3,2,FALSE)))/G77,"") ->  | K77: =IFERROR(G77/((C77*H77)/VLOOKUP(B77,'Hidden Fields'!$E$2:$F$3,2,FALSE)),"") -> 
I78: =IFERROR(C78/VLOOKUP(B78,'Hidden Fields'!$E$2:$F$3,2,FALSE),"") ->  | J78: =IFERROR((G78-((C78*H78)/VLOOKUP(B78,'Hidden Fields'!$E$2:$F$3,2,FALSE)))/G78,"") ->  | K78: =IFERROR(G78/((C78*H78)/VLOOKUP(B78,'Hidden Fields'!$E$2:$F$3,2,FALSE)),"") -> 
I79: =IFERROR(C79/VLOOKUP(B79,'Hidden Fields'!$E$2:$F$3,2,FALSE),"") ->  | J79: =IFERROR((G79-((C79*H79)/VLOOKUP(B79,'Hidden Fields'!$E$2:$F$3,2,FALSE)))/G79,"") ->  | K79: =IFERROR(G79/((C79*H79)/VLOOKUP(B79,'Hidden Fields'!$E$2:$F$3,2,FALSE)),"") -> 
I80: =IFERROR(C80/VLOOKUP(B80,'Hidden Fields'!$E$2:$F$3,2,FALSE),"") ->  | J80: =IFERROR((G80-((C80*H80)/VLOOKUP(B80,'Hidden Fields'!$E$2:$F$3,2,FALSE)))/G80,"") ->  | K80: =IFERROR(G80/((C80*H80)/VLOOKUP(B80,'Hidden Fields'!$E$2:$F$3,2,FALSE)),"") -> 
I81: =IFERROR(C81/VLOOKUP(B81,'Hidden Fields'!$E$2:$F$3,2,FALSE),"") ->  | J81: =IFERROR((G81-((C81*H81)/VLOOKUP(B81,'Hidden Fields'!$E$2:$F$3,2,FALSE)))/G81,"") ->  | K81: =IFERROR(G81/((C81*H81)/VLOOKUP(B81,'Hidden Fields'!$E$2:$F$3,2,FALSE)),"") -> 
I82: =IFERROR(C82/VLOOKUP(B82,'Hidden Fields'!$E$2:$F$3,2,FALSE),"") ->  | J82: =IFERROR((G82-((C82*H82)/VLOOKUP(B82,'Hidden Fields'!$E$2:$F$3,2,FALSE)))/G82,"") ->  | K82: =IFERROR(G82/((C82*H82)/VLOOKUP(B82,'Hidden Fields'!$E$2:$F$3,2,FALSE)),"") -> 
I83: =IFERROR(C83/VLOOKUP(B83,'Hidden Fields'!$E$2:$F$3,2,FALSE),"") ->  | J83: =IFERROR((G83-((C83*H83)/VLOOKUP(B83,'Hidden Fields'!$E$2:$F$3,2,FALSE)))/G83,"") ->  | K83: =IFERROR(G83/((C83*H83)/VLOOKUP(B83,'Hidden Fields'!$E$2:$F$3,2,FALSE)),"") -> 
I84: =IFERROR(C84/VLOOKUP(B84,'Hidden Fields'!$E$2:$F$3,2,FALSE),"") ->  | J84: =IFERROR((G84-((C84*H84)/VLOOKUP(B84,'Hidden Fields'!$E$2:$F$3,2,FALSE)))/G84,"") ->  | K84: =IFERROR(G84/((C84*H84)/VLOOKUP(B84,'Hidden Fields'!$E$2:$F$3,2,FALSE)),"") -> 
I85: =IFERROR(C85/VLOOKUP(B85,'Hidden Fields'!$E$2:$F$3,2,FALSE),"") ->  | J85: =IFERROR((G85-((C85*H85)/VLOOKUP(B85,'Hidden Fields'!$E$2:$F$3,2,FALSE)))/G85,"") ->  | K85: =IFERROR(G85/((C85*H85)/VLOOKUP(B85,'Hidden Fields'!$E$2:$F$3,2,FALSE)),"") -> 
I86: =IFERROR(C86/VLOOKUP(B86,'Hidden Fields'!$E$2:$F$3,2,FALSE),"") ->  | J86: =IFERROR((G86-((C86*H86)/VLOOKUP(B86,'Hidden Fields'!$E$2:$F$3,2,FALSE)))/G86,"") ->  | K86: =IFERROR(G86/((C86*H86)/VLOOKUP(B86,'Hidden Fields'!$E$2:$F$3,2,FALSE)),"") -> 
I87: =IFERROR(C87/VLOOKUP(B87,'Hidden Fields'!$E$2:$F$3,2,FALSE),"") ->  | J87: =IFERROR((G87-((C87*H87)/VLOOKUP(B87,'Hidden Fields'!$E$2:$F$3,2,FALSE)))/G87,"") ->  | K87: =IFERROR(G87/((C87*H87)/VLOOKUP(B87,'Hidden Fields'!$E$2:$F$3,2,FALSE)),"") -> 
I88: =IFERROR(C88/VLOOKUP(B88,'Hidden Fields'!$E$2:$F$3,2,FALSE),"") ->  | J88: =IFERROR((G88-((C88*H88)/VLOOKUP(B88,'Hidden Fields'!$E$2:$F$3,2,FALSE)))/G88,"") ->  | K88: =IFERROR(G88/((C88*H88)/VLOOKUP(B88,'Hidden Fields'!$E$2:$F$3,2,FALSE)),"") -> 
I89: =IFERROR(C89/VLOOKUP(B89,'Hidden Fields'!$E$2:$F$3,2,FALSE),"") ->  | J89: =IFERROR((G89-((C89*H89)/VLOOKUP(B89,'Hidden Fields'!$E$2:$F$3,2,FALSE)))/G89,"") ->  | K89: =IFERROR(G89/((C89*H89)/VLOOKUP(B89,'Hidden Fields'!$E$2:$F$3,2,FALSE)),"") -> 
I90: =IFERROR(C90/VLOOKUP(B90,'Hidden Fields'!$E$2:$F$3,2,FALSE),"") ->  | J90: =IFERROR((G90-((C90*H90)/VLOOKUP(B90,'Hidden Fields'!$E$2:$F$3,2,FALSE)))/G90,"") ->  | K90: =IFERROR(G90/((C90*H90)/VLOOKUP(B90,'Hidden Fields'!$E$2:$F$3,2,FALSE)),"") -> 
I91: =IFERROR(C91/VLOOKUP(B91,'Hidden Fields'!$E$2:$F$3,2,FALSE),"") ->  | J91: =IFERROR((G91-((C91*H91)/VLOOKUP(B91,'Hidden Fields'!$E$2:$F$3,2,FALSE)))/G91,"") ->  | K91: =IFERROR(G91/((C91*H91)/VLOOKUP(B91,'Hidden Fields'!$E$2:$F$3,2,FALSE)),"") -> 
I92: =IFERROR(C92/VLOOKUP(B92,'Hidden Fields'!$E$2:$F$3,2,FALSE),"") ->  | J92: =IFERROR((G92-((C92*H92)/VLOOKUP(B92,'Hidden Fields'!$E$2:$F$3,2,FALSE)))/G92,"") ->  | K92: =IFERROR(G92/((C92*H92)/VLOOKUP(B92,'Hidden Fields'!$E$2:$F$3,2,FALSE)),"") -> 
I93: =IFERROR(C93/VLOOKUP(B93,'Hidden Fields'!$E$2:$F$3,2,FALSE),"") ->  | J93: =IFERROR((G93-((C93*H93)/VLOOKUP(B93,'Hidden Fields'!$E$2:$F$3,2,FALSE)))/G93,"") ->  | K93: =IFERROR(G93/((C93*H93)/VLOOKUP(B93,'Hidden Fields'!$E$2:$F$3,2,FALSE)),"") -> 
I94: =IFERROR(C94/VLOOKUP(B94,'Hidden Fields'!$E$2:$F$3,2,FALSE),"") ->  | J94: =IFERROR((G94-((C94*H94)/VLOOKUP(B94,'Hidden Fields'!$E$2:$F$3,2,FALSE)))/G94,"") ->  | K94: =IFERROR(G94/((C94*H94)/VLOOKUP(B94,'Hidden Fields'!$E$2:$F$3,2,FALSE)),"") -> 
I95: =IFERROR(C95/VLOOKUP(B95,'Hidden Fields'!$E$2:$F$3,2,FALSE),"") ->  | J95: =IFERROR((G95-((C95*H95)/VLOOKUP(B95,'Hidden Fields'!$E$2:$F$3,2,FALSE)))/G95,"") ->  | K95: =IFERROR(G95/((C95*H95)/VLOOKUP(B95,'Hidden Fields'!$E$2:$F$3,2,FALSE)),"") -> 
I96: =IFERROR(C96/VLOOKUP(B96,'Hidden Fields'!$E$2:$F$3,2,FALSE),"") ->  | J96: =IFERROR((G96-((C96*H96)/VLOOKUP(B96,'Hidden Fields'!$E$2:$F$3,2,FALSE)))/G96,"") ->  | K96: =IFERROR(G96/((C96*H96)/VLOOKUP(B96,'Hidden Fields'!$E$2:$F$3,2,FALSE)),"") -> 
I97: =IFERROR(C97/VLOOKUP(B97,'Hidden Fields'!$E$2:$F$3,2,FALSE),"") ->  | J97: =IFERROR((G97-((C97*H97)/VLOOKUP(B97,'Hidden Fields'!$E$2:$F$3,2,FALSE)))/G97,"") ->  | K97: =IFERROR(G97/((C97*H97)/VLOOKUP(B97,'Hidden Fields'!$E$2:$F$3,2,FALSE)),"") -> 
I98: =IFERROR(C98/VLOOKUP(B98,'Hidden Fields'!$E$2:$F$3,2,FALSE),"") ->  | J98: =IFERROR((G98-((C98*H98)/VLOOKUP(B98,'Hidden Fields'!$E$2:$F$3,2,FALSE)))/G98,"") ->  | K98: =IFERROR(G98/((C98*H98)/VLOOKUP(B98,'Hidden Fields'!$E$2:$F$3,2,FALSE)),"") -> 
I99: =IFERROR(C99/VLOOKUP(B99,'Hidden Fields'!$E$2:$F$3,2,FALSE),"") ->  | J99: =IFERROR((G99-((C99*H99)/VLOOKUP(B99,'Hidden Fields'!$E$2:$F$3,2,FALSE)))/G99,"") ->  | K99: =IFERROR(G99/((C99*H99)/VLOOKUP(B99,'Hidden Fields'!$E$2:$F$3,2,FALSE)),"") -> 
I100: =IFERROR(C100/VLOOKUP(B100,'Hidden Fields'!$E$2:$F$3,2,FALSE),"") ->  | J100: =IFERROR((G100-((C100*H100)/VLOOKUP(B100,'Hidden Fields'!$E$2:$F$3,2,FALSE)))/G100,"") ->  | K100: =IFERROR(G100/((C100*H100)/VLOOKUP(B100,'Hidden Fields'!$E$2:$F$3,2,FALSE)),"") -> 
I101: =IFERROR(C101/VLOOKUP(B101,'Hidden Fields'!$E$2:$F$3,2,FALSE),"") ->  | J101: =IFERROR((G101-((C101*H101)/VLOOKUP(B101,'Hidden Fields'!$E$2:$F$3,2,FALSE)))/G101,"") ->  | K101: =IFERROR(G101/((C101*H101)/VLOOKUP(B101,'Hidden Fields'!$E$2:$F$3,2,FALSE)),"") -> 
I102: =IFERROR(C102/VLOOKUP(B102,'Hidden Fields'!$E$2:$F$3,2,FALSE),"") ->  | J102: =IFERROR((G102-((C102*H102)/VLOOKUP(B102,'Hidden Fields'!$E$2:$F$3,2,FALSE)))/G102,"") ->  | K102: =IFERROR(G102/((C102*H102)/VLOOKUP(B102,'Hidden Fields'!$E$2:$F$3,2,FALSE)),"") -> 
I103: =IFERROR(C103/VLOOKUP(B103,'Hidden Fields'!$E$2:$F$3,2,FALSE),"") ->  | J103: =IFERROR((G103-((C103*H103)/VLOOKUP(B103,'Hidden Fields'!$E$2:$F$3,2,FALSE)))/G103,"") ->  | K103: =IFERROR(G103/((C103*H103)/VLOOKUP(B103,'Hidden Fields'!$E$2:$F$3,2,FALSE)),"") -> 
I104: =IFERROR(C104/VLOOKUP(B104,'Hidden Fields'!$E$2:$F$3,2,FALSE),"") ->  | J104: =IFERROR((G104-((C104*H104)/VLOOKUP(B104,'Hidden Fields'!$E$2:$F$3,2,FALSE)))/G104,"") ->  | K104: =IFERROR(G104/((C104*H104)/VLOOKUP(B104,'Hidden Fields'!$E$2:$F$3,2,FALSE)),"") -> 
I105: =IFERROR(C105/VLOOKUP(B105,'Hidden Fields'!$E$2:$F$3,2,FALSE),"") ->  | J105: =IFERROR((G105-((C105*H105)/VLOOKUP(B105,'Hidden Fields'!$E$2:$F$3,2,FALSE)))/G105,"") ->  | K105: =IFERROR(G105/((C105*H105)/VLOOKUP(B105,'Hidden Fields'!$E$2:$F$3,2,FALSE)),"") -> 
I106: =IFERROR(C106/VLOOKUP(B106,'Hidden Fields'!$E$2:$F$3,2,FALSE),"") ->  | J106: =IFERROR((G106-((C106*H106)/VLOOKUP(B106,'Hidden Fields'!$E$2:$F$3,2,FALSE)))/G106,"") ->  | K106: =IFERROR(G106/((C106*H106)/VLOOKUP(B106,'Hidden Fields'!$E$2:$F$3,2,FALSE)),"") -> 
I107: =IFERROR(C107/VLOOKUP(B107,'Hidden Fields'!$E$2:$F$3,2,FALSE),"") ->  | J107: =IFERROR((G107-((C107*H107)/VLOOKUP(B107,'Hidden Fields'!$E$2:$F$3,2,FALSE)))/G107,"") ->  | K107: =IFERROR(G107/((C107*H107)/VLOOKUP(B107,'Hidden Fields'!$E$2:$F$3,2,FALSE)),"") -> 
I108: =IFERROR(C108/VLOOKUP(B108,'Hidden Fields'!$E$2:$F$3,2,FALSE),"") ->  | J108: =IFERROR((G108-((C108*H108)/VLOOKUP(B108,'Hidden Fields'!$E$2:$F$3,2,FALSE)))/G108,"") ->  | K108: =IFERROR(G108/((C108*H108)/VLOOKUP(B108,'Hidden Fields'!$E$2:$F$3,2,FALSE)),"") -> 
I109: =IFERROR(C109/VLOOKUP(B109,'Hidden Fields'!$E$2:$F$3,2,FALSE),"") ->  | J109: =IFERROR((G109-((C109*H109)/VLOOKUP(B109,'Hidden Fields'!$E$2:$F$3,2,FALSE)))/G109,"") ->  | K109: =IFERROR(G109/((C109*H109)/VLOOKUP(B109,'Hidden Fields'!$E$2:$F$3,2,FALSE)),"") -> 
I110: =IFERROR(C110/VLOOKUP(B110,'Hidden Fields'!$E$2:$F$3,2,FALSE),"") ->  | J110: =IFERROR((G110-((C110*H110)/VLOOKUP(B110,'Hidden Fields'!$E$2:$F$3,2,FALSE)))/G110,"") ->  | K110: =IFERROR(G110/((C110*H110)/VLOOKUP(B110,'Hidden Fields'!$E$2:$F$3,2,FALSE)),"") -> 
I111: =IFERROR(C111/VLOOKUP(B111,'Hidden Fields'!$E$2:$F$3,2,FALSE),"") ->  | J111: =IFERROR((G111-((C111*H111)/VLOOKUP(B111,'Hidden Fields'!$E$2:$F$3,2,FALSE)))/G111,"") ->  | K111: =IFERROR(G111/((C111*H111)/VLOOKUP(B111,'Hidden Fields'!$E$2:$F$3,2,FALSE)),"") -> 
I112: =IFERROR(C112/VLOOKUP(B112,'Hidden Fields'!$E$2:$F$3,2,FALSE),"") ->  | J112: =IFERROR((G112-((C112*H112)/VLOOKUP(B112,'Hidden Fields'!$E$2:$F$3,2,FALSE)))/G112,"") ->  | K112: =IFERROR(G112/((C112*H112)/VLOOKUP(B112,'Hidden Fields'!$E$2:$F$3,2,FALSE)),"") -> 
I113: =IFERROR(C113/VLOOKUP(B113,'Hidden Fields'!$E$2:$F$3,2,FALSE),"") ->  | J113: =IFERROR((G113-((C113*H113)/VLOOKUP(B113,'Hidden Fields'!$E$2:$F$3,2,FALSE)))/G113,"") ->  | K113: =IFERROR(G113/((C113*H113)/VLOOKUP(B113,'Hidden Fields'!$E$2:$F$3,2,FALSE)),"") -> 
I114: =IFERROR(C114/VLOOKUP(B114,'Hidden Fields'!$E$2:$F$3,2,FALSE),"") ->  | J114: =IFERROR((G114-((C114*H114)/VLOOKUP(B114,'Hidden Fields'!$E$2:$F$3,2,FALSE)))/G114,"") ->  | K114: =IFERROR(G114/((C114*H114)/VLOOKUP(B114,'Hidden Fields'!$E$2:$F$3,2,FALSE)),"") -> 
I115: =IFERROR(C115/VLOOKUP(B115,'Hidden Fields'!$E$2:$F$3,2,FALSE),"") ->  | J115: =IFERROR((G115-((C115*H115)/VLOOKUP(B115,'Hidden Fields'!$E$2:$F$3,2,FALSE)))/G115,"") ->  | K115: =IFERROR(G115/((C115*H115)/VLOOKUP(B115,'Hidden Fields'!$E$2:$F$3,2,FALSE)),"") -> 
I116: =IFERROR(C116/VLOOKUP(B116,'Hidden Fields'!$E$2:$F$3,2,FALSE),"") ->  | J116: =IFERROR((G116-((C116*H116)/VLOOKUP(B116,'Hidden Fields'!$E$2:$F$3,2,FALSE)))/G116,"") ->  | K116: =IFERROR(G116/((C116*H116)/VLOOKUP(B116,'Hidden Fields'!$E$2:$F$3,2,FALSE)),"") -> 
I117: =IFERROR(C117/VLOOKUP(B117,'Hidden Fields'!$E$2:$F$3,2,FALSE),"") ->  | J117: =IFERROR((G117-((C117*H117)/VLOOKUP(B117,'Hidden Fields'!$E$2:$F$3,2,FALSE)))/G117,"") ->  | K117: =IFERROR(G117/((C117*H117)/VLOOKUP(B117,'Hidden Fields'!$E$2:$F$3,2,FALSE)),"") -> 
I118: =IFERROR(C118/VLOOKUP(B118,'Hidden Fields'!$E$2:$F$3,2,FALSE),"") ->  | J118: =IFERROR((G118-((C118*H118)/VLOOKUP(B118,'Hidden Fields'!$E$2:$F$3,2,FALSE)))/G118,"") ->  | K118: =IFERROR(G118/((C118*H118)/VLOOKUP(B118,'Hidden Fields'!$E$2:$F$3,2,FALSE)),"") -> 
I119: =IFERROR(C119/VLOOKUP(B119,'Hidden Fields'!$E$2:$F$3,2,FALSE),"") ->  | J119: =IFERROR((G119-((C119*H119)/VLOOKUP(B119,'Hidden Fields'!$E$2:$F$3,2,FALSE)))/G119,"") ->  | K119: =IFERROR(G119/((C119*H119)/VLOOKUP(B119,'Hidden Fields'!$E$2:$F$3,2,FALSE)),"") -> 
I120: =IFERROR(C120/VLOOKUP(B120,'Hidden Fields'!$E$2:$F$3,2,FALSE),"") ->  | J120: =IFERROR((G120-((C120*H120)/VLOOKUP(B120,'Hidden Fields'!$E$2:$F$3,2,FALSE)))/G120,"") ->  | K120: =IFERROR(G120/((C120*H120)/VLOOKUP(B120,'Hidden Fields'!$E$2:$F$3,2,FALSE)),"") -> 
I121: =IFERROR(C121/VLOOKUP(B121,'Hidden Fields'!$E$2:$F$3,2,FALSE),"") ->  | J121: =IFERROR((G121-((C121*H121)/VLOOKUP(B121,'Hidden Fields'!$E$2:$F$3,2,FALSE)))/G121,"") ->  | K121: =IFERROR(G121/((C121*H121)/VLOOKUP(B121,'Hidden Fields'!$E$2:$F$3,2,FALSE)),"") -> 
I122: =IFERROR(C122/VLOOKUP(B122,'Hidden Fields'!$E$2:$F$3,2,FALSE),"") ->  | J122: =IFERROR((G122-((C122*H122)/VLOOKUP(B122,'Hidden Fields'!$E$2:$F$3,2,FALSE)))/G122,"") ->  | K122: =IFERROR(G122/((C122*H122)/VLOOKUP(B122,'Hidden Fields'!$E$2:$F$3,2,FALSE)),"") -> 
I123: =IFERROR(C123/VLOOKUP(B123,'Hidden Fields'!$E$2:$F$3,2,FALSE),"") ->  | J123: =IFERROR((G123-((C123*H123)/VLOOKUP(B123,'Hidden Fields'!$E$2:$F$3,2,FALSE)))/G123,"") ->  | K123: =IFERROR(G123/((C123*H123)/VLOOKUP(B123,'Hidden Fields'!$E$2:$F$3,2,FALSE)),"") -> 
I124: =IFERROR(C124/VLOOKUP(B124,'Hidden Fields'!$E$2:$F$3,2,FALSE),"") ->  | J124: =IFERROR((G124-((C124*H124)/VLOOKUP(B124,'Hidden Fields'!$E$2:$F$3,2,FALSE)))/G124,"") ->  | K124: =IFERROR(G124/((C124*H124)/VLOOKUP(B124,'Hidden Fields'!$E$2:$F$3,2,FALSE)),"") -> 
I125: =IFERROR(C125/VLOOKUP(B125,'Hidden Fields'!$E$2:$F$3,2,FALSE),"") ->  | J125: =IFERROR((G125-((C125*H125)/VLOOKUP(B125,'Hidden Fields'!$E$2:$F$3,2,FALSE)))/G125,"") ->  | K125: =IFERROR(G125/((C125*H125)/VLOOKUP(B125,'Hidden Fields'!$E$2:$F$3,2,FALSE)),"") -> 
I126: =IFERROR(C126/VLOOKUP(B126,'Hidden Fields'!$E$2:$F$3,2,FALSE),"") ->  | J126: =IFERROR((G126-((C126*H126)/VLOOKUP(B126,'Hidden Fields'!$E$2:$F$3,2,FALSE)))/G126,"") ->  | K126: =IFERROR(G126/((C126*H126)/VLOOKUP(B126,'Hidden Fields'!$E$2:$F$3,2,FALSE)),"") -> 
I127: =IFERROR(C127/VLOOKUP(B127,'Hidden Fields'!$E$2:$F$3,2,FALSE),"") ->  | J127: =IFERROR((G127-((C127*H127)/VLOOKUP(B127,'Hidden Fields'!$E$2:$F$3,2,FALSE)))/G127,"") ->  | K127: =IFERROR(G127/((C127*H127)/VLOOKUP(B127,'Hidden Fields'!$E$2:$F$3,2,FALSE)),"") -> 
I128: =IFERROR(C128/VLOOKUP(B128,'Hidden Fields'!$E$2:$F$3,2,FALSE),"") ->  | J128: =IFERROR((G128-((C128*H128)/VLOOKUP(B128,'Hidden Fields'!$E$2:$F$3,2,FALSE)))/G128,"") ->  | K128: =IFERROR(G128/((C128*H128)/VLOOKUP(B128,'Hidden Fields'!$E$2:$F$3,2,FALSE)),"") -> 
I129: =IFERROR(C129/VLOOKUP(B129,'Hidden Fields'!$E$2:$F$3,2,FALSE),"") ->  | J129: =IFERROR((G129-((C129*H129)/VLOOKUP(B129,'Hidden Fields'!$E$2:$F$3,2,FALSE)))/G129,"") ->  | K129: =IFERROR(G129/((C129*H129)/VLOOKUP(B129,'Hidden Fields'!$E$2:$F$3,2,FALSE)),"") -> 
I130: =IFERROR(C130/VLOOKUP(B130,'Hidden Fields'!$E$2:$F$3,2,FALSE),"") ->  | J130: =IFERROR((G130-((C130*H130)/VLOOKUP(B130,'Hidden Fields'!$E$2:$F$3,2,FALSE)))/G130,"") ->  | K130: =IFERROR(G130/((C130*H130)/VLOOKUP(B130,'Hidden Fields'!$E$2:$F$3,2,FALSE)),"") -> 
I131: =IFERROR(C131/VLOOKUP(B131,'Hidden Fields'!$E$2:$F$3,2,FALSE),"") ->  | J131: =IFERROR((G131-((C131*H131)/VLOOKUP(B131,'Hidden Fields'!$E$2:$F$3,2,FALSE)))/G131,"") ->  | K131: =IFERROR(G131/((C131*H131)/VLOOKUP(B131,'Hidden Fields'!$E$2:$F$3,2,FALSE)),"") -> 
I132: =IFERROR(C132/VLOOKUP(B132,'Hidden Fields'!$E$2:$F$3,2,FALSE),"") ->  | J132: =IFERROR((G132-((C132*H132)/VLOOKUP(B132,'Hidden Fields'!$E$2:$F$3,2,FALSE)))/G132,"") ->  | K132: =IFERROR(G132/((C132*H132)/VLOOKUP(B132,'Hidden Fields'!$E$2:$F$3,2,FALSE)),"") -> 
I133: =IFERROR(C133/VLOOKUP(B133,'Hidden Fields'!$E$2:$F$3,2,FALSE),"") ->  | J133: =IFERROR((G133-((C133*H133)/VLOOKUP(B133,'Hidden Fields'!$E$2:$F$3,2,FALSE)))/G133,"") ->  | K133: =IFERROR(G133/((C133*H133)/VLOOKUP(B133,'Hidden Fields'!$E$2:$F$3,2,FALSE)),"") -> 
I134: =IFERROR(C134/VLOOKUP(B134,'Hidden Fields'!$E$2:$F$3,2,FALSE),"") ->  | J134: =IFERROR((G134-((C134*H134)/VLOOKUP(B134,'Hidden Fields'!$E$2:$F$3,2,FALSE)))/G134,"") ->  | K134: =IFERROR(G134/((C134*H134)/VLOOKUP(B134,'Hidden Fields'!$E$2:$F$3,2,FALSE)),"") -> 
I135: =IFERROR(C135/VLOOKUP(B135,'Hidden Fields'!$E$2:$F$3,2,FALSE),"") ->  | J135: =IFERROR((G135-((C135*H135)/VLOOKUP(B135,'Hidden Fields'!$E$2:$F$3,2,FALSE)))/G135,"") ->  | K135: =IFERROR(G135/((C135*H135)/VLOOKUP(B135,'Hidden Fields'!$E$2:$F$3,2,FALSE)),"") -> 
I136: =IFERROR(C136/VLOOKUP(B136,'Hidden Fields'!$E$2:$F$3,2,FALSE),"") ->  | J136: =IFERROR((G136-((C136*H136)/VLOOKUP(B136,'Hidden Fields'!$E$2:$F$3,2,FALSE)))/G136,"") ->  | K136: =IFERROR(G136/((C136*H136)/VLOOKUP(B136,'Hidden Fields'!$E$2:$F$3,2,FALSE)),"") -> 
I137: =IFERROR(C137/VLOOKUP(B137,'Hidden Fields'!$E$2:$F$3,2,FALSE),"") ->  | J137: =IFERROR((G137-((C137*H137)/VLOOKUP(B137,'Hidden Fields'!$E$2:$F$3,2,FALSE)))/G137,"") ->  | K137: =IFERROR(G137/((C137*H137)/VLOOKUP(B137,'Hidden Fields'!$E$2:$F$3,2,FALSE)),"") -> 
I138: =IFERROR(C138/VLOOKUP(B138,'Hidden Fields'!$E$2:$F$3,2,FALSE),"") ->  | J138: =IFERROR((G138-((C138*H138)/VLOOKUP(B138,'Hidden Fields'!$E$2:$F$3,2,FALSE)))/G138,"") ->  | K138: =IFERROR(G138/((C138*H138)/VLOOKUP(B138,'Hidden Fields'!$E$2:$F$3,2,FALSE)),"") -> 
I139: =IFERROR(C139/VLOOKUP(B139,'Hidden Fields'!$E$2:$F$3,2,FALSE),"") ->  | J139: =IFERROR((G139-((C139*H139)/VLOOKUP(B139,'Hidden Fields'!$E$2:$F$3,2,FALSE)))/G139,"") ->  | K139: =IFERROR(G139/((C139*H139)/VLOOKUP(B139,'Hidden Fields'!$E$2:$F$3,2,FALSE)),"") -> 
I140: =IFERROR(C140/VLOOKUP(B140,'Hidden Fields'!$E$2:$F$3,2,FALSE),"") ->  | J140: =IFERROR((G140-((C140*H140)/VLOOKUP(B140,'Hidden Fields'!$E$2:$F$3,2,FALSE)))/G140,"") ->  | K140: =IFERROR(G140/((C140*H140)/VLOOKUP(B140,'Hidden Fields'!$E$2:$F$3,2,FALSE)),"") -> 
I141: =IFERROR(C141/VLOOKUP(B141,'Hidden Fields'!$E$2:$F$3,2,FALSE),"") ->  | J141: =IFERROR((G141-((C141*H141)/VLOOKUP(B141,'Hidden Fields'!$E$2:$F$3,2,FALSE)))/G141,"") ->  | K141: =IFERROR(G141/((C141*H141)/VLOOKUP(B141,'Hidden Fields'!$E$2:$F$3,2,FALSE)),"") -> 
I142: =IFERROR(C142/VLOOKUP(B142,'Hidden Fields'!$E$2:$F$3,2,FALSE),"") ->  | J142: =IFERROR((G142-((C142*H142)/VLOOKUP(B142,'Hidden Fields'!$E$2:$F$3,2,FALSE)))/G142,"") ->  | K142: =IFERROR(G142/((C142*H142)/VLOOKUP(B142,'Hidden Fields'!$E$2:$F$3,2,FALSE)),"") -> 
I143: =IFERROR(C143/VLOOKUP(B143,'Hidden Fields'!$E$2:$F$3,2,FALSE),"") ->  | J143: =IFERROR((G143-((C143*H143)/VLOOKUP(B143,'Hidden Fields'!$E$2:$F$3,2,FALSE)))/G143,"") ->  | K143: =IFERROR(G143/((C143*H143)/VLOOKUP(B143,'Hidden Fields'!$E$2:$F$3,2,FALSE)),"") -> 
I144: =IFERROR(C144/VLOOKUP(B144,'Hidden Fields'!$E$2:$F$3,2,FALSE),"") ->  | J144: =IFERROR((G144-((C144*H144)/VLOOKUP(B144,'Hidden Fields'!$E$2:$F$3,2,FALSE)))/G144,"") ->  | K144: =IFERROR(G144/((C144*H144)/VLOOKUP(B144,'Hidden Fields'!$E$2:$F$3,2,FALSE)),"") -> 
I145: =IFERROR(C145/VLOOKUP(B145,'Hidden Fields'!$E$2:$F$3,2,FALSE),"") ->  | J145: =IFERROR((G145-((C145*H145)/VLOOKUP(B145,'Hidden Fields'!$E$2:$F$3,2,FALSE)))/G145,"") ->  | K145: =IFERROR(G145/((C145*H145)/VLOOKUP(B145,'Hidden Fields'!$E$2:$F$3,2,FALSE)),"") -> 
I146: =IFERROR(C146/VLOOKUP(B146,'Hidden Fields'!$E$2:$F$3,2,FALSE),"") ->  | J146: =IFERROR((G146-((C146*H146)/VLOOKUP(B146,'Hidden Fields'!$E$2:$F$3,2,FALSE)))/G146,"") ->  | K146: =IFERROR(G146/((C146*H146)/VLOOKUP(B146,'Hidden Fields'!$E$2:$F$3,2,FALSE)),"") -> 
I147: =IFERROR(C147/VLOOKUP(B147,'Hidden Fields'!$E$2:$F$3,2,FALSE),"") ->  | J147: =IFERROR((G147-((C147*H147)/VLOOKUP(B147,'Hidden Fields'!$E$2:$F$3,2,FALSE)))/G147,"") ->  | K147: =IFERROR(G147/((C147*H147)/VLOOKUP(B147,'Hidden Fields'!$E$2:$F$3,2,FALSE)),"") -> 
I148: =IFERROR(C148/VLOOKUP(B148,'Hidden Fields'!$E$2:$F$3,2,FALSE),"") ->  | J148: =IFERROR((G148-((C148*H148)/VLOOKUP(B148,'Hidden Fields'!$E$2:$F$3,2,FALSE)))/G148,"") ->  | K148: =IFERROR(G148/((C148*H148)/VLOOKUP(B148,'Hidden Fields'!$E$2:$F$3,2,FALSE)),"") -> 
I149: =IFERROR(C149/VLOOKUP(B149,'Hidden Fields'!$E$2:$F$3,2,FALSE),"") ->  | J149: =IFERROR((G149-((C149*H149)/VLOOKUP(B149,'Hidden Fields'!$E$2:$F$3,2,FALSE)))/G149,"") ->  | K149: =IFERROR(G149/((C149*H149)/VLOOKUP(B149,'Hidden Fields'!$E$2:$F$3,2,FALSE)),"") -> 
I150: =IFERROR(C150/VLOOKUP(B150,'Hidden Fields'!$E$2:$F$3,2,FALSE),"") ->  | J150: =IFERROR((G150-((C150*H150)/VLOOKUP(B150,'Hidden Fields'!$E$2:$F$3,2,FALSE)))/G150,"") ->  | K150: =IFERROR(G150/((C150*H150)/VLOOKUP(B150,'Hidden Fields'!$E$2:$F$3,2,FALSE)),"") -> 
I151: =IFERROR(C151/VLOOKUP(B151,'Hidden Fields'!$E$2:$F$3,2,FALSE),"") ->  | J151: =IFERROR((G151-((C151*H151)/VLOOKUP(B151,'Hidden Fields'!$E$2:$F$3,2,FALSE)))/G151,"") ->  | K151: =IFERROR(G151/((C151*H151)/VLOOKUP(B151,'Hidden Fields'!$E$2:$F$3,2,FALSE)),"") -> 
I152: =IFERROR(C152/VLOOKUP(B152,'Hidden Fields'!$E$2:$F$3,2,FALSE),"") ->  | J152: =IFERROR((G152-((C152*H152)/VLOOKUP(B152,'Hidden Fields'!$E$2:$F$3,2,FALSE)))/G152,"") ->  | K152: =IFERROR(G152/((C152*H152)/VLOOKUP(B152,'Hidden Fields'!$E$2:$F$3,2,FALSE)),"") -> 
I153: =IFERROR(C153/VLOOKUP(B153,'Hidden Fields'!$E$2:$F$3,2,FALSE),"") ->  | J153: =IFERROR((G153-((C153*H153)/VLOOKUP(B153,'Hidden Fields'!$E$2:$F$3,2,FALSE)))/G153,"") ->  | K153: =IFERROR(G153/((C153*H153)/VLOOKUP(B153,'Hidden Fields'!$E$2:$F$3,2,FALSE)),"") -> 
I154: =IFERROR(C154/VLOOKUP(B154,'Hidden Fields'!$E$2:$F$3,2,FALSE),"") ->  | J154: =IFERROR((G154-((C154*H154)/VLOOKUP(B154,'Hidden Fields'!$E$2:$F$3,2,FALSE)))/G154,"") ->  | K154: =IFERROR(G154/((C154*H154)/VLOOKUP(B154,'Hidden Fields'!$E$2:$F$3,2,FALSE)),"") -> 
I155: =IFERROR(C155/VLOOKUP(B155,'Hidden Fields'!$E$2:$F$3,2,FALSE),"") ->  | J155: =IFERROR((G155-((C155*H155)/VLOOKUP(B155,'Hidden Fields'!$E$2:$F$3,2,FALSE)))/G155,"") ->  | K155: =IFERROR(G155/((C155*H155)/VLOOKUP(B155,'Hidden Fields'!$E$2:$F$3,2,FALSE)),"") -> 
I156: =IFERROR(C156/VLOOKUP(B156,'Hidden Fields'!$E$2:$F$3,2,FALSE),"") ->  | J156: =IFERROR((G156-((C156*H156)/VLOOKUP(B156,'Hidden Fields'!$E$2:$F$3,2,FALSE)))/G156,"") ->  | K156: =IFERROR(G156/((C156*H156)/VLOOKUP(B156,'Hidden Fields'!$E$2:$F$3,2,FALSE)),"") -> 
I157: =IFERROR(C157/VLOOKUP(B157,'Hidden Fields'!$E$2:$F$3,2,FALSE),"") ->  | J157: =IFERROR((G157-((C157*H157)/VLOOKUP(B157,'Hidden Fields'!$E$2:$F$3,2,FALSE)))/G157,"") ->  | K157: =IFERROR(G157/((C157*H157)/VLOOKUP(B157,'Hidden Fields'!$E$2:$F$3,2,FALSE)),"") -> 
I158: =IFERROR(C158/VLOOKUP(B158,'Hidden Fields'!$E$2:$F$3,2,FALSE),"") ->  | J158: =IFERROR((G158-((C158*H158)/VLOOKUP(B158,'Hidden Fields'!$E$2:$F$3,2,FALSE)))/G158,"") ->  | K158: =IFERROR(G158/((C158*H158)/VLOOKUP(B158,'Hidden Fields'!$E$2:$F$3,2,FALSE)),"") -> 
I159: =IFERROR(C159/VLOOKUP(B159,'Hidden Fields'!$E$2:$F$3,2,FALSE),"") ->  | J159: =IFERROR((G159-((C159*H159)/VLOOKUP(B159,'Hidden Fields'!$E$2:$F$3,2,FALSE)))/G159,"") ->  | K159: =IFERROR(G159/((C159*H159)/VLOOKUP(B159,'Hidden Fields'!$E$2:$F$3,2,FALSE)),"") -> 
I160: =IFERROR(C160/VLOOKUP(B160,'Hidden Fields'!$E$2:$F$3,2,FALSE),"") ->  | J160: =IFERROR((G160-((C160*H160)/VLOOKUP(B160,'Hidden Fields'!$E$2:$F$3,2,FALSE)))/G160,"") ->  | K160: =IFERROR(G160/((C160*H160)/VLOOKUP(B160,'Hidden Fields'!$E$2:$F$3,2,FALSE)),"") -> 
I161: =IFERROR(C161/VLOOKUP(B161,'Hidden Fields'!$E$2:$F$3,2,FALSE),"") ->  | J161: =IFERROR((G161-((C161*H161)/VLOOKUP(B161,'Hidden Fields'!$E$2:$F$3,2,FALSE)))/G161,"") ->  | K161: =IFERROR(G161/((C161*H161)/VLOOKUP(B161,'Hidden Fields'!$E$2:$F$3,2,FALSE)),"") -> 
I162: =IFERROR(C162/VLOOKUP(B162,'Hidden Fields'!$E$2:$F$3,2,FALSE),"") ->  | J162: =IFERROR((G162-((C162*H162)/VLOOKUP(B162,'Hidden Fields'!$E$2:$F$3,2,FALSE)))/G162,"") ->  | K162: =IFERROR(G162/((C162*H162)/VLOOKUP(B162,'Hidden Fields'!$E$2:$F$3,2,FALSE)),"") -> 
I163: =IFERROR(C163/VLOOKUP(B163,'Hidden Fields'!$E$2:$F$3,2,FALSE),"") ->  | J163: =IFERROR((G163-((C163*H163)/VLOOKUP(B163,'Hidden Fields'!$E$2:$F$3,2,FALSE)))/G163,"") ->  | K163: =IFERROR(G163/((C163*H163)/VLOOKUP(B163,'Hidden Fields'!$E$2:$F$3,2,FALSE)),"") -> 
I164: =IFERROR(C164/VLOOKUP(B164,'Hidden Fields'!$E$2:$F$3,2,FALSE),"") ->  | J164: =IFERROR((G164-((C164*H164)/VLOOKUP(B164,'Hidden Fields'!$E$2:$F$3,2,FALSE)))/G164,"") ->  | K164: =IFERROR(G164/((C164*H164)/VLOOKUP(B164,'Hidden Fields'!$E$2:$F$3,2,FALSE)),"") -> 
I165: =IFERROR(C165/VLOOKUP(B165,'Hidden Fields'!$E$2:$F$3,2,FALSE),"") ->  | J165: =IFERROR((G165-((C165*H165)/VLOOKUP(B165,'Hidden Fields'!$E$2:$F$3,2,FALSE)))/G165,"") ->  | K165: =IFERROR(G165/((C165*H165)/VLOOKUP(B165,'Hidden Fields'!$E$2:$F$3,2,FALSE)),"") -> 
I166: =IFERROR(C166/VLOOKUP(B166,'Hidden Fields'!$E$2:$F$3,2,FALSE),"") ->  | J166: =IFERROR((G166-((C166*H166)/VLOOKUP(B166,'Hidden Fields'!$E$2:$F$3,2,FALSE)))/G166,"") ->  | K166: =IFERROR(G166/((C166*H166)/VLOOKUP(B166,'Hidden Fields'!$E$2:$F$3,2,FALSE)),"") -> 
I167: =IFERROR(C167/VLOOKUP(B167,'Hidden Fields'!$E$2:$F$3,2,FALSE),"") ->  | J167: =IFERROR((G167-((C167*H167)/VLOOKUP(B167,'Hidden Fields'!$E$2:$F$3,2,FALSE)))/G167,"") ->  | K167: =IFERROR(G167/((C167*H167)/VLOOKUP(B167,'Hidden Fields'!$E$2:$F$3,2,FALSE)),"") -> 
I168: =IFERROR(C168/VLOOKUP(B168,'Hidden Fields'!$E$2:$F$3,2,FALSE),"") ->  | J168: =IFERROR((G168-((C168*H168)/VLOOKUP(B168,'Hidden Fields'!$E$2:$F$3,2,FALSE)))/G168,"") ->  | K168: =IFERROR(G168/((C168*H168)/VLOOKUP(B168,'Hidden Fields'!$E$2:$F$3,2,FALSE)),"") -> 
I169: =IFERROR(C169/VLOOKUP(B169,'Hidden Fields'!$E$2:$F$3,2,FALSE),"") ->  | J169: =IFERROR((G169-((C169*H169)/VLOOKUP(B169,'Hidden Fields'!$E$2:$F$3,2,FALSE)))/G169,"") ->  | K169: =IFERROR(G169/((C169*H169)/VLOOKUP(B169,'Hidden Fields'!$E$2:$F$3,2,FALSE)),"") -> 
I170: =IFERROR(C170/VLOOKUP(B170,'Hidden Fields'!$E$2:$F$3,2,FALSE),"") ->  | J170: =IFERROR((G170-((C170*H170)/VLOOKUP(B170,'Hidden Fields'!$E$2:$F$3,2,FALSE)))/G170,"") ->  | K170: =IFERROR(G170/((C170*H170)/VLOOKUP(B170,'Hidden Fields'!$E$2:$F$3,2,FALSE)),"") -> 
I171: =IFERROR(C171/VLOOKUP(B171,'Hidden Fields'!$E$2:$F$3,2,FALSE),"") ->  | J171: =IFERROR((G171-((C171*H171)/VLOOKUP(B171,'Hidden Fields'!$E$2:$F$3,2,FALSE)))/G171,"") ->  | K171: =IFERROR(G171/((C171*H171)/VLOOKUP(B171,'Hidden Fields'!$E$2:$F$3,2,FALSE)),"") -> 
I172: =IFERROR(C172/VLOOKUP(B172,'Hidden Fields'!$E$2:$F$3,2,FALSE),"") ->  | J172: =IFERROR((G172-((C172*H172)/VLOOKUP(B172,'Hidden Fields'!$E$2:$F$3,2,FALSE)))/G172,"") ->  | K172: =IFERROR(G172/((C172*H172)/VLOOKUP(B172,'Hidden Fields'!$E$2:$F$3,2,FALSE)),"") -> 
I173: =IFERROR(C173/VLOOKUP(B173,'Hidden Fields'!$E$2:$F$3,2,FALSE),"") ->  | J173: =IFERROR((G173-((C173*H173)/VLOOKUP(B173,'Hidden Fields'!$E$2:$F$3,2,FALSE)))/G173,"") ->  | K173: =IFERROR(G173/((C173*H173)/VLOOKUP(B173,'Hidden Fields'!$E$2:$F$3,2,FALSE)),"") -> 
I174: =IFERROR(C174/VLOOKUP(B174,'Hidden Fields'!$E$2:$F$3,2,FALSE),"") ->  | J174: =IFERROR((G174-((C174*H174)/VLOOKUP(B174,'Hidden Fields'!$E$2:$F$3,2,FALSE)))/G174,"") ->  | K174: =IFERROR(G174/((C174*H174)/VLOOKUP(B174,'Hidden Fields'!$E$2:$F$3,2,FALSE)),"") -> 
I175: =IFERROR(C175/VLOOKUP(B175,'Hidden Fields'!$E$2:$F$3,2,FALSE),"") ->  | J175: =IFERROR((G175-((C175*H175)/VLOOKUP(B175,'Hidden Fields'!$E$2:$F$3,2,FALSE)))/G175,"") ->  | K175: =IFERROR(G175/((C175*H175)/VLOOKUP(B175,'Hidden Fields'!$E$2:$F$3,2,FALSE)),"") -> 
I176: =IFERROR(C176/VLOOKUP(B176,'Hidden Fields'!$E$2:$F$3,2,FALSE),"") ->  | J176: =IFERROR((G176-((C176*H176)/VLOOKUP(B176,'Hidden Fields'!$E$2:$F$3,2,FALSE)))/G176,"") ->  | K176: =IFERROR(G176/((C176*H176)/VLOOKUP(B176,'Hidden Fields'!$E$2:$F$3,2,FALSE)),"") -> 
I177: =IFERROR(C177/VLOOKUP(B177,'Hidden Fields'!$E$2:$F$3,2,FALSE),"") ->  | J177: =IFERROR((G177-((C177*H177)/VLOOKUP(B177,'Hidden Fields'!$E$2:$F$3,2,FALSE)))/G177,"") ->  | K177: =IFERROR(G177/((C177*H177)/VLOOKUP(B177,'Hidden Fields'!$E$2:$F$3,2,FALSE)),"") -> 
I178: =IFERROR(C178/VLOOKUP(B178,'Hidden Fields'!$E$2:$F$3,2,FALSE),"") ->  | J178: =IFERROR((G178-((C178*H178)/VLOOKUP(B178,'Hidden Fields'!$E$2:$F$3,2,FALSE)))/G178,"") ->  | K178: =IFERROR(G178/((C178*H178)/VLOOKUP(B178,'Hidden Fields'!$E$2:$F$3,2,FALSE)),"") -> 
I179: =IFERROR(C179/VLOOKUP(B179,'Hidden Fields'!$E$2:$F$3,2,FALSE),"") ->  | J179: =IFERROR((G179-((C179*H179)/VLOOKUP(B179,'Hidden Fields'!$E$2:$F$3,2,FALSE)))/G179,"") ->  | K179: =IFERROR(G179/((C179*H179)/VLOOKUP(B179,'Hidden Fields'!$E$2:$F$3,2,FALSE)),"") -> 
I180: =IFERROR(C180/VLOOKUP(B180,'Hidden Fields'!$E$2:$F$3,2,FALSE),"") ->  | J180: =IFERROR((G180-((C180*H180)/VLOOKUP(B180,'Hidden Fields'!$E$2:$F$3,2,FALSE)))/G180,"") ->  | K180: =IFERROR(G180/((C180*H180)/VLOOKUP(B180,'Hidden Fields'!$E$2:$F$3,2,FALSE)),"") -> 
I181: =IFERROR(C181/VLOOKUP(B181,'Hidden Fields'!$E$2:$F$3,2,FALSE),"") ->  | J181: =IFERROR((G181-((C181*H181)/VLOOKUP(B181,'Hidden Fields'!$E$2:$F$3,2,FALSE)))/G181,"") ->  | K181: =IFERROR(G181/((C181*H181)/VLOOKUP(B181,'Hidden Fields'!$E$2:$F$3,2,FALSE)),"") -> 
I182: =IFERROR(C182/VLOOKUP(B182,'Hidden Fields'!$E$2:$F$3,2,FALSE),"") ->  | J182: =IFERROR((G182-((C182*H182)/VLOOKUP(B182,'Hidden Fields'!$E$2:$F$3,2,FALSE)))/G182,"") ->  | K182: =IFERROR(G182/((C182*H182)/VLOOKUP(B182,'Hidden Fields'!$E$2:$F$3,2,FALSE)),"") -> 
I183: =IFERROR(C183/VLOOKUP(B183,'Hidden Fields'!$E$2:$F$3,2,FALSE),"") ->  | J183: =IFERROR((G183-((C183*H183)/VLOOKUP(B183,'Hidden Fields'!$E$2:$F$3,2,FALSE)))/G183,"") ->  | K183: =IFERROR(G183/((C183*H183)/VLOOKUP(B183,'Hidden Fields'!$E$2:$F$3,2,FALSE)),"") -> 
I184: =IFERROR(C184/VLOOKUP(B184,'Hidden Fields'!$E$2:$F$3,2,FALSE),"") ->  | J184: =IFERROR((G184-((C184*H184)/VLOOKUP(B184,'Hidden Fields'!$E$2:$F$3,2,FALSE)))/G184,"") ->  | K184: =IFERROR(G184/((C184*H184)/VLOOKUP(B184,'Hidden Fields'!$E$2:$F$3,2,FALSE)),"") -> 
I185: =IFERROR(C185/VLOOKUP(B185,'Hidden Fields'!$E$2:$F$3,2,FALSE),"") ->  | J185: =IFERROR((G185-((C185*H185)/VLOOKUP(B185,'Hidden Fields'!$E$2:$F$3,2,FALSE)))/G185,"") ->  | K185: =IFERROR(G185/((C185*H185)/VLOOKUP(B185,'Hidden Fields'!$E$2:$F$3,2,FALSE)),"") -> 
I186: =IFERROR(C186/VLOOKUP(B186,'Hidden Fields'!$E$2:$F$3,2,FALSE),"") ->  | J186: =IFERROR((G186-((C186*H186)/VLOOKUP(B186,'Hidden Fields'!$E$2:$F$3,2,FALSE)))/G186,"") ->  | K186: =IFERROR(G186/((C186*H186)/VLOOKUP(B186,'Hidden Fields'!$E$2:$F$3,2,FALSE)),"") -> 
I187: =IFERROR(C187/VLOOKUP(B187,'Hidden Fields'!$E$2:$F$3,2,FALSE),"") ->  | J187: =IFERROR((G187-((C187*H187)/VLOOKUP(B187,'Hidden Fields'!$E$2:$F$3,2,FALSE)))/G187,"") ->  | K187: =IFERROR(G187/((C187*H187)/VLOOKUP(B187,'Hidden Fields'!$E$2:$F$3,2,FALSE)),"") -> 
I188: =IFERROR(C188/VLOOKUP(B188,'Hidden Fields'!$E$2:$F$3,2,FALSE),"") ->  | J188: =IFERROR((G188-((C188*H188)/VLOOKUP(B188,'Hidden Fields'!$E$2:$F$3,2,FALSE)))/G188,"") ->  | K188: =IFERROR(G188/((C188*H188)/VLOOKUP(B188,'Hidden Fields'!$E$2:$F$3,2,FALSE)),"") -> 
I189: =IFERROR(C189/VLOOKUP(B189,'Hidden Fields'!$E$2:$F$3,2,FALSE),"") ->  | J189: =IFERROR((G189-((C189*H189)/VLOOKUP(B189,'Hidden Fields'!$E$2:$F$3,2,FALSE)))/G189,"") ->  | K189: =IFERROR(G189/((C189*H189)/VLOOKUP(B189,'Hidden Fields'!$E$2:$F$3,2,FALSE)),"") -> 
I190: =IFERROR(C190/VLOOKUP(B190,'Hidden Fields'!$E$2:$F$3,2,FALSE),"") ->  | J190: =IFERROR((G190-((C190*H190)/VLOOKUP(B190,'Hidden Fields'!$E$2:$F$3,2,FALSE)))/G190,"") ->  | K190: =IFERROR(G190/((C190*H190)/VLOOKUP(B190,'Hidden Fields'!$E$2:$F$3,2,FALSE)),"") -> 
I191: =IFERROR(C191/VLOOKUP(B191,'Hidden Fields'!$E$2:$F$3,2,FALSE),"") ->  | J191: =IFERROR((G191-((C191*H191)/VLOOKUP(B191,'Hidden Fields'!$E$2:$F$3,2,FALSE)))/G191,"") ->  | K191: =IFERROR(G191/((C191*H191)/VLOOKUP(B191,'Hidden Fields'!$E$2:$F$3,2,FALSE)),"") -> 
I192: =IFERROR(C192/VLOOKUP(B192,'Hidden Fields'!$E$2:$F$3,2,FALSE),"") ->  | J192: =IFERROR((G192-((C192*H192)/VLOOKUP(B192,'Hidden Fields'!$E$2:$F$3,2,FALSE)))/G192,"") ->  | K192: =IFERROR(G192/((C192*H192)/VLOOKUP(B192,'Hidden Fields'!$E$2:$F$3,2,FALSE)),"") -> 
I193: =IFERROR(C193/VLOOKUP(B193,'Hidden Fields'!$E$2:$F$3,2,FALSE),"") ->  | J193: =IFERROR((G193-((C193*H193)/VLOOKUP(B193,'Hidden Fields'!$E$2:$F$3,2,FALSE)))/G193,"") ->  | K193: =IFERROR(G193/((C193*H193)/VLOOKUP(B193,'Hidden Fields'!$E$2:$F$3,2,FALSE)),"") -> 
I194: =IFERROR(C194/VLOOKUP(B194,'Hidden Fields'!$E$2:$F$3,2,FALSE),"") ->  | J194: =IFERROR((G194-((C194*H194)/VLOOKUP(B194,'Hidden Fields'!$E$2:$F$3,2,FALSE)))/G194,"") ->  | K194: =IFERROR(G194/((C194*H194)/VLOOKUP(B194,'Hidden Fields'!$E$2:$F$3,2,FALSE)),"") -> 
I195: =IFERROR(C195/VLOOKUP(B195,'Hidden Fields'!$E$2:$F$3,2,FALSE),"") ->  | J195: =IFERROR((G195-((C195*H195)/VLOOKUP(B195,'Hidden Fields'!$E$2:$F$3,2,FALSE)))/G195,"") ->  | K195: =IFERROR(G195/((C195*H195)/VLOOKUP(B195,'Hidden Fields'!$E$2:$F$3,2,FALSE)),"") -> 
I196: =IFERROR(C196/VLOOKUP(B196,'Hidden Fields'!$E$2:$F$3,2,FALSE),"") ->  | J196: =IFERROR((G196-((C196*H196)/VLOOKUP(B196,'Hidden Fields'!$E$2:$F$3,2,FALSE)))/G196,"") ->  | K196: =IFERROR(G196/((C196*H196)/VLOOKUP(B196,'Hidden Fields'!$E$2:$F$3,2,FALSE)),"") -> 
I197: =IFERROR(C197/VLOOKUP(B197,'Hidden Fields'!$E$2:$F$3,2,FALSE),"") ->  | J197: =IFERROR((G197-((C197*H197)/VLOOKUP(B197,'Hidden Fields'!$E$2:$F$3,2,FALSE)))/G197,"") ->  | K197: =IFERROR(G197/((C197*H197)/VLOOKUP(B197,'Hidden Fields'!$E$2:$F$3,2,FALSE)),"") -> 
I198: =IFERROR(C198/VLOOKUP(B198,'Hidden Fields'!$E$2:$F$3,2,FALSE),"") ->  | J198: =IFERROR((G198-((C198*H198)/VLOOKUP(B198,'Hidden Fields'!$E$2:$F$3,2,FALSE)))/G198,"") ->  | K198: =IFERROR(G198/((C198*H198)/VLOOKUP(B198,'Hidden Fields'!$E$2:$F$3,2,FALSE)),"") -> 
I199: =IFERROR(C199/VLOOKUP(B199,'Hidden Fields'!$E$2:$F$3,2,FALSE),"") ->  | J199: =IFERROR((G199-((C199*H199)/VLOOKUP(B199,'Hidden Fields'!$E$2:$F$3,2,FALSE)))/G199,"") ->  | K199: =IFERROR(G199/((C199*H199)/VLOOKUP(B199,'Hidden Fields'!$E$2:$F$3,2,FALSE)),"") -> 
I200: =IFERROR(C200/VLOOKUP(B200,'Hidden Fields'!$E$2:$F$3,2,FALSE),"") ->  | J200: =IFERROR((G200-((C200*H200)/VLOOKUP(B200,'Hidden Fields'!$E$2:$F$3,2,FALSE)))/G200,"") ->  | K200: =IFERROR(G200/((C200*H200)/VLOOKUP(B200,'Hidden Fields'!$E$2:$F$3,2,FALSE)),"") -> 
... 214 more rows

Sheet Hidden Fields (hidden)
A1: Wine Sizes | B1: Wine numOZ | C1: Beer Sizes | D1: Beer numOZ | E1: Spirit Sizes | F1: Spirit numOZ | H1: Beer Category | I1: Spirit Category | J1: Wine Types | K1: Beer Types | L1: Spirit Types
A2: 187ml | B2: 6.3 | C2: 12oz | D2: 12 | E2: 750ml | F2: 25.3 | H2: Draft | I2: Well | J2: Sparkling | K2: Lager | L2: Bourbon
A3: 375ml | B3: 12.6 | C3: 16oz | D3: 16 | E3: 1L | F3: 33.7 | H3: Bottle | I3: Call | J3: White | K3: Belgian | L3: Brandy
A4: 500ml | B4: 16.9 | C4: 20oz | D4: 20 | H4: Can | I4: Premium | J4: Rose | K4: Bitter | L4: Gin
A5: 750ml | B5: 25.3 | C5: 22oz | D5: 22 | I5: Top Shelf | J5: Red | K5: Bock | L5: Liqueur
A6: 1.5L | B6: 50.6 | C6: Mini keg (1.32g) | D6: 169 | J6: Dessert | K6: Brown Ale | L6: Other
A7: 3L | B7: 101.2 | C7: Cornelius keg (5g) | D7: 640 | J7: Port / Sherry | K7: Cider | L7: Rum
A8: 5L | B8: 168.7 | C8: 1/6 barrel keg (5.16g) | D8: 660 | J8: Other | K8: German | L8: Scotch
A9: 6L | B9: 202.4 | C9: 1/4 barrel keg (7.75g) | D9: 984 | K9: India Pale Ale | L9: Tequila
A10: 9L | B10: 303.6 | C10: 1/2 barrel keg (15.5g) | D10: 1980 | K10: Lambic/Sour | L10: Vodka
K11: Pale Ale | L11: Whiskey
K12: Pilsner
K13: Porter
K14: Scottish Ale
K15: Smoked/Barleywine
K16: Stout
K17: Strong Ale
K18: Wheat
K19: Other

Sheet Summary
A2: Wine | H2: Beer | M2: Liquor
A3: Average Pour Cost ($/oz) | B3: =AVERAGE(Wines!H2:H407) -> 1.635177866 | H3: Average Pour Cost ($/oz) | I3: =AVERAGE(Beers!I2:I400) -> 0.1462527716 | M3: Average Pour Cost ($/oz) | N3: =AVERAGE(Liquors!I2:I400) -> 1.466007905
A4: Average Margin (Glass) | B4: =AVERAGE(Wines!I2:I407) -> 0.6799059829 | H4: Average Margin | I4: =AVERAGE(Beers!J2:J400) -> 0.7082404181 | M4: Average Margin | N4: =AVERAGE(Liquors!J2:J400) -> 0.773140975
A5: Average Markup (Glass) | B5: =AVERAGE(Wines!J2:J408) -> 2.699841171 | H5: Average Markup | I5: =AVERAGE(Beers!K2:K400) -> 4.15125641 | M5: Average Markup | N5: =AVERAGE(Liquors!K2:K400) -> 4.926732593
A6: Average Margin (Bottle) | B6: =AVERAGE(Wines!K2:K409) -> 0.5610272109
A7: Average Markup (Bottle) | B7: =AVERAGE(Wines!L2:L410) -> 2.498730685
A10: Wine Type | B10: Avg Pour cost ($/oz) | C10: Avg Margin (Glass) | D10: Avg Markup (Glass) | E10: Avg Margin (Bottle) | F10: Avg Markup (Bottle) | H10: Beer Type | I10: Avg Pour Cost ($/oz) | J10: Avg Margin | K10: Avg Markup | M10: Liquor Type | N10: Avg Pour Cost ($/oz) | O10: Avg Margin | P10: Avg Markup
A11: Sparkling | B11: 0.8122529644 | C11: 0.6838461538 | D11: 3.163017032 | E11: 0.5806122449 | F11: 2.384428224 | H11: India Pale Ale | I11: 0.09545454545 | J11: 0.7818181818 | K11: 4.583333333 | M11: Rum | N11: 0.3359683794 | O11: 0.8880105402 | P11: 8.929411765
A12: White | B12: 1.683794466 | C12: 0.5266666667 | D12: 2.112676056 | E12: 0.4083333333 | F12: 1.690140845 | H12: Lager | I12: 0.0625 | J12: 0.875 | K12: 8 | M12: Vodka | N12: 1.373517787 | O12: 0.7252964427 | P12: 3.64028777
A13: Red | B13: 4.76284585 | D13: 0 | E13: 0.4261904762 | F13: 1.742738589 | H13: Brown Ale | I13: 0.1585365854 | J13: 0.637630662 | K13: 2.759615385 | M13: Bourbon | N13: 0.9446640316 | O13: 0.7638339921 | P13: 4.234309623
A14: Rose | B14: 0.4387351779 | C14: 0.778 | D14: 4.504504505 | E14: 0.7357142857 | F14: 3.783783784 | H14: Belgian | I14: 0.2073863636 | J14: 0.6233766234 | K14: 2.706666667 | M14: Whiskey | N14: 3.090909091 | O14: 0.7527272727 | P14: 4.044117647
A15: Grand Total | B15: 1.924407115 | C15: 0.6628376068 | D15: 2.445049398 | E15: 0.537712585 | F15: 2.40027286 | H15: Grand Total | I15: 0.1462527716 | J15: 0.7082404181 | K15: 4.15125641 | M15: Brandy | N15: 1.584980237 | O15: 0.7358366271 | P15: 3.78553616
M16: Grand Total | N16: 1.466007905 | O16: 0.773140975 | P16: 4.926732593
M22: Liquor Category | N22: Avg Pour Cost ($/oz) | O22: Avg Margin | P22: Avg Markup
M23: Top Shelf | N23: 2.232213439 | O23: 0.7390118577 | P23: 3.842202708
M24: Well | N24: 0.3359683794 | O24: 0.8880105402 | P24: 8.929411765
M25: Premium | N25: 0.9446640316 | O25: 0.7638339921 | P25: 4.234309623
M26: Call | N26: 1.584980237 | O26: 0.7358366271 | P26: 3.78553616
M27: Grand Total | N27: 1.466007905 | O27: 0.773140975 | P27: 4.926732593

Sheet About
A1: Uncorkd provides software solutions to the hospitality industry to make it easier to manage the beverage program. This includes interactive, digital menus that can be handed to customers at the table with images, descriptions and more information, encouraging customers to order and spend more. Venues can update and manage their menus in real-time so that customers don't order something that is out of stock and removing the cost and hassle of constantly printing new menus. The Uncorkd software also makes it easier and faster to perform beverage inventory. From any device you can quickly take inventory counts, track history and costs, set par values, organize by distributor and connect to your POS system for real-time inventory depletion. Uncorkd provides detailed inventory, sales and ordering reports along with menu analytics to better analyze your beverage program. With Uncorkd's extensive beverage database with hundreds of thousands of wines, beers and spirits, it is easy to add new drinks to your menu in seconds and better understand your inventory and sales data without the work of manually categorizing everything yourself.
B11: Click here to visit the Uncorkd website to learn more
